Workbook

Sheet Welcome
AA1: 23 | AB1: =INDEX(AB$4:AB$45,MATCH(MyVoteNo,$AA$4:$AA$45,0)) -> Defence | AC1: =INDEX(AC$4:AC$45,MATCH(MyVoteNo,$AA$4:$AA$45,0)) -> Mashudu Bidzha | AE1: =INDEX(AE$4:AE$45,MATCH(MyVoteNo,$AA$4:$AA$45,0)) -> Mashudu.Bidzha@treasury.gov.za | AF1: =INDEX(AF$4:AF$45,MATCH(MyVoteNo,$AA$4:$AA$45,0)) -> Lesiba Ledwaba | AH1: =INDEX(AH$4:AH$45,MATCH(MyVoteNo,$AA$4:$AA$45,0)) -> Lesiba.Ledwaba@treasury.gov.za
E2: MTEC Submission Workbook - 2024 MTEF | AI2: Dept Ceilings | AL2: CoE Ceilings | AS2: Departmental Ceilings | AT2: =SUM(AT4:AT45) -> 2112657589 | AU2: 2234053394 | AV2: 2337213784 | AY2: Compensation Ceilings | AZ2: =SUM(AZ4:AZ45) -> 193302074 | BA2: 202941875 | BB2: 212239489
Z3: Dept Index No. | AA3: Vote No. | AB3: Department | AC3: Contact Person | AD3: Tel | AE3: email | AF3: Contact Person | AG3: Tel | AH3: email | AI3: =MyYear5 -> 2024/25 | AJ3: =MyYear6 -> 2025/26 | AK3: =MyYear7 -> 2026/27 | AL3: =AI3 -> 2024/25 | AM3: 2025/26 | AN3: 2026/27 | AS3: Department | AT3: =AI3 -> 2024/25 | AU3: 2025/26 | AV3: 2026/27 | AY3: Department | AZ3: =AI3 -> 2024/25 | BA3: 2025/26 | BB3: 2026/27
Z4: 1 | AA4: 29 | AB4: Agriculture, Land Reform and Rural Development | AC4: Bothwell Deka | AD4: (012) 395 6784 | AE4: Bothwell.Deka@treasury.gov.za | AF4: Nico Likhethe | AG4: (012) 315 5558 | AH4: Nico.Likhethe@treasury.gov.za | AI4: =IFERROR(INDEX((AT$4:AT$45),MATCH($AB4,$AS$4:$AS$45,0)),0) -> 18106226 | AJ4: =IFERROR(INDEX((AU$4:AU$45),MATCH($AB4,$AS$4:$AS$45,0)),0) -> 18884702 | AK4: =IFERROR(INDEX((AV$4:AV$45),MATCH($AB4,$AS$4:$AS$45,0)),0) -> 19689007 | AL4: =IFERROR(INDEX((AZ$4:AZ$45),MATCH($AB4,$AY$4:$AY$45,0)),0) -> 3973440 | AM4: =IFERROR(INDEX((BA$4:BA$45),MATCH($AB4,$AY$4:$AY$45,0)),0) -> 4150668 | AN4: =IFERROR(INDEX((BB$4:BB$45),MATCH($AB4,$AY$4:$AY$45,0)),0) -> 4340827 | AS4: Agriculture, Land Reform and Rural Development | AT4: 18106226 | AU4: 18884702 | AV4: 19689007 | AY4: Agriculture, Land Reform and Rural Development | AZ4: 3973440 | BA4: 4150668 | BB4: 4340827
Z5: 2 | AA5: 16 | AB5: Basic Education | AC5: Spencer Janari | AD5: (012) 315 5436 | AE5: Spencer.Janari@treasury.gov.za | AF5: Shaneel Ragoo | AG5: (012) 315 5323 | AH5: shaneel.ragoo@treasury.gov.za | AI5: 33026402 | AJ5: 34928673 | AK5: 36008078 | AL5: 582081 | AM5: 607658 | AN5: 635494 | AS5: Basic Education | AT5: 33026402 | AU5: 34928673 | AV5: 36008078 | AY5: Basic Education | AZ5: 582081 | BA5: 607658 | BB5: 635494
Z6: 3 | AA6: 42 | AB6: Centre for Public Service Innovation | AC6: George Tembo | AD6: (012) 315 5514 | AE6: George.Tembo@treasury.gov.za | AF6: Uvadhya Singh | AG6: (012) 315 9030 | AH6: Uvadhya.Singh@treasury.gov.za | AI6: =IFERROR(INDEX((AT$4:AT$45),MATCH($AB6,$AS$4:$AS$45,0)),0) -> 47939 | AJ6: =IFERROR(INDEX((AU$4:AU$45),MATCH($AB6,$AS$4:$AS$45,0)),0) -> 50071 | AK6: =IFERROR(INDEX((AV$4:AV$45),MATCH($AB6,$AS$4:$AS$45,0)),0) -> 52367 | AL6: =IFERROR(INDEX((AZ$4:AZ$45),MATCH($AB6,$AY$4:$AY$45,0)),0) -> 27704 | AM6: =IFERROR(INDEX((BA$4:BA$45),MATCH($AB6,$AY$4:$AY$45,0)),0) -> 28879 | AN6: =IFERROR(INDEX((BB$4:BB$45),MATCH($AB6,$AY$4:$AY$45,0)),0) -> 30202 | AS6: Centre for Public Service Innovation | AT6: 47939 | AU6: 50071 | AV6: 52367 | AY6: Centre for Public Service Innovation | AZ6: 27704 | BA6: 28879 | BB6: 30202
B7: ="VOTE " &$AA$1&": " -> VOTE 23: | C7: =MyDeptName -> Defence | Z7: 4 | AA7: 21 | AB7: Civilian Secretariat for the Police Service | AC7: Velisubuhle Buti | AD7: (012) 395 6709 | AE7: Velisubuhle.Buti@treasury.gov.za | AF7: Sesethu Mazoza | AG7: (012) 315 5106 | AH7: Sesethu.Mazoza@treasury.gov.za | AI7: 160964 | AJ7: 168058 | AK7: 175762 | AL7: 113625 | AM7: 118605 | AN7: 124041 | AS7: Civilian Secretariat for the Police Service | AT7: 160964 | AU7: 168058 | AV7: 175762 | AY7: Civilian Secretariat for the Police Service | AZ7: 113625 | BA7: 118605 | BB7: 124041
Z8: 5 | AA8: 30 | AB8: Communications and Digital Technologies | AC8: Rezah Atcha | AD8: (012) 315 5287 | AE8: Rezah.Atcha@treasury.gov.za | AF8: Keitumetse Motshegwe | AG8: (012) 395 6750 | AH8: keitumetse.motshegwe@treasury.gov.za | AI8: 4383604 | AJ8: 2594540 | AK8: 2713406 | AL8: 315282 | AM8: 329082 | AN8: 344162 | AS8: Communications and Digital Technologies | AT8: 4383604 | AU8: 2594540 | AV8: 2713406 | AY8: Communications and Digital Technologies | AZ8: 315282 | BA8: 329082 | BB8: 344162
Z9: 6 | AA9: 3 | AB9: Cooperative Governance | AC9: Millicent Mulaudzi | AD9: (012) 395 6576 | AE9: Millicent.Mulaudzi@treasury.gov.za | AF9: Iqbal Mahomed Alli | AG9: (012) 315 5809 | AH9: Iqbal.Mahomed-Alli@treasury.gov.za | AI9: 129717885 | AJ9: 136475900 | AK9: 142728432 | AL9: 361869 | AM9: 377695 | AN9: 394999 | AS9: Cooperative Governance | AT9: 129717885 | AU9: 136475900 | AV9: 142728432 | AY9: Cooperative Governance | AZ9: 361869 | BA9: 377695 | BB9: 394999
B10: Enquiries | F10: Department Contact Details | I10: PLEASE CLICK THE BUTTON BELOW TO SUBMIT AN INPUT… (Note: Input can not be submitted if ceilings on the 'Data' sheet are exceeded.) | Z10: 7 | AA10: 22 | AB10: Correctional Services | AC10: Elvis Ramafamba | AD10: (012) 315 5204 | AE10: Elvis.Ramafamba@treasury.gov.za | AF10: Yolanda Matiwane | AG10: (012) 315 5012 | AH10: Yolanda.Matiwane@treasury.gov.za | AI10: 27182566 | AJ10: 28387241 | AK10: 29687776 | AL10: 18128255 | AM10: 18927310 | AN10: 19794449 | AS10: Correctional Services | AT10: 27182566 | AU10: 28387241 | AV10: 29687776 | AY10: Correctional Services | AZ10: 18128255 | BA10: 18927310 | BB10: 19794449
B11: =AC1 -> Mashudu Bidzha | D11: =AE1 -> Mashudu.Bidzha@treasury.gov.za | F11: Name: | Z11: 8 | AA11: 23 | AB11: Defence | AC11: Mashudu Bidzha | AD11: (012) 315 5344 | AE11: Mashudu.Bidzha@treasury.gov.za | AF11: Lesiba Ledwaba | AG11: (012) 315 6660 | AH11: Lesiba.Ledwaba@treasury.gov.za | AI11: 51045578 | AJ11: 53004606 | AK11: 55432932 | AL11: 31744679 | AM11: 33142192 | AN11: 34660567 | AS11: Defence | AT11: 51045578 | AU11: 53004606 | AV11: 55432932 | AY11: Defence | AZ11: 31744679 | BA11: 33142192 | BB11: 34660567
B12: =IF(AF1=B11,"",AF1) -> Lesiba Ledwaba | D12: =IF(AH1=D11,"",AH1) -> Lesiba.Ledwaba@treasury.gov.za | F12: Email: | Z12: 9 | AA12: 31 | AB12: Employment and Labour | AC12: Judy Naidoo | AD12: (012) 315 5269 | AE12: Judy.Naidoo@treasury.gov.za | AF12: Dennis Machobani | AG12: (012) 315 5269 | AH12: Dennis.Machobani@treasury.gov.za | AI12: 3902419 | AJ12: 4097507 | AK12: 4285232 | AL12: 1472864 | AM12: 1537484 | AN12: 1607923 | AS12: Employment and Labour | AT12: 3902419 | AU12: 4097507 | AV12: 4285232 | AY12: Employment and Labour | AZ12: 1472864 | BA12: 1537484 | BB12: 1607923
F13: Telephone number: | Z13: 10 | AA13: 32 | AB13: Forestry, Fisheries and the Environment | AC13: Humbelani Ramuedzisi | AD13: (012) 315 5320 | AE13: Humbelani.Ramuedzisi@treasury.gov.za | AF13: Ashley Ramasimu | AG13: (012) 315 5166 | AH13: Ashley.Ramasimu@treasury.gov.za | AI13: 9570290 | AJ13: 9777840 | AK13: 10225800 | AL13: 2041818 | AM13: 2130887 | AN13: 2228513 | AS13: Forestry, Fisheries and the Environment | AT13: 9570290 | AU13: 9777840 | AV13: 10225800 | AY13: Forestry, Fisheries and the Environment | AZ13: 2041818 | BA13: 2130887 | BB13: 2228513
F14: Mobile (optional): | Z14: 11 | AA14: 4 | AB14: Government Communication and Information System | AC14: Mokgatla Tema | AD14: (012) 315 5948 | AE14: Mokgatla.Tema@treasury.gov.za | AF14: Viwe Sobudula | AG14: (012) 315 5015 | AH14: Viwe.Sobudula@treasury.gov.za | AI14: 782847 | AJ14: 816429 | AK14: 853824 | AL14: 296596 | AM14: 309612 | AN14: 323793 | AS14: Government Communication and Information System | AT14: 782847 | AU14: 816429 | AV14: 853824 | AY14: Government Communication and Information System | AZ14: 296596 | BA14: 309612 | BB14: 323793
Z15: 12 | AA15: 18 | AB15: Health | AC15: Refiloe Thokoa | AD15: (012) 395 6559 | AE15: Refiloe.thokoa@treasury.gov.za | AF15: Jonatan Daven | AG15: (012) 315 6711 | AH15: Jonatan.Daven@treasury.gov.za | AI15: 62444328 | AJ15: 65357869 | AK15: 68307055 | AL15: 710017 | AM15: 744332 | AN15: 778434 | AS15: Health | AT15: 62444328 | AU15: 65357869 | AV15: 68307055 | AY15: Health | AZ15: 710017 | BA15: 744332 | BB15: 778434
Z16: 13 | AA16: 17 | AB16: Higher Education and Training | AC16: Spencer Janari | AD16: (012) 315 5436 | AE16: Spencer.Janari@treasury.gov.za | AF16: Barileng Khumisi | AG16: (012) 406 9069 | AH16: barileng.khumisi@treasury.gov.za | AI16: 145966089 | AJ16: 151412052 | AK16: 158825532 | AL16: 11675667 | AM16: 12192156 | AN16: 12750727 | AS16: Higher Education and Training | AT16: 145966089 | AU16: 151412052 | AV16: 158825532 | AY16: Higher Education and Training | AZ16: 11675667 | BA16: 12192156 | BB16: 12750727
Z17: 14 | AA17: 5 | AB17: Home Affairs | AC17: Timothy Murwa | AD17: (012) 315 5002 | AE17: Timothy.Murwa@treasury.gov.za | AF17: Pindi Masiso | AG17: (012) 315 5722 | AH17: Pindi.Masiso@treasury.gov.za | AI17: 10508917 | AJ17: 11010949 | AK17: 11515404 | AL17: 3575257 | AM17: 3753374 | AN17: 3925331 | AS17: Home Affairs | AT17: 10508917 | AU17: 11010949 | AV17: 11515404 | AY17: Home Affairs | AZ17: 3575257 | BA17: 3753374 | BB17: 3925331
Z18: 15 | AA18: 33 | AB18: Human Settlements | AC18: Ulrike Britton | AD18: (012) 315 5578 | AE18: Ulrike.Britton@treasury.gov.za | AF18: Lindiwe Ngcongwane | AG18: (012) 315 5357 | AH18: Lindiwe.Ngcongwane@treasury.gov.za | AI18: 36292746 | AJ18: 38074716 | AK18: 39966073 | AL18: 433287 | AM18: 452340 | AN18: 473064 | AS18: Human Settlements | AT18: 36292746 | AU18: 38074716 | AV18: 39966073 | AY18: Human Settlements | AZ18: 433287 | BA18: 452340 | BB18: 473064
Z19: 16 | AA19: 24 | AB19: Independent Police Investigative Directorate | AC19: Velisubuhle Buti | AD19: (012) 395 6709 | AE19: Velisubuhle.Buti@treasury.gov.za | AF19: Sesethu Mazoza | AG19: (012) 315 5106 | AH19: Sesethu.Mazoza@treasury.gov.za | AI19: 380557 | AJ19: 397413 | AK19: 415613 | AL19: 256869 | AM19: 268182 | AN19: 280468 | AS19: Independent Police Investigative Directorate | AT19: 380557 | AU19: 397413 | AV19: 415613 | AY19: Independent Police Investigative Directorate | AZ19: 256869 | BA19: 268182 | BB19: 280468
Z20: 17 | AA20: 6 | AB20: International Relations and Cooperation | AC20: George Tembo | AD20: (012) 315 5514 | AE20: George.Tembo@treasury.gov.za | AF20: Mercy Mhlophe | AG20: (012) 315 5598 | AH20: mercy.mhlope@treasury.gov.za | AI20: 6992215 | AJ20: 7302961 | AK20: 7637543 | AL20: 3169516 | AM20: 3201632 | AN20: 3348313 | AS20: International Relations and Cooperation | AT20: 6992215 | AU20: 7302961 | AV20: 7637543 | AY20: International Relations and Cooperation | AZ20: 3169516 | BA20: 3201632 | BB20: 3348313
Z21: 18 | AA21: 25 | AB21: Justice and Constitutional Development | AC21: Werner Krause | AD21: (012) 315 5211 | AE21: Werner.Krause@treasury.gov.za | AF21: Siphamandla Khumalo | AG21: (012)315 5759 | AH21: siphamandla.khumalo@treasury.gov.za | AI21: 24105537 | AJ21: 25158819 | AK21: 26311450 | AL21: 13516274 | AM21: 14115457 | AN21: 14762144 | AS21: Justice and Constitutional Development | AT21: 24105537 | AU21: 25158819 | AV21: 26311450 | AY21: Justice and Constitutional Development | AZ21: 13516274 | BA21: 14115457 | BB21: 14762144
Z22: 19 | AA22: 26 | AB22: Military Veterans | AC22: Mashudu Bidzha | AD22: (012) 315 5344 | AE22: Mashudu.Bidzha@treasury.gov.za | AF22: Lesiba Ledwaba | AG22: (012) 315 6660 | AH22: Lesiba.Ledwaba@treasury.gov.za | AI22: 974630 | AJ22: 1060016 | AK22: 1108574 | AL22: 140373 | AM22: 146550 | AN22: 153263 | AS22: Military Veterans | AT22: 974630 | AU22: 1060016 | AV22: 1108574 | AY22: Military Veterans | AZ22: 140373 | BA22: 146550 | BB22: 153263
Z23: 20 | AA23: 34 | AB23: Mineral Resources and Energy | AC23: Rezah Atcha | AD23: (012) 315 5287 | AE23: Rezah.Atcha@treasury.gov.za | AF23: Nomagugu Madikane | AG23: (012) 315 5312 | AH23: Nomagugu.Madikane@treasury.gov.za | AI23: 11233275 | AJ23: 11735638 | AK23: 12273293 | AL23: 1113586 | AM23: 1162586 | AN23: 1215852 | AS23: Mineral Resources and Energy | AT23: 11233275 | AU23: 11735638 | AV23: 12273293 | AY23: Mineral Resources and Energy | AZ23: 1113586 | BA23: 1162586 | BB23: 1215852
Z24: 21 | AA24: 7 | AB24: National School of Government | AC24: George Tembo | AD24: (012) 315 5514 | AE24: George.Tembo@treasury.gov.za | AF24: Uvadhya Singh | AG24: (012) 315 9030 | AH24: Uvadhya.Singh@treasury.gov.za | AI24: 238762 | AJ24: 249362 | AK24: 260790 | AL24: 63097 | AM24: 65890 | AN24: 68908 | AS24: National School of Government | AT24: 238762 | AU24: 249362 | AV24: 260790 | AY24: National School of Government | AZ24: 63097 | BA24: 65890 | BB24: 68908
Z25: 22 | AA25: 8 | AB25: National Treasury | AC25: Mokgatla Tema | AD25: (012) 315 5948 | AE25: Mokgatla.Tema@treasury.gov.za | AF25: Rhoda Marais | AG25: (012) 315 5906 | AH25: Rhoda.Marais@treasury.gov.za | AI25: 1019501606 | AJ25: 1084635490 | AK25: 1140308556 | AL25: 932436 | AM25: 973298 | AN25: 1017889 | AS25: National Treasury | AT25: 1019501606 | AU25: 1084635490 | AV25: 1140308556 | AY25: National Treasury | AZ25: 932436 | BA25: 973298 | BB25: 1017889
Z26: 23 | AA26: 27 | AB26: Office of the Chief Justice | AC26: Elvis Ramafamba | AD26: (012) 315 5204 | AE26: Elvis.Ramafamba@treasury.gov.za | AF26: Keabetswe Matlwa | AG26: (012) 395 6678 | AH26: Keabetswe.Matlwa@treasury.gov.za | AI26: 2536188 | AJ26: 2647639 | AK26: 2768935 | AL26: 1891577 | AM26: 1974159 | AN26: 2064604 | AS26: Office of the Chief Justice | AT26: 2536188 | AU26: 2647639 | AV26: 2768935 | AY26: Office of the Chief Justice | AZ26: 1891577 | BA26: 1974159 | BB26: 2064604
Z27: 24 | AA27: 2 | AB27: Parliament | AC27: Timothy Murwa | AD27: (012) 315 5002 | AE27: Timothy.Murwa@treasury.gov.za | AF27: Maggy Makoka | AG27: (012) 315 5468 | AH27: Maggy.Mokoka@Treasury.gov.za | AI27: 3525104 | AJ27: 3661084 | AK27: 3305912 | AL27: 1500186 | AM27: 1566258 | AN27: 1638015 | AS27: Parliament | AT27: 3525104 | AU27: 3661084 | AV27: 3305912 | AY27: Parliament | AZ27: 1500186 | BA27: 1566258 | BB27: 1638015
Z28: 25 | AA28: 9 | AB28: Planning, Monitoring and Evaluation | AC28: Mokgatla Tema | AD28: (012) 315 5948 | AE28: Mokgatla.Tema@treasury.gov.za | AF28: Viwe Sobudula | AG28: (012) 315 5015 | AH28: Viwe.Sobudula@treasury.gov.za | AI28: 496965 | AJ28: 518973 | AK28: 542740 | AL28: 336866 | AM28: 351632 | AN28: 367740 | AS28: Planning, Monitoring and Evaluation | AT28: 496965 | AU28: 518973 | AV28: 542740 | AY28: Planning, Monitoring and Evaluation | AZ28: 336866 | BA28: 351632 | BB28: 367740
Z29: 26 | AA29: 28 | AB29: Police | AC29: Velisubuhle Buti | AD29: (012) 395 6709 | AE29: Velisubuhle.Buti@treasury.gov.za | AF29: Sesethu Mazoza | AG29: (012) 315 5106 | AH29: Sesethu.Mazoza@treasury.gov.za | AI29: 109065348 | AJ29: 114920516 | AK29: 120185505 | AL29: 85705405 | AM29: 90694708 | AN29: 94849807 | AS29: Police | AT29: 109065348 | AU29: 114920516 | AV29: 120185505 | AY29: Police | AZ29: 85705405 | BA29: 90694708 | BB29: 94849807
Z30: 27 | AA30: 10 | AB30: Public Enterprises | AC30: Isaac Kurasha | AD30: (012) 315 5213 | AE30: Isaac.Kurasha@treasury.gov.za | AF30: Ntandokazi Makaula | AG30: (012) 395 6667 | AH30: Ntandokazi.Makaula@treasury.gov.za | AI30: 316354 | AJ30: 330360 | AK30: 345495 | AL30: 193496 | AM30: 202002 | AN30: 211256 | AS30: Public Enterprises | AT30: 316354 | AU30: 330360 | AV30: 345495 | AY30: Public Enterprises | AZ30: 193496 | BA30: 202002 | BB30: 211256
Z31: 28 | AA31: 11 | AB31: Public Service and Administration | AC31: George Tembo | AD31: (012) 315 5514 | AE31: George.Tembo@treasury.gov.za | AF31: Uvadhya Singh | AG31: (012) 315 9030 | AH31: Uvadhya.Singh@treasury.gov.za | AI31: 578023 | AJ31: 603608 | AK31: 631259 | AL31: 313413 | AM31: 327169 | AN31: 342157 | AS31: Public Service and Administration | AT31: 578023 | AU31: 603608 | AV31: 631259 | AY31: Public Service and Administration | AZ31: 313413 | BA31: 327169 | BB31: 342157
Z32: 29 | AA32: 12 | AB32: Public Service Commission | AC32: George Tembo | AD32: (012) 315 5514 | AE32: George.Tembo@treasury.gov.za | AF32: Mercy Mhlophe | AG32: (012) 315 5598 | AH32: mercy.mhlope@treasury.gov.za | AI32: 305021 | AJ32: 318469 | AK32: 333064 | AL32: 229743 | AM32: 239818 | AN32: 250808 | AS32: Public Service Commission | AT32: 305021 | AU32: 318469 | AV32: 333064 | AY32: Public Service Commission | AZ32: 229743 | BA32: 239818 | BB32: 250808
Z33: 30 | AA33: 13 | AB33: Public Works and Infrastructure | AC33: George Tembo | AD33: (012) 315 5514 | AE33: George.Tembo@treasury.gov.za | AF33: Mercy Mhlophe | AG33: (012) 315 5598 | AH33: mercy.mhlope@treasury.gov.za | AI33: 9167615 | AJ33: 9569007 | AK33: 10007411 | AL33: 622362 | AM33: 640502 | AN33: 669847 | AS33: Public Works and Infrastructure | AT33: 9167615 | AU33: 9569007 | AV33: 10007411 | AY33: Public Works and Infrastructure | AZ33: 622362 | BA33: 640502 | BB33: 669847
Z34: 31 | AA34: 35 | AB34: Science and Innovation | AC34: Humbelani Ramuedzisi | AD34: (012) 315 5320 | AE34: Humbelani.Ramuedzisi@treasury.gov.za | AF34: Ashley Ramasimu | AG34: (012) 315 5166 | AH34: Ashley.Ramasimu@treasury.gov.za | AI34: 10523679 | AJ34: 10105023 | AK34: 10567964 | AL34: 386794 | AM34: 403758 | AN34: 422257 | AS34: Science and Innovation | AT34: 10523679 | AU34: 10105023 | AV34: 10567964 | AY34: Science and Innovation | AZ34: 386794 | BA34: 403758 | BB34: 422257
Z35: 32 | AA35: 36 | AB35: Small Business Development | AC35: Bothwell Deka | AD35: (012) 395 6784 | AE35: Bothwell.Deka@treasury.gov.za | AF35: Nico Likhethe | AG35: (012) 315 5558 | AH35: Nico.Likhethe@treasury.gov.za | AI35: 2690264 | AJ35: 2810645 | AK35: 2939411 | AL35: 251630 | AM35: 262759 | AN35: 274797 | AS35: Small Business Development | AT35: 2690264 | AU35: 2810645 | AV35: 2939411 | AY35: Small Business Development | AZ35: 251630 | BA35: 262759 | BB35: 274797
Z36: 33 | AA36: 19 | AB36: Social Development | AC36: Pebetse Maleka | AD36: (012) 315 5566 | AE36: Pebetse.Maleka@treasury.gov.za | AF36: Yusuf Mayet | AG36: (012) 315 5189 | AH36: Yusuf.Mayet@treasury.gov.za | AI36: 242104513 | AJ36: 258000337 | AK36: 269820387 | AL36: 536375 | AM36: 559929 | AN36: 585583 | AS36: Social Development | AT36: 242104513 | AU36: 258000337 | AV36: 269820387 | AY36: Social Development | AZ36: 536375 | BA36: 559929 | BB36: 585583
Z37: 34 | AA37: 37 | AB37: Sport, Arts and Culture | AC37: Judy Naidoo | AD37: (012) 315 5269 | AE37: Judy.Naidoo@treasury.gov.za | AF37: Mabele Mdhluli | AG37: (012) 315 5573 | AH37: Mabele.Mdhluli@treasury.gov.za | AI37: 6160141 | AJ37: 6435802 | AK37: 6730654 | AL37: 402042 | AM37: 419739 | AN37: 438971 | AS37: Sport, Arts and Culture | AT37: 6160141 | AU37: 6435802 | AV37: 6730654 | AY37: Sport, Arts and Culture | AZ37: 402042 | BA37: 419739 | BB37: 438971
Z38: 35 | AA38: 14 | AB38: Statistics South Africa | AC38: Mokgatla Tema | AD38: (012) 315 5948 | AE38: Mokgatla.Tema@treasury.gov.za | AF38: Thobeka Mbonambi | AG38: (012) 395 6719 | AH38: Thobeka.Mbonambi@treasury.gov.za | AI38: 2823039 | AJ38: 2948069 | AK38: 3083132 | AL38: 1732988 | AM38: 1809186 | AN38: 1892077 | AS38: Statistics South Africa | AT38: 2823039 | AU38: 2948069 | AV38: 3083132 | AY38: Statistics South Africa | AZ38: 1732988 | BA38: 1809186 | BB38: 1892077
Z39: 36 | AA39: 1 | AB39: The Presidency | AC39: Timothy Murwa | AD39: (012) 315 5002 | AE39: Timothy.Murwa@treasury.gov.za | AF39: Maggy Mokoka | AG39: (012) 315 5468 | AH39: Maggy.Mokoka@treasury.gov.za | AI39: 652648 | AJ39: 681399 | AK39: 712616 | AL39: 408025 | AM39: 425818 | AN39: 445327 | AS39: The Presidency | AT39: 652648 | AU39: 681399 | AV39: 712616 | AY39: The Presidency | AZ39: 408025 | BA39: 425818 | BB39: 445327
Z40: 37 | AA40: 38 | AB40: Tourism | AC40: Humbelani Ramuedzisi | AD40: (012) 315 5320 | AE40: Humbelani.Ramuedzisi@treasury.gov.za | AF40: Ashley Ramasimu | AG40: (012) 315 5166 | AH40: Ashley.Ramasimu@treasury.gov.za | AI40: 2637187 | AJ40: 2755030 | AK40: 2881247 | AL40: 390949 | AM40: 408134 | AN40: 426831 | AS40: Tourism | AT40: 2637187 | AU40: 2755030 | AV40: 2881247 | AY40: Tourism | AZ40: 390949 | BA40: 408134 | BB40: 426831
Z41: 38 | AA41: 39 | AB41: Trade, Industry and Competition | AC41: Isaac Kurasha | AD41: (012) 315 5213 | AE41: Isaac.Kurasha@treasury.gov.za | AF41: Rudzani Sikhwari | AG41: (012) 315 5823 | AH41: rudzani.sikhwari@treasury.gov.za | AI41: 10588687 | AJ41: 11061989 | AK41: 11568778 | AL41: 1081180 | AM41: 1128561 | AN41: 1180267 | AS41: Trade, Industry and Competition | AT41: 10588687 | AU41: 11061989 | AV41: 11568778 | AY41: Trade, Industry and Competition | AZ41: 1081180 | BA41: 1128561 | BB41: 1180267
Z42: 39 | AA42: 15 | AB42: Traditional Affairs | AC42: Millicent Mulaudzi | AD42: (012) 395 6576 | AE42: Millicent.Mulaudzi@treasury.gov.za | AF42: Amanda Matutu | AG42: (012) 395 6786 | AH42: Amanda.Matutu@treasury.gov.za | AI42: 201250 | AJ42: 209720 | AK42: 219328 | AL42: 101224 | AM42: 105440 | AN42: 110272 | AS42: Traditional Affairs | AT42: 201250 | AU42: 209720 | AV42: 219328 | AY42: Traditional Affairs | AZ42: 101224 | BA42: 105440 | BB42: 110272
Z43: 40 | AA43: 40 | AB43: Transport | AC43: Dumebi Ubogu | AD43: (012) 315 5077 | AE43: Dumebi.Ubogu@treasury.gov.za | AF43: Luyolo Ntlangula | AG43: (012) 315-5571 | AH43: luyolo.ntangula@treasury.gov.za | AI43: 86718488 | AJ43: 94152020 | AK43: 95565466 | AL43: 571639 | AM43: 596766 | AN43: 624104 | AS43: Transport | AT43: 86718488 | AU43: 94152020 | AV43: 95565466 | AY43: Transport | AZ43: 571639 | BA43: 596766 | BB43: 624104
Z44: 41 | AA44: 41 | AB44: Water and Sanitation | AC44: Millicent Mulaudzi | AD44: (012) 395 6576 | AE44: Millicent.Mulaudzi@treasury.gov.za | AF44: Iqbal Mahomed Alli | AG44: (012) 315 5809 | AH44: Iqbal.Mahomed-Alli@treasury.gov.za | AI44: 24180064 | AJ44: 25884551 | AK44: 25324359 | AL44: 1869110 | AM44: 1951378 | AN44: 2040779 | AS44: Water and Sanitation | AT44: 24180064 | AU44: 25884551 | AV44: 25324359 | AY44: Water and Sanitation | AZ44: 1869110 | BA44: 1951378 | BB44: 2040779
Z45: 42 | AA45: 20 | AB45: Women, Youth and Persons with Disabilities | AC45: Pebetse Maleka | AD45: (012) 315 5566 | AE45: Pebetse.Maleka@treasury.gov.za | AF45: Lindi Mzankomo | AG45: (012) 315 5256 | AH45: Lindi.Mzankomo@treasury.gov.za | AI45: 821629 | AJ45: 858301 | AK45: 897622 | AL45: 132478 | AM45: 138290 | AN45: 144627 | AS45: Women, Youth and Persons with Disabilities | AT45: 821629 | AU45: 858301 | AV45: 897622 | AY45: Women, Youth and Persons with Disabilities | AZ45: 132478 | BA45: 138290 | BB45: 144627
AI48: =SUM(AI4:AI45) -> 2112657589 | AJ48: 2234053394 | AK48: 2337213784 | AL48: 193302074 | AM48: 202941875 | AN48: 212239489

Sheet Notes
B42: Link to 2024 MTEF Guidelines
B43: http://www.treasury.gov.za/publications/guidelines/default.aspx
R57: Click "Enable Content"
R69: Tick "Ignore Privacy Levels" box
R72: Click "Save"

Sheet Pivot % growth
B14: Econ3 | C14: (All)
B16: Row Labels | C16: 2023/24 Baseline | D16: 2024/25 Revised baseline | E16: 2025/26 Revised baseline | F16: 2026/27 Revised baseline | G16: 2024/25 adjustment | H16: 2025/26 adjustment | I16: 2026/27 adjustment | J16: % YoY 2024/25 | K16: % YoY 2025/26 | L16: % YoY 2026/27 | M16: Ave Ann growth History | N16: Ave Ann growth MTEF | O16: 2024/25 % adjustment | P16: 2025/26 % adjustment | Q16: 2026/27 % adjustment
B17: Administration | C17: 5437609 | D17: 5608063 | E17: 5867259 | F17: 6136062 | G17: 0 | H17: 0 | I17: 0 | J17: 0.03134723368 | K17: 0.04621845368 | L17: 0.04581406752 | M17: 0.006997882691 | N17: 0.04110353511 | O17: 0 | P17: 0 | Q17: 0
B18: Current payments | C18: 5289626 | D18: 5527539 | E18: 5785244 | F18: 6050291 | G18: 0 | H18: 0 | I18: 0 | J18: 0.04497728195 | K18: 0.04662201388 | L18: 0.04581431656 | M18: 0.003807784584 | N18: 0.04580432188 | O18: 0 | P18: 0 | Q18: 0
B19: Transfers and subsidies | C19: 117948 | D19: 53682 | E19: 52876 | F19: 55299 | G19: 0 | H19: 0 | I19: 0 | J19: -0.5448672296 | K19: -0.01501434373 | L19: 0.04582419245 | M19: 0.2961560099 | N19: -0.2231409449 | O19: 0 | P19: 0 | Q19: 0
B20: Payments for capital assets | C20: 30035 | D20: 26842 | E20: 29139 | F20: 30472 | G20: 0 | H20: 0 | I20: 0 | J20: -0.1063093058 | K20: 0.08557484539 | L20: 0.04574625073 | M20: -0.06812128861 | N20: 0.004826564141 | O20: 0 | P20: 0 | Q20: 0
B21: Payments for financial assets | C21: 0 | D21: 0 | E21: 0 | F21: 0 | G21: 0 | H21: 0 | I21: 0 | J21: 0 | K21: 0 | L21: 0 | M21: -1 | N21: 0 | O21: 0 | P21: 0 | Q21: 0
B22: Force Employment | C22: 4509781 | D22: 4291024 | E22: 4128837 | F22: 4317991 | G22: 0 | H22: 0 | I22: 0 | J22: -0.0485072335 | K22: -0.03779680561 | L22: 0.04581290082 | M22: -0.01092914063 | N22: -0.01438169631 | O22: 0 | P22: 0 | Q22: 0
B23: Current payments | C23: 4000674 | D23: 3491230 | E23: 3631033 | F23: 3797381 | G23: 0 | H23: 0 | I23: 0 | J23: -0.1273395433 | K23: 0.04004405324 | L23: 0.04581285821 | M23: 0.01767116317 | N23: -0.01723351727 | O23: 0 | P23: 0 | Q23: 0
B24: Transfers and subsidies | C24: 371824 | D24: 704212 | E24: 426803 | F24: 446356 | G24: 0 | H24: 0 | I24: 0 | J24: 0.8939390679 | K24: -0.3939282489 | L24: 0.04581270516 | M24: -0.1948269024 | N24: 0.06279128903 | O24: 0 | P24: 0 | Q24: 0
B25: Payments for capital assets | C25: 137283 | D25: 95582 | E25: 71001 | F25: 74254 | G25: 0 | H25: 0 | I25: 0 | J25: -0.3037593875 | K25: -0.2571718524 | L25: 0.04581625611 | M25: -0.03490132487 | N25: -0.1852312487 | O25: 0 | P25: 0 | Q25: 0
B26: Payments for financial assets | C26: 0 | D26: 0 | E26: 0 | F26: 0 | G26: 0 | H26: 0 | I26: 0 | J26: 0 | K26: 0 | L26: 0 | M26: -1 | N26: 0 | O26: 0 | P26: 0 | Q26: 0
B27: Landward Defence | C27: 15740235 | D27: 16064999 | E27: 16863114 | F27: 17635679 | G27: 0 | H27: 0 | I27: 0 | J27: 0.0206327288 | K27: 0.04968036413 | L27: 0.0458138989 | M27: -0.02887896762 | N27: 0.03862871272 | O27: 0 | P27: 0 | Q27: 0
B28: Current payments | C28: 15062102 | D28: 15769029 | E28: 16490462 | F28: 17245954 | G28: 0 | H28: 0 | I28: 0 | J28: 0.04693415302 | K28: 0.04574999513 | L28: 0.04581387714 | M28: -0.01236072217 | N28: 0.04616586714 | O28: 0 | P28: 0 | Q28: 0
B29: Transfers and subsidies | C29: 659677 | D29: 278509 | E29: 357005 | F29: 373363 | G29: 0 | H29: 0 | I29: 0 | J29: -0.5778100495 | K29: 0.2818436747 | L29: 0.04582008655 | M29: -0.233397629 | N29: -0.1728200894 | O29: 0 | P29: 0 | Q29: 0
B30: Payments for capital assets | C30: 18456 | D30: 17461 | E30: 15647 | F30: 16362 | G30: 0 | H30: 0 | I30: 0 | J30: -0.05391200694 | K30: -0.1038886662 | L30: 0.04569566051 | M30: -0.4031787623 | N30: -0.03934760698 | O30: 0 | P30: 0 | Q30: 0
B31: Payments for financial assets | C31: 0 | D31: 0 | E31: 0 | F31: 0 | G31: 0 | H31: 0 | I31: 0 | J31: 0 | K31: 0 | L31: 0 | M31: -1 | N31: 0 | O31: 0 | P31: 0 | Q31: 0
B32: Air Defence | C32: 7127123 | D32: 6319680 | E32: 6596098 | F32: 6898283 | G32: 0 | H32: 0 | I32: 0 | J32: -0.1132915764 | K32: 0.04373923996 | L32: 0.04581269108 | M32: -0.02479937662 | N32: -0.01081941339 | O32: 0 | P32: 0 | Q32: 0
B33: Current payments | C33: 5629726 | D33: 5877224 | E33: 6093192 | F33: 6372337 | G33: 0 | H33: 0 | I33: 0 | J33: 0.04396270795 | K33: 0.0367466001 | L33: 0.04581260528 | M33: -0.01217707377 | N33: 0.0421666205 | O33: 0 | P33: 0 | Q33: 0
B34: Transfers and subsidies | C34: 1481914 | D34: 425461 | E34: 485027 | F34: 507248 | G34: 0 | H34: 0 | I34: 0 | J34: -0.7128976445 | K34: 0.1400034316 | L34: 0.04581394438 | M34: -0.06349840449 | N34: -0.3004816458 | O34: 0 | P34: 0 | Q34: 0
B35: Payments for capital assets | C35: 15483 | D35: 16995 | E35: 17879 | F35: 18698 | G35: 0 | H35: 0 | I35: 0 | J35: 0.09765549312 | K35: 0.05201529862 | L35: 0.04580793109 | M35: -0.2672941425 | N35: 0.06491108365 | O35: 0 | P35: 0 | Q35: 0
B36: Payments for financial assets | C36: 0 | D36: 0 | E36: 0 | F36: 0 | G36: 0 | H36: 0 | I36: 0 | J36: 0 | K36: 0 | L36: 0 | M36: -1 | N36: 0 | O36: 0 | P36: 0 | Q36: 0
B37: Maritime Defence | C37: 4984625 | D37: 4983074 | E37: 5237085 | F37: 5477016 | G37: 0 | H37: 0 | I37: 0 | J37: -0.0003111568072 | K37: 0.05097475976 | L37: 0.04581384492 | M37: 0.01709392165 | N37: 0.0318989553 | O37: 0 | P37: 0 | Q37: 0
B38: Current payments | C38: 3802946 | D38: 4055127 | E38: 4262399 | F38: 4457677 | G38: 0 | H38: 0 | I38: 0 | J38: 0.06631201179 | K38: 0.05111356562 | L38: 0.04581410609 | M38: 0.08685663015 | N38: 0.05437753958 | O38: 0 | P38: 0 | Q38: 0
B39: Transfers and subsidies | C39: 1070003 | D39: 921053 | E39: 967823 | F39: 1012162 | G39: 0 | H39: 0 | I39: 0 | J39: -0.1392052172 | K39: 0.05077883683 | L39: 0.04581312905 | M39: -0.1510799321 | N39: -0.01835375192 | O39: 0 | P39: 0 | Q39: 0
B40: Payments for capital assets | C40: 111676 | D40: 6894 | E40: 6863 | F40: 7177 | G40: 0 | H40: 0 | I40: 0 | J40: -0.9382678463 | K40: -0.004496663766 | L40: 0.04575258633 | M40: 0.6207873521 | N40: -0.5994460378 | O40: 0 | P40: 0 | Q40: 0
B41: Payments for financial assets | C41: 0 | D41: 0 | E41: 0 | F41: 0 | G41: 0 | H41: 0 | I41: 0 | J41: 0 | K41: 0 | L41: 0 | M41: -1 | N41: 0 | O41: 0 | P41: 0 | Q41: 0
B42: Military Health Support | C42: 5454980 | D42: 5568485 | E42: 5812289 | F42: 6078563 | G42: 0 | H42: 0 | I42: 0 | J42: 0.02080759233 | K42: 0.04378282423 | L42: 0.04581224368 | M42: -0.001957488179 | N42: 0.03673856333 | O42: 0 | P42: 0 | Q42: 0
B43: Current payments | C43: 5228758 | D43: 5445864 | E43: 5689554 | F43: 5950206 | G43: 0 | H43: 0 | I43: 0 | J43: 0.04152152385 | K43: 0.04474772047 | L43: 0.04581237826 | M43: -0.009725680767 | N43: 0.04402561264 | O43: 0 | P43: 0 | Q43: 0
B44: Transfers and subsidies | C44: 142968 | D44: 30170 | E44: 28194 | F44: 29485 | G44: 0 | H44: 0 | I44: 0 | J44: -0.7889737564 | K44: -0.06549552536 | L44: 0.04578988437 | M44: 0.6887194669 | N44: -0.4091814849 | O44: 0 | P44: 0 | Q44: 0
B45: Payments for capital assets | C45: 83254 | D45: 92451 | E45: 94541 | F45: 98872 | G45: 0 | H45: 0 | I45: 0 | J45: 0.1104691666 | K45: 0.02260656997 | L45: 0.04581081224 | M45: 0.05020416476 | N45: 0.05898401228 | O45: 0 | P45: 0 | Q45: 0
B46: Payments for financial assets | C46: 0 | D46: 0 | E46: 0 | F46: 0 | G46: 0 | H46: 0 | I46: 0 | J46: 0 | K46: 0 | L46: 0 | M46: -1 | N46: 0 | O46: 0 | P46: 0 | Q46: 0
B47: Defence Intelligence | C47: 1033263 | D47: 1068913 | E47: 1116222 | F47: 1167357 | G47: 0 | H47: 0 | I47: 0 | J47: 0.03450234839 | K47: 0.04425898085 | L47: 0.04581077958 | M47: -0.02965779118 | N47: 0.04151198356 | O47: 0 | P47: 0 | Q47: 0
B48: Current payments | C48: 720261 | D48: 754387 | E48: 793796 | F48: 830159 | G48: 0 | H48: 0 | I48: 0 | J48: 0.04738004696 | K48: 0.05223976553 | L48: 0.04580899879 | M48: 0.1428276165 | N48: 0.04847270032 | O48: 0 | P48: 0 | Q48: 0
B49: Transfers and subsidies | C49: 313002 | D49: 314526 | E49: 322426 | F49: 337198 | G49: 0 | H49: 0 | I49: 0 | J49: 0.004868978473 | K49: 0.02511716043 | L49: 0.04581516379 | M49: -0.2147497406 | N49: 0.0251308246 | O49: 0 | P49: 0 | Q49: 0
B50: Payments for capital assets | C50: 0 | D50: 0 | E50: 0 | F50: 0 | G50: 0 | H50: 0 | I50: 0 | J50: 0 | K50: 0 | L50: 0 | M50: -1 | N50: 0 | O50: 0 | P50: 0 | Q50: 0
B51: Payments for financial assets | C51: 0 | D51: 0 | E51: 0 | F51: 0 | G51: 0 | H51: 0 | I51: 0 | J51: 0 | K51: 0 | L51: 0 | M51: -1 | N51: 0 | O51: 0 | P51: 0 | Q51: 0
B52: General Support | C52: 6836813 | D52: 7141340 | E52: 7383702 | F52: 7721981 | G52: 0 | H52: 0 | I52: 0 | J52: 0.04454224505 | K52: 0.03393788841 | L52: 0.04581428124 | M52: -0.04595828997 | N52: 0.04141783056 | O52: 0 | P52: 0 | Q52: 0
B53: Current payments | C53: 4818729 | D53: 5037317 | E53: 5275456 | F53: 5517149 | G53: 0 | H53: 0 | I53: 0 | J53: 0.04536216915 | K53: 0.047274968 | L53: 0.04581461773 | M53: -0.01948544653 | N53: 0.04615026663 | O53: 0 | P53: 0 | Q53: 0
B54: Transfers and subsidies | C54: 1563752 | D54: 1647770 | E54: 1652166 | F54: 1727858 | G54: 0 | H54: 0 | I54: 0 | J54: 0.05372846845 | K54: 0.002667848061 | L54: 0.04581379837 | M54: -0.0291536679 | N54: 0.03382426976 | O54: 0 | P54: 0 | Q54: 0
B55: Payments for capital assets | C55: 454332 | D55: 456253 | E55: 456080 | F55: 476974 | G55: 0 | H55: 0 | I55: 0 | J55: 0.004228185556 | K55: -0.000379175589 | L55: 0.04581213822 | M55: -0.2437998361 | N55: 0.01634337331 | O55: 0 | P55: 0 | Q55: 0
B56: Payments for financial assets | C56: 0 | D56: 0 | E56: 0 | F56: 0 | G56: 0 | H56: 0 | I56: 0 | J56: 0 | K56: 0 | L56: 0 | M56: -1 | N56: 0 | O56: 0 | P56: 0 | Q56: 0
B57: Grand Total | C57: 51124429 | D57: 51045578 | E57: 53004606 | F57: 55432932 | G57: 0 | H57: 0 | I57: 0 | J57: -0.001542335074 | K57: 0.03837801582 | L57: 0.04581349025 | M57: -0.01859704718 | N57: 0.02733746572 | O57: 0 | P57: 0 | Q57: 0

Sheet Pivot_T
B11: Econ4 | C11: (All)
B12: Econ2 | C12: (All)
B13: DOR | C13: (All)
B14: Econ3 | C14: (All)
B16: Value | C16: Column Labels
C17: 2023/24 | E17: 2024/25 | G17: 2025/26 | I17: 2026/27
B18: Row Labels | C18: Baseline | D18: Revised baseline | E18: Baseline | F18: Revised baseline | G18: Baseline | H18: Revised baseline | I18: Baseline | J18: Revised baseline
B19: Administration | C19: 5437609 | D19: 5437609 | E19: 5608063 | F19: 5608063 | G19: 5867259 | H19: 5867259 | I19: 6136062 | J19: 6136062
B20: Air Defence | C20: 7127123 | D20: 7127123 | E20: 6319680 | F20: 6319680 | G20: 6596098 | H20: 6596098 | I20: 6898283 | J20: 6898283
B21: Defence Intelligence | C21: 1033263 | D21: 1033263 | E21: 1068913 | F21: 1068913 | G21: 1116222 | H21: 1116222 | I21: 1167357 | J21: 1167357
B22: Force Employment | C22: 4509781 | D22: 4509781 | E22: 4291024 | F22: 4291024 | G22: 4128837 | H22: 4128837 | I22: 4317991 | J22: 4317991
B23: General Support | C23: 6836813 | D23: 6836813 | E23: 7141340 | F23: 7141340 | G23: 7383702 | H23: 7383702 | I23: 7721981 | J23: 7721981
B24: Landward Defence | C24: 15740235 | D24: 15740235 | E24: 16064999 | F24: 16064999 | G24: 16863114 | H24: 16863114 | I24: 17635679 | J24: 17635679
B25: Maritime Defence | C25: 4984625 | D25: 4984625 | E25: 4983074 | F25: 4983074 | G25: 5237085 | H25: 5237085 | I25: 5477016 | J25: 5477016
B26: Military Health Support | C26: 5454980 | D26: 5454980 | E26: 5568485 | F26: 5568485 | G26: 5812289 | H26: 5812289 | I26: 6078563 | J26: 6078563
B27: Grand Total | C27: 51124429 | D27: 51124429 | E27: 51045578 | F27: 51045578 | G27: 53004606 | H27: 53004606 | I27: 55432932 | J27: 55432932

Sheet Service delivery impact
B15: Note: Data in the table below is sourced from the individual SRT sheets. Any adjustments should be made on the SRT sheets. Ajustments made directly on this table will be over-written when the data is refreshed! …remember to refresh.
B17: Impact area | C17: Unit no | D17: Unit name | E17: Comment

Sheet Performance impact
B15: Note: Data in the table below is sourced from the individual SRT sheets. Any adjustments should be made on the SRT sheets. Ajustments made directly on this table will be over-written when the data is refreshed! …remember to refresh.
B17: Impact area | C17: Unit no | D17: Unit name | E17: Performance indicator | F17: 2023/24 Current performance | G17: 2023/24 Performance @ benchmark level | H17: 2023/24 Change | I17: 2024/25 Original target | J17: 2024/25 Revised target | K17: 2024/25 Change | L17: 2025/26 Original target | M17: 2025/26 Revised target | N17: 2025/26 Change | O17: 2026/27 Original target | P17: 2026/27 Revised target | Q17: 2026/27 Change | R17: Comment | S17: Gov Priority

Sheet Pivot Infra impact
B14: Impact area | C14: (All)
B16: Value | C16: Column Labels
C17: 2023/24 | E17: 2024/25 | G17: 2025/26 | I17: 2026/27
B18: Row Labels | C18: Current Number | D18: Change | E18: Original amount | F18: Change | G18: Original amount | H18: Change | I18: Original amount | J18: Change
B19: (blank) | C19: 0 | D19: 0 | E19: 0 | F19: 0 | G19: 0 | H19: 0 | I19: 0 | J19: 0
B20: Grand Total | C20: 0 | D20: 0 | E20: 0 | F20: 0 | G20: 0 | H20: 0 | I20: 0 | J20: 0

Sheet Pivot Personnel impact
B16: Value | C16: Column Labels
C17: 2023/24 | D17: 2024/25 | E17: 2025/26 | F17: 2026/27
B18: Row Labels | C18: Change in number | D18: Change in number | E18: Change in number | F18: Change in number
B19: Levels 01 - 06 | C19: 0 | D19: 0 | E19: 0 | F19: 0
B20: Levels 07 - 12 | C20: 0 | D20: 0 | E20: 0 | F20: 0
B21: Levels 13 - 16 | C21: 0 | D21: 0 | E21: 0 | F21: 0
B22: Other | C22: 0 | D22: 0 | E22: 0 | F22: 0
B23: Grand Total | C23: 0 | D23: 0 | E23: 0 | F23: 0

Sheet Pivot HRBP
B12: Salary level | C12: (All)
B13: Programme No | C13: (All)
B15: Number | C15: Columns
C16: 2022/23
B17: Row Labels | C17: Once-off Payments per person | D17: Establishment: Number of funded posts additional to the establishment | E17: FTE Headcount | F17: Total Annual Cost | G17: Unit Costs | H17: Establishment: Number of funded posts as at 31 March 2023
B18: Levels 01 - 06 | C18: 0 | D18: 0 | E18: 0 | F18: 0 | G18: 0 | H18: 0
B19: Levels 07 - 12 | C19: 0 | D19: 0 | E19: 0 | F19: 0 | G19: 0 | H19: 0
B20: Levels 13 - 16 | C20: 0 | D20: 0 | E20: 0 | F20: 0 | G20: 0 | H20: 0
B21: Other | C21: 0 | D21: 0 | E21: 0 | F21: 0 | G21: 0 | H21: 0
B22: Grand Total | C22: 0 | D22: 0 | E22: 0 | F22: 0 | G22: 0 | H22: 0

Sheet Data
AU2: Spending review topics…
AT3: 1 | AU3: Spending review topic 1 | CP3: =COUNTIF(Dataset[2024/25 Revised baseline],"<0") -> 1 | CQ3: =COUNTIF(Dataset[2025/26 Revised baseline],"<0") -> 1 | CR3: =COUNTIF(Dataset[2026/27 Revised baseline],"<0") -> 1
AT4: 2 | AU4: Spending review topic 2
AT5: 3 | AU5: Spending review topic 3
AT6: 4 | AU6: Spending review topic 4 | CP6: =MyYear5 -> 2024/25 | CQ6: =MyYear6 -> 2025/26 | CR6: =MyYear7 -> 2026/27
CN8: Baseline ceiling: | CP8: =INDEX(DeptCeiling,MATCH(MyVoteNo,VoteNoList,0),1) -> 51045578 | CQ8: =INDEX(DeptCeiling,MATCH(MyVoteNo,VoteNoList,0),2) -> 53004606 | CR8: =INDEX(DeptCeiling,MATCH(MyVoteNo,VoteNoList,0),3) -> 55432932
CN9: (Over)/Under | CP9: =CP8-SUM(Dataset[2024/25 Revised baseline]) -> 0 | CQ9: =CQ8-SUM(Dataset[2025/26 Revised baseline]) -> 0 | CR9: =CR8-SUM(Dataset[2026/27 Revised baseline]) -> 0
CN11: CoE ceiling: | CP11: =INDEX(CoECeiling,MATCH(MyVoteNo,VoteNoList,0),1) -> 31744679 | CQ11: =INDEX(CoECeiling,MATCH(MyVoteNo,VoteNoList,0),2) -> 33142192 | CR11: =INDEX(CoECeiling,MATCH(MyVoteNo,VoteNoList,0),3) -> 34660567
CN12: (Over)/Under | CP12: =CP11-SUMIF(Dataset[Econ3],"Compensation of employees",Dataset[2024/25 Revised baseline]) -> 0 | CQ12: =CQ11-SUMIF(Dataset[Econ3],"Compensation of employees",Dataset[2025/26 Revised baseline]) -> 0 | CR12: =CR11-SUMIF(Dataset[Econ3],"Compensation of employees",Dataset[2026/27 Revised baseline]) -> 0
AI15: 2019/20 | AJ15: 2020/21 | AK15: 2021/22 | AL15: 2022/23 Main appropriation | AM15: 2022/23 Adjusted appropriation | AN15: 2022/23 Revised estimate | AO15: 2022/23 Preliminary outcome | AP15: 2023/24 Baseline | AQ15: 2024/25 Baseline | AR15: 2025/26 Baseline | AS15: 2026/27 Baseline | AT15: 2024/25 From - Spending review Topic 1 | AU15: 2025/26 From - Spending review Topic 1 | AV15: 2026/27 From - Spending review Topic 1 | AW15: 2024/25 To - Spending review Topic 1 | AX15: 2025/26 To - Spending review Topic 1 | AY15: 2026/27 To - Spending review Topic 1 | AZ15: 2024/25 From - Spending review Topic 2 | BA15: 2025/26 From - Spending review Topic 2 | BB15: 2026/27 From - Spending review Topic 2 | BC15: 2024/25 To - Spending review Topic 2 | BD15: 2025/26 To - Spending review Topic 2 | BE15: 2026/27 To - Spending review Topic 2 | BF15: 2024/25 From - Spending review Topic 3 | BG15: 2025/26 From - Spending review Topic 3 | BH15: 2026/27 From - Spending review Topic 3 | BI15: 2024/25 To - Spending review Topic 3 | BJ15: 2025/26 To - Spending review Topic 3 | BK15: 2026/27 To - Spending review Topic 3 | BL15: 2024/25 From - Spending review Topic 4 | BM15: 2025/26 From - Spending review Topic 4 | BN15: 2026/27 From - Spending review Topic 4 | BO15: 2024/25 To - Spending review Topic 4 | BP15: 2025/26 To - Spending review Topic 4 | BQ15: 2026/27 To - Spending review Topic 4 | BR15: 2024/25 From - Other reallocations | BS15: 2025/26 From - Other reallocations | BT15: 2026/27 From - Other reallocations | BU15: 2024/25 To - Other reallocations | BV15: 2025/26 To - Other reallocations | BW15: 2026/27 To - Other reallocations | BX15: 2023/24 Reduction | BY15: 2024/25 Reduction | BZ15: 2025/26 Reduction | CA15: 2026/27 Reduction | CB15: 2024/25 From - Total | CC15: 2025/26 From - Total | CD15: 2026/27 From - Total | CE15: 2024/25 To - Total | CF15: 2025/26 To - Total | CG15: 2026/27 To - Total | CH15: 2024/25 Total decrease | CI15: 2025/26 Total decrease | CJ15: 2026/27 Total decrease | CK15: 2023/24 Total change | CL15: 2024/25 Total change | CM15: 2025/26 Total change | CN15: 2026/27 Total change | CO15: 2023/24 Revised baseline | CP15: 2024/25 Revised baseline | CQ15: 2025/26 Revised baseline | CR15: 2026/27 Revised baseline
AH16: Subtotal: | AI16: =SUBTOTAL(9,Dataset[2019/20]) -> 50229704 | AJ16: =SUBTOTAL(9,Dataset[2020/21]) -> 54086190 | AK16: =SUBTOTAL(9,Dataset[2021/22]) -> 48775914 | AL16: =SUBTOTAL(9,Dataset[2022/23 Main appropriation]) -> 49090089 | AM16: =SUBTOTAL(9,Dataset[2022/23 Adjusted appropriation]) -> 51601612 | AN16: =SUBTOTAL(9,Dataset[2022/23 Revised estimate]) -> 51601612 | AO16: =SUBTOTAL(9,Dataset[2022/23 Preliminary outcome]) -> 47498851 | AP16: =SUBTOTAL(9,Dataset[2023/24 Baseline]) -> 51124429 | AQ16: =SUBTOTAL(9,Dataset[2024/25 Baseline]) -> 51045578 | AR16: =SUBTOTAL(9,Dataset[2025/26 Baseline]) -> 53004606 | AS16: =SUBTOTAL(9,Dataset[2026/27 Baseline]) -> 55432932 | AT16: =SUBTOTAL(9,Dataset[2024/25 From - Spending review Topic 1]) -> 0 | AU16: =SUBTOTAL(9,Dataset[2025/26 From - Spending review Topic 1]) -> 0 | AV16: =SUBTOTAL(9,Dataset[2026/27 From - Spending review Topic 1]) -> 0 | AW16: =SUBTOTAL(9,Dataset[2024/25 To - Spending review Topic 1]) -> 0 | AX16: =SUBTOTAL(9,Dataset[2025/26 To - Spending review Topic 1]) -> 0 | AY16: =SUBTOTAL(9,Dataset[2026/27 To - Spending review Topic 1]) -> 0 | AZ16: =SUBTOTAL(9,Dataset[2024/25 From - Spending review Topic 2]) -> 0 | BA16: =SUBTOTAL(9,Dataset[2025/26 From - Spending review Topic 2]) -> 0 | BB16: =SUBTOTAL(9,Dataset[2026/27 From - Spending review Topic 2]) -> 0 | BC16: =SUBTOTAL(9,Dataset[2024/25 To - Spending review Topic 2]) -> 0 | BD16: =SUBTOTAL(9,Dataset[2025/26 To - Spending review Topic 2]) -> 0 | BE16: =SUBTOTAL(9,Dataset[2026/27 To - Spending review Topic 2]) -> 0 | BF16: =SUBTOTAL(9,Dataset[2024/25 From - Spending review Topic 3]) -> 0 | BG16: =SUBTOTAL(9,Dataset[2025/26 From - Spending review Topic 3]) -> 0 | BH16: =SUBTOTAL(9,Dataset[2026/27 From - Spending review Topic 3]) -> 0 | BI16: =SUBTOTAL(9,Dataset[2024/25 To - Spending review Topic 3]) -> 0 | BJ16: =SUBTOTAL(9,Dataset[2025/26 To - Spending review Topic 3]) -> 0 | BK16: =SUBTOTAL(9,Dataset[2026/27 To - Spending review Topic 3]) -> 0 | BL16: =SUBTOTAL(9,Dataset[2024/25 From - Spending review Topic 4]) -> 0 | BM16: =SUBTOTAL(9,Dataset[2025/26 From - Spending review Topic 4]) -> 0 | BN16: =SUBTOTAL(9,Dataset[2026/27 From - Spending review Topic 4]) -> 0 | BO16: =SUBTOTAL(9,Dataset[2024/25 To - Spending review Topic 4]) -> 0 | BP16: =SUBTOTAL(9,Dataset[2025/26 To - Spending review Topic 4]) -> 0 | BQ16: =SUBTOTAL(9,Dataset[2026/27 To - Spending review Topic 4]) -> 0 | BR16: =SUBTOTAL(9,Dataset[2024/25 From - Other reallocations]) -> 0 | BS16: =SUBTOTAL(9,Dataset[2025/26 From - Other reallocations]) -> 0 | BT16: =SUBTOTAL(9,Dataset[2026/27 From - Other reallocations]) -> 0 | BU16: =SUBTOTAL(9,Dataset[2024/25 To - Other reallocations]) -> 0 | BV16: =SUBTOTAL(9,Dataset[2025/26 To - Other reallocations]) -> 0 | BW16: =SUBTOTAL(9,Dataset[2026/27 To - Other reallocations]) -> 0 | BX16: =SUBTOTAL(9,Dataset[2023/24 Reduction]) -> 0 | BY16: =SUBTOTAL(9,Dataset[2024/25 Reduction]) -> 0 | BZ16: =SUBTOTAL(9,Dataset[2025/26 Reduction]) -> 0 | CA16: =SUBTOTAL(9,Dataset[2026/27 Reduction]) -> 0 | CB16: =SUBTOTAL(9,Dataset[2024/25 From - Total]) -> 0 | CC16: =SUBTOTAL(9,Dataset[2025/26 From - Total]) -> 0 | CD16: =SUBTOTAL(9,Dataset[2026/27 From - Total]) -> 0 | CE16: =SUBTOTAL(9,Dataset[2024/25 To - Total]) -> 0 | CF16: =SUBTOTAL(9,Dataset[2025/26 To - Total]) -> 0 | CG16: =SUBTOTAL(9,Dataset[2026/27 To - Total]) -> 0 | CH16: =SUBTOTAL(9,Dataset[2024/25 Total decrease]) -> 0 | CI16: =SUBTOTAL(9,Dataset[2025/26 Total decrease]) -> 0 | CJ16: =SUBTOTAL(9,Dataset[2026/27 Total decrease]) -> 0 | CK16: =SUBTOTAL(9,Dataset[2023/24 Total change]) -> 0 | CL16: =SUBTOTAL(9,Dataset[2024/25 Total change]) -> 0 | CM16: =SUBTOTAL(9,Dataset[2025/26 Total change]) -> 0 | CN16: =SUBTOTAL(9,Dataset[2026/27 Total change]) -> 0 | CO16: =SUBTOTAL(9,Dataset[2023/24 Revised baseline]) -> 51124429 | CP16: =SUBTOTAL(9,Dataset[2024/25 Revised baseline]) -> 51045578 | CQ16: =SUBTOTAL(9,Dataset[2025/26 Revised baseline]) -> 53004606 | CR16: =SUBTOTAL(9,Dataset[2026/27 Revised baseline]) -> 55432932
AT17: ="…"&SRTopic1 -> …Spending review topic 1 | AZ17: ="…"&SRTopic2 -> …Spending review topic 2 | BF17: ="…"&SRTopic3 -> …Spending review topic 3 | BL17: ="…"&SRTopic4 -> …Spending review topic 4 | BR17: …Reallocations other than spending reviews | BX17: …Reductions | CO17: …red shaded cells below indicate negative budgets.
A18: Combo_DoR | B18: Combo_Econ | C18: Budget Year | D18: Process | E18: Vote No. - N | F18: Programme No. - N | G18: Subprogramme No. - N | H18: Index - N | I18: Index - N2 | J18: Vote No. | K18: Programme No. | L18: Subprogramme No. | M18: Index | N18: Index2 | O18: UID | P18: Econ1_IDn | Q18: Econ2_IDn | R18: Econ3_IDn | S18: Econ4_IDn | T18: Econ5_IDn | U18: Econ_UID | V18: Province | W18: Department | X18: Programme | Y18: Subprogramme | Z18: Transfers and subsidies / Payments for financial assets detail | AA18: Econ1 | AB18: Econ2 | AC18: Econ3 | AD18: Econ4 | AE18: Econ5 | AF18: Function group | AG18: Technical group | AH18: DOR | AI18: 2019/20 | AJ18: 2020/21 | AK18: 2021/22 | AL18: 2022/23 Main appropriation | AM18: 2022/23 Adjusted appropriation | AN18: 2022/23 Revised estimate | AO18: 2022/23 Preliminary outcome | AP18: 2023/24 Baseline | AQ18: 2024/25 Baseline | AR18: 2025/26 Baseline | AS18: 2026/27 Baseline | AT18: 2024/25 From - Spending review Topic 1 | AU18: 2025/26 From - Spending review Topic 1 | AV18: 2026/27 From - Spending review Topic 1 | AW18: 2024/25 To - Spending review Topic 1 | AX18: 2025/26 To - Spending review Topic 1 | AY18: 2026/27 To - Spending review Topic 1 | AZ18: 2024/25 From - Spending review Topic 2 | BA18: 2025/26 From - Spending review Topic 2 | BB18: 2026/27 From - Spending review Topic 2 | BC18: 2024/25 To - Spending review Topic 2 | BD18: 2025/26 To - Spending review Topic 2 | BE18: 2026/27 To - Spending review Topic 2 | BF18: 2024/25 From - Spending review Topic 3 | BG18: 2025/26 From - Spending review Topic 3 | BH18: 2026/27 From - Spending review Topic 3 | BI18: 2024/25 To - Spending review Topic 3 | BJ18: 2025/26 To - Spending review Topic 3 | BK18: 2026/27 To - Spending review Topic 3 | BL18: 2024/25 From - Spending review Topic 4 | BM18: 2025/26 From - Spending review Topic 4 | BN18: 2026/27 From - Spending review Topic 4 | BO18: 2024/25 To - Spending review Topic 4 | BP18: 2025/26 To - Spending review Topic 4 | BQ18: 2026/27 To - Spending review Topic 4 | BR18: 2024/25 From - Other reallocations | BS18: 2025/26 From - Other reallocations | BT18: 2026/27 From - Other reallocations | BU18: 2024/25 To - Other reallocations | BV18: 2025/26 To - Other reallocations | BW18: 2026/27 To - Other reallocations | BX18: 2023/24 Reduction | BY18: 2024/25 Reduction | BZ18: 2025/26 Reduction | CA18: 2026/27 Reduction | CB18: 2024/25 From - Total | CC18: 2025/26 From - Total | CD18: 2026/27 From - Total | CE18: 2024/25 To - Total | CF18: 2025/26 To - Total | CG18: 2026/27 To - Total | CH18: 2024/25 Total decrease | CI18: 2025/26 Total decrease | CJ18: 2026/27 Total decrease | CK18: 2023/24 Total change | CL18: 2024/25 Total change | CM18: 2025/26 Total change | CN18: 2026/27 Total change | CO18: 2023/24 Revised baseline | CP18: 2024/25 Revised baseline | CQ18: 2025/26 Revised baseline | CR18: 2026/27 Revised baseline
A19: NAT|Non-transfer item | B19: 23|Salaries and wages | C19: 2024_25 | D19: MTEF2024 | E19: 23 | F19: 1 | G19: 1 | H19: 36055 | I19: 1 | J19: 23 | K19: 01 | L19: 01 | M19: 036055 | N19: 000001 | O19: 23|01|01 | P19: 01 | Q19: 01 | R19: 01 | S19: 01 | T19: 01 | U19: 01|01|01|01|01 | V19: National | W19: Defence | X19: Administration | Y19: Ministry | Z19: Non-transfer item | AA19: Current | AB19: Current payments | AC19: Compensation of employees | AD19: Salaries and wages | AE19: Salaries and wages | AF19: Peace and security | AG19: Defence and state security | AH19: NAT | AI19: 35979 | AJ19: 36355 | AK19: 38586 | AL19: 31561 | AM19: 32183 | AN19: 32183 | AO19: 28384 | AP19: 31715 | AQ19: 31810 | AR19: 35104 | AS19: 36712 | CB19: =Dataset[[#This Row],[2024/25 From - Spending review Topic 1]]+Dataset[[#This Row],[2024/25 From - Spending review Topic 2]]+Dataset[[#This Row],[2024/25 From - Spending review Topic 3]]+Dataset[[#This Row],[2024/25 From - Spending review Topic 4]]+Dataset[[#This Row],[2024/25 From - Other reallocations]] -> 0 | CC19: =Dataset[[#This Row],[2025/26 From - Spending review Topic 1]]+Dataset[[#This Row],[2025/26 From - Spending review Topic 2]]+Dataset[[#This Row],[2025/26 From - Spending review Topic 3]]+Dataset[[#This Row],[2025/26 From - Spending review Topic 4]]+Dataset[[#This Row],[2025/26 From - Other reallocations]] -> 0 | CD19: =Dataset[[#This Row],[2026/27 From - Spending review Topic 1]]+Dataset[[#This Row],[2026/27 From - Spending review Topic 2]]+Dataset[[#This Row],[2026/27 From - Spending review Topic 3]]+Dataset[[#This Row],[2026/27 From - Spending review Topic 4]]+Dataset[[#This Row],[2026/27 From - Other reallocations]] -> 0 | CE19: =Dataset[[#This Row],[2024/25 To - Spending review Topic 1]]+Dataset[[#This Row],[2024/25 To - Spending review Topic 2]]+Dataset[[#This Row],[2024/25 To - Spending review Topic 3]]+Dataset[[#This Row],[2024/25 To - Spending review Topic 4]]+Dataset[[#This Row],[2024/25 To - Other reallocations]] -> 0 | CF19: =Dataset[[#This Row],[2025/26 To - Spending review Topic 1]]+Dataset[[#This Row],[2025/26 To - Spending review Topic 2]]+Dataset[[#This Row],[2025/26 To - Spending review Topic 3]]+Dataset[[#This Row],[2025/26 To - Spending review Topic 4]]+Dataset[[#This Row],[2025/26 To - Other reallocations]] -> 0 | CG19: =Dataset[[#This Row],[2026/27 To - Spending review Topic 1]]+Dataset[[#This Row],[2026/27 To - Spending review Topic 2]]+Dataset[[#This Row],[2026/27 To - Spending review Topic 3]]+Dataset[[#This Row],[2026/27 To - Spending review Topic 4]]+Dataset[[#This Row],[2026/27 To - Other reallocations]] -> 0 | CH19: =Dataset[[#This Row],[2024/25 Reduction]]+Dataset[[#This Row],[2024/25 From - Total]] -> 0 | CI19: =Dataset[[#This Row],[2025/26 Reduction]]+Dataset[[#This Row],[2025/26 From - Total]] -> 0 | CJ19: =Dataset[[#This Row],[2026/27 Reduction]]+Dataset[[#This Row],[2026/27 From - Total]] -> 0 | CK19: =Dataset[[#This Row],[2023/24 Reduction]] -> 0 | CL19: =SUM(Dataset[[#This Row],[2024/25 Reduction]],Dataset[[#This Row],[2024/25 From - Total]],Dataset[[#This Row],[2024/25 To - Total]]) -> 0 | CM19: =SUM(Dataset[[#This Row],[2025/26 Reduction]],Dataset[[#This Row],[2025/26 From - Total]],Dataset[[#This Row],[2025/26 To - Total]]) -> 0 | CN19: =SUM(Dataset[[#This Row],[2026/27 Reduction]],Dataset[[#This Row],[2026/27 From - Total]],Dataset[[#This Row],[2026/27 To - Total]]) -> 0 | CO19: =Dataset[[#This Row],[2023/24 Baseline]]+Dataset[[#This Row],[2023/24 Total change]] -> 31715 | CP19: =Dataset[[#This Row],[2024/25 Baseline]]+Dataset[[#This Row],[2024/25 Total change]] -> 31810 | CQ19: =Dataset[[#This Row],[2025/26 Baseline]]+Dataset[[#This Row],[2025/26 Total change]] -> 35104 | CR19: =Dataset[[#This Row],[2026/27 Baseline]]+Dataset[[#This Row],[2026/27 Total change]] -> 36712
A20: NAT|Non-transfer item | B20: 23|Social contributions | C20: 2024_25 | D20: MTEF2024 | E20: 23 | F20: 1 | G20: 1 | H20: 36056 | I20: 2 | J20: 23 | K20: 01 | L20: 01 | M20: 036056 | N20: 000002 | O20: 23|01|01 | P20: 01 | Q20: 01 | R20: 01 | S20: 02 | T20: 02 | U20: 01|01|01|02|02 | V20: National | W20: Defence | X20: Administration | Y20: Ministry | Z20: Non-transfer item | AA20: Current | AB20: Current payments | AC20: Compensation of employees | AD20: Social contributions | AE20: Social contributions | AF20: Peace and security | AG20: Defence and state security | AH20: NAT | AI20: 3625 | AJ20: 3509 | AK20: 3574 | AL20: 3427 | AM20: 3427 | AN20: 3427 | AO20: 2845 | AP20: 3882 | AQ20: 5355 | AR20: 3837 | AS20: 4013 | CB20: =Dataset[[#This Row],[2024/25 From - Spending review Topic 1]]+Dataset[[#This Row],[2024/25 From - Spending review Topic 2]]+Dataset[[#This Row],[2024/25 From - Spending review Topic 3]]+Dataset[[#This Row],[2024/25 From - Spending review Topic 4]]+Dataset[[#This Row],[2024/25 From - Other reallocations]] -> 0 | CC20: =Dataset[[#This Row],[2025/26 From - Spending review Topic 1]]+Dataset[[#This Row],[2025/26 From - Spending review Topic 2]]+Dataset[[#This Row],[2025/26 From - Spending review Topic 3]]+Dataset[[#This Row],[2025/26 From - Spending review Topic 4]]+Dataset[[#This Row],[2025/26 From - Other reallocations]] -> 0 | CD20: =Dataset[[#This Row],[2026/27 From - Spending review Topic 1]]+Dataset[[#This Row],[2026/27 From - Spending review Topic 2]]+Dataset[[#This Row],[2026/27 From - Spending review Topic 3]]+Dataset[[#This Row],[2026/27 From - Spending review Topic 4]]+Dataset[[#This Row],[2026/27 From - Other reallocations]] -> 0 | CE20: =Dataset[[#This Row],[2024/25 To - Spending review Topic 1]]+Dataset[[#This Row],[2024/25 To - Spending review Topic 2]]+Dataset[[#This Row],[2024/25 To - Spending review Topic 3]]+Dataset[[#This Row],[2024/25 To - Spending review Topic 4]]+Dataset[[#This Row],[2024/25 To - Other reallocations]] -> 0 | CF20: =Dataset[[#This Row],[2025/26 To - Spending review Topic 1]]+Dataset[[#This Row],[2025/26 To - Spending review Topic 2]]+Dataset[[#This Row],[2025/26 To - Spending review Topic 3]]+Dataset[[#This Row],[2025/26 To - Spending review Topic 4]]+Dataset[[#This Row],[2025/26 To - Other reallocations]] -> 0 | CG20: =Dataset[[#This Row],[2026/27 To - Spending review Topic 1]]+Dataset[[#This Row],[2026/27 To - Spending review Topic 2]]+Dataset[[#This Row],[2026/27 To - Spending review Topic 3]]+Dataset[[#This Row],[2026/27 To - Spending review Topic 4]]+Dataset[[#This Row],[2026/27 To - Other reallocations]] -> 0 | CH20: =Dataset[[#This Row],[2024/25 Reduction]]+Dataset[[#This Row],[2024/25 From - Total]] -> 0 | CI20: =Dataset[[#This Row],[2025/26 Reduction]]+Dataset[[#This Row],[2025/26 From - Total]] -> 0 | CJ20: =Dataset[[#This Row],[2026/27 Reduction]]+Dataset[[#This Row],[2026/27 From - Total]] -> 0 | CK20: =Dataset[[#This Row],[2023/24 Reduction]] -> 0 | CL20: =SUM(Dataset[[#This Row],[2024/25 Reduction]],Dataset[[#This Row],[2024/25 From - Total]],Dataset[[#This Row],[2024/25 To - Total]]) -> 0 | CM20: =SUM(Dataset[[#This Row],[2025/26 Reduction]],Dataset[[#This Row],[2025/26 From - Total]],Dataset[[#This Row],[2025/26 To - Total]]) -> 0 | CN20: =SUM(Dataset[[#This Row],[2026/27 Reduction]],Dataset[[#This Row],[2026/27 From - Total]],Dataset[[#This Row],[2026/27 To - Total]]) -> 0 | CO20: =Dataset[[#This Row],[2023/24 Baseline]]+Dataset[[#This Row],[2023/24 Total change]] -> 3882 | CP20: =Dataset[[#This Row],[2024/25 Baseline]]+Dataset[[#This Row],[2024/25 Total change]] -> 5355 | CQ20: =Dataset[[#This Row],[2025/26 Baseline]]+Dataset[[#This Row],[2025/26 Total change]] -> 3837 | CR20: =Dataset[[#This Row],[2026/27 Baseline]]+Dataset[[#This Row],[2026/27 Total change]] -> 4013
A21: NAT|Non-transfer item | B21: 23|Administrative fees | C21: 2024_25 | D21: MTEF2024 | E21: 23 | F21: 1 | G21: 1 | H21: 36057 | I21: 3 | J21: 23 | K21: 01 | L21: 01 | M21: 036057 | N21: 000003 | O21: 23|01|01 | P21: 01 | Q21: 01 | R21: 02 | S21: 03 | T21: 03 | U21: 01|01|02|03|03 | V21: National | W21: Defence | X21: Administration | Y21: Ministry | Z21: Non-transfer item | AA21: Current | AB21: Current payments | AC21: Goods and services | AD21: Administrative fees | AE21: Administrative fees | AF21: Peace and security | AG21: Defence and state security | AH21: NAT | AI21: 0 | AJ21: 0 | AK21: 0 | AL21: 0 | AM21: 0 | AN21: 0 | AO21: 0 | AP21: 0 | AQ21: 0 | AR21: 0 | AS21: 0 | CB21: =Dataset[[#This Row],[2024/25 From - Spending review Topic 1]]+Dataset[[#This Row],[2024/25 From - Spending review Topic 2]]+Dataset[[#This Row],[2024/25 From - Spending review Topic 3]]+Dataset[[#This Row],[2024/25 From - Spending review Topic 4]]+Dataset[[#This Row],[2024/25 From - Other reallocations]] -> 0 | CC21: =Dataset[[#This Row],[2025/26 From - Spending review Topic 1]]+Dataset[[#This Row],[2025/26 From - Spending review Topic 2]]+Dataset[[#This Row],[2025/26 From - Spending review Topic 3]]+Dataset[[#This Row],[2025/26 From - Spending review Topic 4]]+Dataset[[#This Row],[2025/26 From - Other reallocations]] -> 0 | CD21: =Dataset[[#This Row],[2026/27 From - Spending review Topic 1]]+Dataset[[#This Row],[2026/27 From - Spending review Topic 2]]+Dataset[[#This Row],[2026/27 From - Spending review Topic 3]]+Dataset[[#This Row],[2026/27 From - Spending review Topic 4]]+Dataset[[#This Row],[2026/27 From - Other reallocations]] -> 0 | CE21: =Dataset[[#This Row],[2024/25 To - Spending review Topic 1]]+Dataset[[#This Row],[2024/25 To - Spending review Topic 2]]+Dataset[[#This Row],[2024/25 To - Spending review Topic 3]]+Dataset[[#This Row],[2024/25 To - Spending review Topic 4]]+Dataset[[#This Row],[2024/25 To - Other reallocations]] -> 0 | CF21: =Dataset[[#This Row],[2025/26 To - Spending review Topic 1]]+Dataset[[#This Row],[2025/26 To - Spending review Topic 2]]+Dataset[[#This Row],[2025/26 To - Spending review Topic 3]]+Dataset[[#This Row],[2025/26 To - Spending review Topic 4]]+Dataset[[#This Row],[2025/26 To - Other reallocations]] -> 0 | CG21: =Dataset[[#This Row],[2026/27 To - Spending review Topic 1]]+Dataset[[#This Row],[2026/27 To - Spending review Topic 2]]+Dataset[[#This Row],[2026/27 To - Spending review Topic 3]]+Dataset[[#This Row],[2026/27 To - Spending review Topic 4]]+Dataset[[#This Row],[2026/27 To - Other reallocations]] -> 0 | CH21: =Dataset[[#This Row],[2024/25 Reduction]]+Dataset[[#This Row],[2024/25 From - Total]] -> 0 | CI21: =Dataset[[#This Row],[2025/26 Reduction]]+Dataset[[#This Row],[2025/26 From - Total]] -> 0 | CJ21: =Dataset[[#This Row],[2026/27 Reduction]]+Dataset[[#This Row],[2026/27 From - Total]] -> 0 | CK21: =Dataset[[#This Row],[2023/24 Reduction]] -> 0 | CL21: =SUM(Dataset[[#This Row],[2024/25 Reduction]],Dataset[[#This Row],[2024/25 From - Total]],Dataset[[#This Row],[2024/25 To - Total]]) -> 0 | CM21: =SUM(Dataset[[#This Row],[2025/26 Reduction]],Dataset[[#This Row],[2025/26 From - Total]],Dataset[[#This Row],[2025/26 To - Total]]) -> 0 | CN21: =SUM(Dataset[[#This Row],[2026/27 Reduction]],Dataset[[#This Row],[2026/27 From - Total]],Dataset[[#This Row],[2026/27 To - Total]]) -> 0 | CO21: =Dataset[[#This Row],[2023/24 Baseline]]+Dataset[[#This Row],[2023/24 Total change]] -> 0 | CP21: =Dataset[[#This Row],[2024/25 Baseline]]+Dataset[[#This Row],[2024/25 Total change]] -> 0 | CQ21: =Dataset[[#This Row],[2025/26 Baseline]]+Dataset[[#This Row],[2025/26 Total change]] -> 0 | CR21: =Dataset[[#This Row],[2026/27 Baseline]]+Dataset[[#This Row],[2026/27 Total change]] -> 0
A22: NAT|Non-transfer item | B22: 23|Advertising | C22: 2024_25 | D22: MTEF2024 | E22: 23 | F22: 1 | G22: 1 | H22: 36058 | I22: 4 | J22: 23 | K22: 01 | L22: 01 | M22: 036058 | N22: 000004 | O22: 23|01|01 | P22: 01 | Q22: 01 | R22: 02 | S22: 04 | T22: 04 | U22: 01|01|02|04|04 | V22: National | W22: Defence | X22: Administration | Y22: Ministry | Z22: Non-transfer item | AA22: Current | AB22: Current payments | AC22: Goods and services | AD22: Advertising | AE22: Advertising | AF22: Peace and security | AG22: Defence and state security | AH22: NAT | AI22: 31 | AJ22: 0 | AK22: 0 | AL22: 88 | AM22: 88 | AN22: 88 | AO22: 10 | AP22: 77 | AQ22: 84 | AR22: 93 | AS22: 97 | CB22: =Dataset[[#This Row],[2024/25 From - Spending review Topic 1]]+Dataset[[#This Row],[2024/25 From - Spending review Topic 2]]+Dataset[[#This Row],[2024/25 From - Spending review Topic 3]]+Dataset[[#This Row],[2024/25 From - Spending review Topic 4]]+Dataset[[#This Row],[2024/25 From - Other reallocations]] -> 0 | CC22: =Dataset[[#This Row],[2025/26 From - Spending review Topic 1]]+Dataset[[#This Row],[2025/26 From - Spending review Topic 2]]+Dataset[[#This Row],[2025/26 From - Spending review Topic 3]]+Dataset[[#This Row],[2025/26 From - Spending review Topic 4]]+Dataset[[#This Row],[2025/26 From - Other reallocations]] -> 0 | CD22: =Dataset[[#This Row],[2026/27 From - Spending review Topic 1]]+Dataset[[#This Row],[2026/27 From - Spending review Topic 2]]+Dataset[[#This Row],[2026/27 From - Spending review Topic 3]]+Dataset[[#This Row],[2026/27 From - Spending review Topic 4]]+Dataset[[#This Row],[2026/27 From - Other reallocations]] -> 0 | CE22: =Dataset[[#This Row],[2024/25 To - Spending review Topic 1]]+Dataset[[#This Row],[2024/25 To - Spending review Topic 2]]+Dataset[[#This Row],[2024/25 To - Spending review Topic 3]]+Dataset[[#This Row],[2024/25 To - Spending review Topic 4]]+Dataset[[#This Row],[2024/25 To - Other reallocations]] -> 0 | CF22: =Dataset[[#This Row],[2025/26 To - Spending review Topic 1]]+Dataset[[#This Row],[2025/26 To - Spending review Topic 2]]+Dataset[[#This Row],[2025/26 To - Spending review Topic 3]]+Dataset[[#This Row],[2025/26 To - Spending review Topic 4]]+Dataset[[#This Row],[2025/26 To - Other reallocations]] -> 0 | CG22: =Dataset[[#This Row],[2026/27 To - Spending review Topic 1]]+Dataset[[#This Row],[2026/27 To - Spending review Topic 2]]+Dataset[[#This Row],[2026/27 To - Spending review Topic 3]]+Dataset[[#This Row],[2026/27 To - Spending review Topic 4]]+Dataset[[#This Row],[2026/27 To - Other reallocations]] -> 0 | CH22: =Dataset[[#This Row],[2024/25 Reduction]]+Dataset[[#This Row],[2024/25 From - Total]] -> 0 | CI22: =Dataset[[#This Row],[2025/26 Reduction]]+Dataset[[#This Row],[2025/26 From - Total]] -> 0 | CJ22: =Dataset[[#This Row],[2026/27 Reduction]]+Dataset[[#This Row],[2026/27 From - Total]] -> 0 | CK22: =Dataset[[#This Row],[2023/24 Reduction]] -> 0 | CL22: =SUM(Dataset[[#This Row],[2024/25 Reduction]],Dataset[[#This Row],[2024/25 From - Total]],Dataset[[#This Row],[2024/25 To - Total]]) -> 0 | CM22: =SUM(Dataset[[#This Row],[2025/26 Reduction]],Dataset[[#This Row],[2025/26 From - Total]],Dataset[[#This Row],[2025/26 To - Total]]) -> 0 | CN22: =SUM(Dataset[[#This Row],[2026/27 Reduction]],Dataset[[#This Row],[2026/27 From - Total]],Dataset[[#This Row],[2026/27 To - Total]]) -> 0 | CO22: =Dataset[[#This Row],[2023/24 Baseline]]+Dataset[[#This Row],[2023/24 Total change]] -> 77 | CP22: =Dataset[[#This Row],[2024/25 Baseline]]+Dataset[[#This Row],[2024/25 Total change]] -> 84 | CQ22: =Dataset[[#This Row],[2025/26 Baseline]]+Dataset[[#This Row],[2025/26 Total change]] -> 93 | CR22: =Dataset[[#This Row],[2026/27 Baseline]]+Dataset[[#This Row],[2026/27 Total change]] -> 97
A23: NAT|Non-transfer item | B23: 23|Minor assets | C23: 2024_25 | D23: MTEF2024 | E23: 23 | F23: 1 | G23: 1 | H23: 36059 | I23: 5 | J23: 23 | K23: 01 | L23: 01 | M23: 036059 | N23: 000005 | O23: 23|01|01 | P23: 01 | Q23: 01 | R23: 02 | S23: 05 | T23: 05 | U23: 01|01|02|05|05 | V23: National | W23: Defence | X23: Administration | Y23: Ministry | Z23: Non-transfer item | AA23: Current | AB23: Current payments | AC23: Goods and services | AD23: Minor assets | AE23: Minor assets | AF23: Peace and security | AG23: Defence and state security | AH23: NAT | AI23: 60 | AJ23: 49 | AK23: 94 | AL23: 81 | AM23: 81 | AN23: 81 | AO23: 43 | AP23: 1030 | AQ23: 1134 | AR23: 1245 | AS23: 1302 | CB23: =Dataset[[#This Row],[2024/25 From - Spending review Topic 1]]+Dataset[[#This Row],[2024/25 From - Spending review Topic 2]]+Dataset[[#This Row],[2024/25 From - Spending review Topic 3]]+Dataset[[#This Row],[2024/25 From - Spending review Topic 4]]+Dataset[[#This Row],[2024/25 From - Other reallocations]] -> 0 | CC23: =Dataset[[#This Row],[2025/26 From - Spending review Topic 1]]+Dataset[[#This Row],[2025/26 From - Spending review Topic 2]]+Dataset[[#This Row],[2025/26 From - Spending review Topic 3]]+Dataset[[#This Row],[2025/26 From - Spending review Topic 4]]+Dataset[[#This Row],[2025/26 From - Other reallocations]] -> 0 | CD23: =Dataset[[#This Row],[2026/27 From - Spending review Topic 1]]+Dataset[[#This Row],[2026/27 From - Spending review Topic 2]]+Dataset[[#This Row],[2026/27 From - Spending review Topic 3]]+Dataset[[#This Row],[2026/27 From - Spending review Topic 4]]+Dataset[[#This Row],[2026/27 From - Other reallocations]] -> 0 | CE23: =Dataset[[#This Row],[2024/25 To - Spending review Topic 1]]+Dataset[[#This Row],[2024/25 To - Spending review Topic 2]]+Dataset[[#This Row],[2024/25 To - Spending review Topic 3]]+Dataset[[#This Row],[2024/25 To - Spending review Topic 4]]+Dataset[[#This Row],[2024/25 To - Other reallocations]] -> 0 | CF23: =Dataset[[#This Row],[2025/26 To - Spending review Topic 1]]+Dataset[[#This Row],[2025/26 To - Spending review Topic 2]]+Dataset[[#This Row],[2025/26 To - Spending review Topic 3]]+Dataset[[#This Row],[2025/26 To - Spending review Topic 4]]+Dataset[[#This Row],[2025/26 To - Other reallocations]] -> 0 | CG23: =Dataset[[#This Row],[2026/27 To - Spending review Topic 1]]+Dataset[[#This Row],[2026/27 To - Spending review Topic 2]]+Dataset[[#This Row],[2026/27 To - Spending review Topic 3]]+Dataset[[#This Row],[2026/27 To - Spending review Topic 4]]+Dataset[[#This Row],[2026/27 To - Other reallocations]] -> 0 | CH23: =Dataset[[#This Row],[2024/25 Reduction]]+Dataset[[#This Row],[2024/25 From - Total]] -> 0 | CI23: =Dataset[[#This Row],[2025/26 Reduction]]+Dataset[[#This Row],[2025/26 From - Total]] -> 0 | CJ23: =Dataset[[#This Row],[2026/27 Reduction]]+Dataset[[#This Row],[2026/27 From - Total]] -> 0 | CK23: =Dataset[[#This Row],[2023/24 Reduction]] -> 0 | CL23: =SUM(Dataset[[#This Row],[2024/25 Reduction]],Dataset[[#This Row],[2024/25 From - Total]],Dataset[[#This Row],[2024/25 To - Total]]) -> 0 | CM23: =SUM(Dataset[[#This Row],[2025/26 Reduction]],Dataset[[#This Row],[2025/26 From - Total]],Dataset[[#This Row],[2025/26 To - Total]]) -> 0 | CN23: =SUM(Dataset[[#This Row],[2026/27 Reduction]],Dataset[[#This Row],[2026/27 From - Total]],Dataset[[#This Row],[2026/27 To - Total]]) -> 0 | CO23: =Dataset[[#This Row],[2023/24 Baseline]]+Dataset[[#This Row],[2023/24 Total change]] -> 1030 | CP23: =Dataset[[#This Row],[2024/25 Baseline]]+Dataset[[#This Row],[2024/25 Total change]] -> 1134 | CQ23: =Dataset[[#This Row],[2025/26 Baseline]]+Dataset[[#This Row],[2025/26 Total change]] -> 1245 | CR23: =Dataset[[#This Row],[2026/27 Baseline]]+Dataset[[#This Row],[2026/27 Total change]] -> 1302
A24: NAT|Non-transfer item | B24: 23|Audit costs: External | C24: 2024_25 | D24: MTEF2024 | E24: 23 | F24: 1 | G24: 1 | H24: 36060 | I24: 6 | J24: 23 | K24: 01 | L24: 01 | M24: 036060 | N24: 000006 | O24: 23|01|01 | P24: 01 | Q24: 01 | R24: 02 | S24: 06 | T24: 06 | U24: 01|01|02|06|06 | V24: National | W24: Defence | X24: Administration | Y24: Ministry | Z24: Non-transfer item | AA24: Current | AB24: Current payments | AC24: Goods and services | AD24: Audit costs: External | AE24: Audit costs: External | AF24: Peace and security | AG24: Defence and state security | AH24: NAT | AI24: 0 | AJ24: 0 | AK24: 0 | AL24: 0 | AM24: 0 | AN24: 0 | AO24: 0 | AP24: 0 | AQ24: 0 | AR24: 0 | AS24: 0 | CB24: =Dataset[[#This Row],[2024/25 From - Spending review Topic 1]]+Dataset[[#This Row],[2024/25 From - Spending review Topic 2]]+Dataset[[#This Row],[2024/25 From - Spending review Topic 3]]+Dataset[[#This Row],[2024/25 From - Spending review Topic 4]]+Dataset[[#This Row],[2024/25 From - Other reallocations]] -> 0 | CC24: =Dataset[[#This Row],[2025/26 From - Spending review Topic 1]]+Dataset[[#This Row],[2025/26 From - Spending review Topic 2]]+Dataset[[#This Row],[2025/26 From - Spending review Topic 3]]+Dataset[[#This Row],[2025/26 From - Spending review Topic 4]]+Dataset[[#This Row],[2025/26 From - Other reallocations]] -> 0 | CD24: =Dataset[[#This Row],[2026/27 From - Spending review Topic 1]]+Dataset[[#This Row],[2026/27 From - Spending review Topic 2]]+Dataset[[#This Row],[2026/27 From - Spending review Topic 3]]+Dataset[[#This Row],[2026/27 From - Spending review Topic 4]]+Dataset[[#This Row],[2026/27 From - Other reallocations]] -> 0 | CE24: =Dataset[[#This Row],[2024/25 To - Spending review Topic 1]]+Dataset[[#This Row],[2024/25 To - Spending review Topic 2]]+Dataset[[#This Row],[2024/25 To - Spending review Topic 3]]+Dataset[[#This Row],[2024/25 To - Spending review Topic 4]]+Dataset[[#This Row],[2024/25 To - Other reallocations]] -> 0 | CF24: =Dataset[[#This Row],[2025/26 To - Spending review Topic 1]]+Dataset[[#This Row],[2025/26 To - Spending review Topic 2]]+Dataset[[#This Row],[2025/26 To - Spending review Topic 3]]+Dataset[[#This Row],[2025/26 To - Spending review Topic 4]]+Dataset[[#This Row],[2025/26 To - Other reallocations]] -> 0 | CG24: =Dataset[[#This Row],[2026/27 To - Spending review Topic 1]]+Dataset[[#This Row],[2026/27 To - Spending review Topic 2]]+Dataset[[#This Row],[2026/27 To - Spending review Topic 3]]+Dataset[[#This Row],[2026/27 To - Spending review Topic 4]]+Dataset[[#This Row],[2026/27 To - Other reallocations]] -> 0 | CH24: =Dataset[[#This Row],[2024/25 Reduction]]+Dataset[[#This Row],[2024/25 From - Total]] -> 0 | CI24: =Dataset[[#This Row],[2025/26 Reduction]]+Dataset[[#This Row],[2025/26 From - Total]] -> 0 | CJ24: =Dataset[[#This Row],[2026/27 Reduction]]+Dataset[[#This Row],[2026/27 From - Total]] -> 0 | CK24: =Dataset[[#This Row],[2023/24 Reduction]] -> 0 | CL24: =SUM(Dataset[[#This Row],[2024/25 Reduction]],Dataset[[#This Row],[2024/25 From - Total]],Dataset[[#This Row],[2024/25 To - Total]]) -> 0 | CM24: =SUM(Dataset[[#This Row],[2025/26 Reduction]],Dataset[[#This Row],[2025/26 From - Total]],Dataset[[#This Row],[2025/26 To - Total]]) -> 0 | CN24: =SUM(Dataset[[#This Row],[2026/27 Reduction]],Dataset[[#This Row],[2026/27 From - Total]],Dataset[[#This Row],[2026/27 To - Total]]) -> 0 | CO24: =Dataset[[#This Row],[2023/24 Baseline]]+Dataset[[#This Row],[2023/24 Total change]] -> 0 | CP24: =Dataset[[#This Row],[2024/25 Baseline]]+Dataset[[#This Row],[2024/25 Total change]] -> 0 | CQ24: =Dataset[[#This Row],[2025/26 Baseline]]+Dataset[[#This Row],[2025/26 Total change]] -> 0 | CR24: =Dataset[[#This Row],[2026/27 Baseline]]+Dataset[[#This Row],[2026/27 Total change]] -> 0
A25: NAT|Non-transfer item | B25: 23|Bursaries: Employees | C25: 2024_25 | D25: MTEF2024 | E25: 23 | F25: 1 | G25: 1 | H25: 36061 | I25: 7 | J25: 23 | K25: 01 | L25: 01 | M25: 036061 | N25: 000007 | O25: 23|01|01 | P25: 01 | Q25: 01 | R25: 02 | S25: 07 | T25: 07 | U25: 01|01|02|07|07 | V25: National | W25: Defence | X25: Administration | Y25: Ministry | Z25: Non-transfer item | AA25: Current | AB25: Current payments | AC25: Goods and services | AD25: Bursaries: Employees | AE25: Bursaries: Employees | AF25: Peace and security | AG25: Defence and state security | AH25: NAT | AI25: 0 | AJ25: 0 | AK25: 0 | AL25: 0 | AM25: 0 | AN25: 0 | AO25: 0 | AP25: 0 | AQ25: 0 | AR25: 0 | AS25: 0 | CB25: =Dataset[[#This Row],[2024/25 From - Spending review Topic 1]]+Dataset[[#This Row],[2024/25 From - Spending review Topic 2]]+Dataset[[#This Row],[2024/25 From - Spending review Topic 3]]+Dataset[[#This Row],[2024/25 From - Spending review Topic 4]]+Dataset[[#This Row],[2024/25 From - Other reallocations]] -> 0 | CC25: =Dataset[[#This Row],[2025/26 From - Spending review Topic 1]]+Dataset[[#This Row],[2025/26 From - Spending review Topic 2]]+Dataset[[#This Row],[2025/26 From - Spending review Topic 3]]+Dataset[[#This Row],[2025/26 From - Spending review Topic 4]]+Dataset[[#This Row],[2025/26 From - Other reallocations]] -> 0 | CD25: =Dataset[[#This Row],[2026/27 From - Spending review Topic 1]]+Dataset[[#This Row],[2026/27 From - Spending review Topic 2]]+Dataset[[#This Row],[2026/27 From - Spending review Topic 3]]+Dataset[[#This Row],[2026/27 From - Spending review Topic 4]]+Dataset[[#This Row],[2026/27 From - Other reallocations]] -> 0 | CE25: =Dataset[[#This Row],[2024/25 To - Spending review Topic 1]]+Dataset[[#This Row],[2024/25 To - Spending review Topic 2]]+Dataset[[#This Row],[2024/25 To - Spending review Topic 3]]+Dataset[[#This Row],[2024/25 To - Spending review Topic 4]]+Dataset[[#This Row],[2024/25 To - Other reallocations]] -> 0 | CF25: =Dataset[[#This Row],[2025/26 To - Spending review Topic 1]]+Dataset[[#This Row],[2025/26 To - Spending review Topic 2]]+Dataset[[#This Row],[2025/26 To - Spending review Topic 3]]+Dataset[[#This Row],[2025/26 To - Spending review Topic 4]]+Dataset[[#This Row],[2025/26 To - Other reallocations]] -> 0 | CG25: =Dataset[[#This Row],[2026/27 To - Spending review Topic 1]]+Dataset[[#This Row],[2026/27 To - Spending review Topic 2]]+Dataset[[#This Row],[2026/27 To - Spending review Topic 3]]+Dataset[[#This Row],[2026/27 To - Spending review Topic 4]]+Dataset[[#This Row],[2026/27 To - Other reallocations]] -> 0 | CH25: =Dataset[[#This Row],[2024/25 Reduction]]+Dataset[[#This Row],[2024/25 From - Total]] -> 0 | CI25: =Dataset[[#This Row],[2025/26 Reduction]]+Dataset[[#This Row],[2025/26 From - Total]] -> 0 | CJ25: =Dataset[[#This Row],[2026/27 Reduction]]+Dataset[[#This Row],[2026/27 From - Total]] -> 0 | CK25: =Dataset[[#This Row],[2023/24 Reduction]] -> 0 | CL25: =SUM(Dataset[[#This Row],[2024/25 Reduction]],Dataset[[#This Row],[2024/25 From - Total]],Dataset[[#This Row],[2024/25 To - Total]]) -> 0 | CM25: =SUM(Dataset[[#This Row],[2025/26 Reduction]],Dataset[[#This Row],[2025/26 From - Total]],Dataset[[#This Row],[2025/26 To - Total]]) -> 0 | CN25: =SUM(Dataset[[#This Row],[2026/27 Reduction]],Dataset[[#This Row],[2026/27 From - Total]],Dataset[[#This Row],[2026/27 To - Total]]) -> 0 | CO25: =Dataset[[#This Row],[2023/24 Baseline]]+Dataset[[#This Row],[2023/24 Total change]] -> 0 | CP25: =Dataset[[#This Row],[2024/25 Baseline]]+Dataset[[#This Row],[2024/25 Total change]] -> 0 | CQ25: =Dataset[[#This Row],[2025/26 Baseline]]+Dataset[[#This Row],[2025/26 Total change]] -> 0 | CR25: =Dataset[[#This Row],[2026/27 Baseline]]+Dataset[[#This Row],[2026/27 Total change]] -> 0
A26: NAT|Non-transfer item | B26: 23|Catering: Departmental activities | C26: 2024_25 | D26: MTEF2024 | E26: 23 | F26: 1 | G26: 1 | H26: 36062 | I26: 8 | J26: 23 | K26: 01 | L26: 01 | M26: 036062 | N26: 000008 | O26: 23|01|01 | P26: 01 | Q26: 01 | R26: 02 | S26: 08 | T26: 08 | U26: 01|01|02|08|08 | V26: National | W26: Defence | X26: Administration | Y26: Ministry | Z26: Non-transfer item | AA26: Current | AB26: Current payments | AC26: Goods and services | AD26: Catering: Departmental activities | AE26: Catering: Departmental activities | AF26: Peace and security | AG26: Defence and state security | AH26: NAT | AI26: 4 | AJ26: 0 | AK26: 73 | AL26: 117 | AM26: 117 | AN26: 117 | AO26: 22 | AP26: 116 | AQ26: 128 | AR26: 141 | AS26: 147 | CB26: =Dataset[[#This Row],[2024/25 From - Spending review Topic 1]]+Dataset[[#This Row],[2024/25 From - Spending review Topic 2]]+Dataset[[#This Row],[2024/25 From - Spending review Topic 3]]+Dataset[[#This Row],[2024/25 From - Spending review Topic 4]]+Dataset[[#This Row],[2024/25 From - Other reallocations]] -> 0 | CC26: =Dataset[[#This Row],[2025/26 From - Spending review Topic 1]]+Dataset[[#This Row],[2025/26 From - Spending review Topic 2]]+Dataset[[#This Row],[2025/26 From - Spending review Topic 3]]+Dataset[[#This Row],[2025/26 From - Spending review Topic 4]]+Dataset[[#This Row],[2025/26 From - Other reallocations]] -> 0 | CD26: =Dataset[[#This Row],[2026/27 From - Spending review Topic 1]]+Dataset[[#This Row],[2026/27 From - Spending review Topic 2]]+Dataset[[#This Row],[2026/27 From - Spending review Topic 3]]+Dataset[[#This Row],[2026/27 From - Spending review Topic 4]]+Dataset[[#This Row],[2026/27 From - Other reallocations]] -> 0 | CE26: =Dataset[[#This Row],[2024/25 To - Spending review Topic 1]]+Dataset[[#This Row],[2024/25 To - Spending review Topic 2]]+Dataset[[#This Row],[2024/25 To - Spending review Topic 3]]+Dataset[[#This Row],[2024/25 To - Spending review Topic 4]]+Dataset[[#This Row],[2024/25 To - Other reallocations]] -> 0 | CF26: =Dataset[[#This Row],[2025/26 To - Spending review Topic 1]]+Dataset[[#This Row],[2025/26 To - Spending review Topic 2]]+Dataset[[#This Row],[2025/26 To - Spending review Topic 3]]+Dataset[[#This Row],[2025/26 To - Spending review Topic 4]]+Dataset[[#This Row],[2025/26 To - Other reallocations]] -> 0 | CG26: =Dataset[[#This Row],[2026/27 To - Spending review Topic 1]]+Dataset[[#This Row],[2026/27 To - Spending review Topic 2]]+Dataset[[#This Row],[2026/27 To - Spending review Topic 3]]+Dataset[[#This Row],[2026/27 To - Spending review Topic 4]]+Dataset[[#This Row],[2026/27 To - Other reallocations]] -> 0 | CH26: =Dataset[[#This Row],[2024/25 Reduction]]+Dataset[[#This Row],[2024/25 From - Total]] -> 0 | CI26: =Dataset[[#This Row],[2025/26 Reduction]]+Dataset[[#This Row],[2025/26 From - Total]] -> 0 | CJ26: =Dataset[[#This Row],[2026/27 Reduction]]+Dataset[[#This Row],[2026/27 From - Total]] -> 0 | CK26: =Dataset[[#This Row],[2023/24 Reduction]] -> 0 | CL26: =SUM(Dataset[[#This Row],[2024/25 Reduction]],Dataset[[#This Row],[2024/25 From - Total]],Dataset[[#This Row],[2024/25 To - Total]]) -> 0 | CM26: =SUM(Dataset[[#This Row],[2025/26 Reduction]],Dataset[[#This Row],[2025/26 From - Total]],Dataset[[#This Row],[2025/26 To - Total]]) -> 0 | CN26: =SUM(Dataset[[#This Row],[2026/27 Reduction]],Dataset[[#This Row],[2026/27 From - Total]],Dataset[[#This Row],[2026/27 To - Total]]) -> 0 | CO26: =Dataset[[#This Row],[2023/24 Baseline]]+Dataset[[#This Row],[2023/24 Total change]] -> 116 | CP26: =Dataset[[#This Row],[2024/25 Baseline]]+Dataset[[#This Row],[2024/25 Total change]] -> 128 | CQ26: =Dataset[[#This Row],[2025/26 Baseline]]+Dataset[[#This Row],[2025/26 Total change]] -> 141 | CR26: =Dataset[[#This Row],[2026/27 Baseline]]+Dataset[[#This Row],[2026/27 Total change]] -> 147
A27: NAT|Non-transfer item | B27: 23|Communication (G&S) | C27: 2024_25 | D27: MTEF2024 | E27: 23 | F27: 1 | G27: 1 | H27: 36063 | I27: 9 | J27: 23 | K27: 01 | L27: 01 | M27: 036063 | N27: 000009 | O27: 23|01|01 | P27: 01 | Q27: 01 | R27: 02 | S27: 09 | T27: 09 | U27: 01|01|02|09|09 | V27: National | W27: Defence | X27: Administration | Y27: Ministry | Z27: Non-transfer item | AA27: Current | AB27: Current payments | AC27: Goods and services | AD27: Communication (G&S) | AE27: Communication (G&S) | AF27: Peace and security | AG27: Defence and state security | AH27: NAT | AI27: 3292 | AJ27: 2653 | AK27: 1907 | AL27: 3647 | AM27: 3647 | AN27: 3647 | AO27: 1731 | AP27: 2952 | AQ27: 3247 | AR27: 3571 | AS27: 3735 | CB27: =Dataset[[#This Row],[2024/25 From - Spending review Topic 1]]+Dataset[[#This Row],[2024/25 From - Spending review Topic 2]]+Dataset[[#This Row],[2024/25 From - Spending review Topic 3]]+Dataset[[#This Row],[2024/25 From - Spending review Topic 4]]+Dataset[[#This Row],[2024/25 From - Other reallocations]] -> 0 | CC27: =Dataset[[#This Row],[2025/26 From - Spending review Topic 1]]+Dataset[[#This Row],[2025/26 From - Spending review Topic 2]]+Dataset[[#This Row],[2025/26 From - Spending review Topic 3]]+Dataset[[#This Row],[2025/26 From - Spending review Topic 4]]+Dataset[[#This Row],[2025/26 From - Other reallocations]] -> 0 | CD27: =Dataset[[#This Row],[2026/27 From - Spending review Topic 1]]+Dataset[[#This Row],[2026/27 From - Spending review Topic 2]]+Dataset[[#This Row],[2026/27 From - Spending review Topic 3]]+Dataset[[#This Row],[2026/27 From - Spending review Topic 4]]+Dataset[[#This Row],[2026/27 From - Other reallocations]] -> 0 | CE27: =Dataset[[#This Row],[2024/25 To - Spending review Topic 1]]+Dataset[[#This Row],[2024/25 To - Spending review Topic 2]]+Dataset[[#This Row],[2024/25 To - Spending review Topic 3]]+Dataset[[#This Row],[2024/25 To - Spending review Topic 4]]+Dataset[[#This Row],[2024/25 To - Other reallocations]] -> 0 | CF27: =Dataset[[#This Row],[2025/26 To - Spending review Topic 1]]+Dataset[[#This Row],[2025/26 To - Spending review Topic 2]]+Dataset[[#This Row],[2025/26 To - Spending review Topic 3]]+Dataset[[#This Row],[2025/26 To - Spending review Topic 4]]+Dataset[[#This Row],[2025/26 To - Other reallocations]] -> 0 | CG27: =Dataset[[#This Row],[2026/27 To - Spending review Topic 1]]+Dataset[[#This Row],[2026/27 To - Spending review Topic 2]]+Dataset[[#This Row],[2026/27 To - Spending review Topic 3]]+Dataset[[#This Row],[2026/27 To - Spending review Topic 4]]+Dataset[[#This Row],[2026/27 To - Other reallocations]] -> 0 | CH27: =Dataset[[#This Row],[2024/25 Reduction]]+Dataset[[#This Row],[2024/25 From - Total]] -> 0 | CI27: =Dataset[[#This Row],[2025/26 Reduction]]+Dataset[[#This Row],[2025/26 From - Total]] -> 0 | CJ27: =Dataset[[#This Row],[2026/27 Reduction]]+Dataset[[#This Row],[2026/27 From - Total]] -> 0 | CK27: =Dataset[[#This Row],[2023/24 Reduction]] -> 0 | CL27: =SUM(Dataset[[#This Row],[2024/25 Reduction]],Dataset[[#This Row],[2024/25 From - Total]],Dataset[[#This Row],[2024/25 To - Total]]) -> 0 | CM27: =SUM(Dataset[[#This Row],[2025/26 Reduction]],Dataset[[#This Row],[2025/26 From - Total]],Dataset[[#This Row],[2025/26 To - Total]]) -> 0 | CN27: =SUM(Dataset[[#This Row],[2026/27 Reduction]],Dataset[[#This Row],[2026/27 From - Total]],Dataset[[#This Row],[2026/27 To - Total]]) -> 0 | CO27: =Dataset[[#This Row],[2023/24 Baseline]]+Dataset[[#This Row],[2023/24 Total change]] -> 2952 | CP27: =Dataset[[#This Row],[2024/25 Baseline]]+Dataset[[#This Row],[2024/25 Total change]] -> 3247 | CQ27: =Dataset[[#This Row],[2025/26 Baseline]]+Dataset[[#This Row],[2025/26 Total change]] -> 3571 | CR27: =Dataset[[#This Row],[2026/27 Baseline]]+Dataset[[#This Row],[2026/27 Total change]] -> 3735
A28: NAT|Non-transfer item | B28: 23|Computer services | C28: 2024_25 | D28: MTEF2024 | E28: 23 | F28: 1 | G28: 1 | H28: 36064 | I28: 10 | J28: 23 | K28: 01 | L28: 01 | M28: 036064 | N28: 000010 | O28: 23|01|01 | P28: 01 | Q28: 01 | R28: 02 | S28: 10 | T28: 10 | U28: 01|01|02|10|10 | V28: National | W28: Defence | X28: Administration | Y28: Ministry | Z28: Non-transfer item | AA28: Current | AB28: Current payments | AC28: Goods and services | AD28: Computer services | AE28: Computer services | AF28: Peace and security | AG28: Defence and state security | AH28: NAT | AI28: 0 | AJ28: 194 | AK28: 295 | AL28: 185 | AM28: 185 | AN28: 185 | AO28: 271 | AP28: 97 | AQ28: 106 | AR28: 117 | AS28: 122 | CB28: =Dataset[[#This Row],[2024/25 From - Spending review Topic 1]]+Dataset[[#This Row],[2024/25 From - Spending review Topic 2]]+Dataset[[#This Row],[2024/25 From - Spending review Topic 3]]+Dataset[[#This Row],[2024/25 From - Spending review Topic 4]]+Dataset[[#This Row],[2024/25 From - Other reallocations]] -> 0 | CC28: =Dataset[[#This Row],[2025/26 From - Spending review Topic 1]]+Dataset[[#This Row],[2025/26 From - Spending review Topic 2]]+Dataset[[#This Row],[2025/26 From - Spending review Topic 3]]+Dataset[[#This Row],[2025/26 From - Spending review Topic 4]]+Dataset[[#This Row],[2025/26 From - Other reallocations]] -> 0 | CD28: =Dataset[[#This Row],[2026/27 From - Spending review Topic 1]]+Dataset[[#This Row],[2026/27 From - Spending review Topic 2]]+Dataset[[#This Row],[2026/27 From - Spending review Topic 3]]+Dataset[[#This Row],[2026/27 From - Spending review Topic 4]]+Dataset[[#This Row],[2026/27 From - Other reallocations]] -> 0 | CE28: =Dataset[[#This Row],[2024/25 To - Spending review Topic 1]]+Dataset[[#This Row],[2024/25 To - Spending review Topic 2]]+Dataset[[#This Row],[2024/25 To - Spending review Topic 3]]+Dataset[[#This Row],[2024/25 To - Spending review Topic 4]]+Dataset[[#This Row],[2024/25 To - Other reallocations]] -> 0 | CF28: =Dataset[[#This Row],[2025/26 To - Spending review Topic 1]]+Dataset[[#This Row],[2025/26 To - Spending review Topic 2]]+Dataset[[#This Row],[2025/26 To - Spending review Topic 3]]+Dataset[[#This Row],[2025/26 To - Spending review Topic 4]]+Dataset[[#This Row],[2025/26 To - Other reallocations]] -> 0 | CG28: =Dataset[[#This Row],[2026/27 To - Spending review Topic 1]]+Dataset[[#This Row],[2026/27 To - Spending review Topic 2]]+Dataset[[#This Row],[2026/27 To - Spending review Topic 3]]+Dataset[[#This Row],[2026/27 To - Spending review Topic 4]]+Dataset[[#This Row],[2026/27 To - Other reallocations]] -> 0 | CH28: =Dataset[[#This Row],[2024/25 Reduction]]+Dataset[[#This Row],[2024/25 From - Total]] -> 0 | CI28: =Dataset[[#This Row],[2025/26 Reduction]]+Dataset[[#This Row],[2025/26 From - Total]] -> 0 | CJ28: =Dataset[[#This Row],[2026/27 Reduction]]+Dataset[[#This Row],[2026/27 From - Total]] -> 0 | CK28: =Dataset[[#This Row],[2023/24 Reduction]] -> 0 | CL28: =SUM(Dataset[[#This Row],[2024/25 Reduction]],Dataset[[#This Row],[2024/25 From - Total]],Dataset[[#This Row],[2024/25 To - Total]]) -> 0 | CM28: =SUM(Dataset[[#This Row],[2025/26 Reduction]],Dataset[[#This Row],[2025/26 From - Total]],Dataset[[#This Row],[2025/26 To - Total]]) -> 0 | CN28: =SUM(Dataset[[#This Row],[2026/27 Reduction]],Dataset[[#This Row],[2026/27 From - Total]],Dataset[[#This Row],[2026/27 To - Total]]) -> 0 | CO28: =Dataset[[#This Row],[2023/24 Baseline]]+Dataset[[#This Row],[2023/24 Total change]] -> 97 | CP28: =Dataset[[#This Row],[2024/25 Baseline]]+Dataset[[#This Row],[2024/25 Total change]] -> 106 | CQ28: =Dataset[[#This Row],[2025/26 Baseline]]+Dataset[[#This Row],[2025/26 Total change]] -> 117 | CR28: =Dataset[[#This Row],[2026/27 Baseline]]+Dataset[[#This Row],[2026/27 Total change]] -> 122
A29: NAT|Non-transfer item | B29: 23|Consultants: Business and advisory services | C29: 2024_25 | D29: MTEF2024 | E29: 23 | F29: 1 | G29: 1 | H29: 36065 | I29: 11 | J29: 23 | K29: 01 | L29: 01 | M29: 036065 | N29: 000011 | O29: 23|01|01 | P29: 01 | Q29: 01 | R29: 02 | S29: 11 | T29: 11 | U29: 01|01|02|11|11 | V29: National | W29: Defence | X29: Administration | Y29: Ministry | Z29: Non-transfer item | AA29: Current | AB29: Current payments | AC29: Goods and services | AD29: Consultants: Business and advisory services | AE29: Consultants: Business and advisory services | AF29: Peace and security | AG29: Defence and state security | AH29: NAT | AI29: 0 | AJ29: 0 | AK29: 0 | AL29: 0 | AM29: 0 | AN29: 0 | AO29: 0 | AP29: 0 | AQ29: 0 | AR29: 0 | AS29: 0 | CB29: =Dataset[[#This Row],[2024/25 From - Spending review Topic 1]]+Dataset[[#This Row],[2024/25 From - Spending review Topic 2]]+Dataset[[#This Row],[2024/25 From - Spending review Topic 3]]+Dataset[[#This Row],[2024/25 From - Spending review Topic 4]]+Dataset[[#This Row],[2024/25 From - Other reallocations]] -> 0 | CC29: =Dataset[[#This Row],[2025/26 From - Spending review Topic 1]]+Dataset[[#This Row],[2025/26 From - Spending review Topic 2]]+Dataset[[#This Row],[2025/26 From - Spending review Topic 3]]+Dataset[[#This Row],[2025/26 From - Spending review Topic 4]]+Dataset[[#This Row],[2025/26 From - Other reallocations]] -> 0 | CD29: =Dataset[[#This Row],[2026/27 From - Spending review Topic 1]]+Dataset[[#This Row],[2026/27 From - Spending review Topic 2]]+Dataset[[#This Row],[2026/27 From - Spending review Topic 3]]+Dataset[[#This Row],[2026/27 From - Spending review Topic 4]]+Dataset[[#This Row],[2026/27 From - Other reallocations]] -> 0 | CE29: =Dataset[[#This Row],[2024/25 To - Spending review Topic 1]]+Dataset[[#This Row],[2024/25 To - Spending review Topic 2]]+Dataset[[#This Row],[2024/25 To - Spending review Topic 3]]+Dataset[[#This Row],[2024/25 To - Spending review Topic 4]]+Dataset[[#This Row],[2024/25 To - Other reallocations]] -> 0 | CF29: =Dataset[[#This Row],[2025/26 To - Spending review Topic 1]]+Dataset[[#This Row],[2025/26 To - Spending review Topic 2]]+Dataset[[#This Row],[2025/26 To - Spending review Topic 3]]+Dataset[[#This Row],[2025/26 To - Spending review Topic 4]]+Dataset[[#This Row],[2025/26 To - Other reallocations]] -> 0 | CG29: =Dataset[[#This Row],[2026/27 To - Spending review Topic 1]]+Dataset[[#This Row],[2026/27 To - Spending review Topic 2]]+Dataset[[#This Row],[2026/27 To - Spending review Topic 3]]+Dataset[[#This Row],[2026/27 To - Spending review Topic 4]]+Dataset[[#This Row],[2026/27 To - Other reallocations]] -> 0 | CH29: =Dataset[[#This Row],[2024/25 Reduction]]+Dataset[[#This Row],[2024/25 From - Total]] -> 0 | CI29: =Dataset[[#This Row],[2025/26 Reduction]]+Dataset[[#This Row],[2025/26 From - Total]] -> 0 | CJ29: =Dataset[[#This Row],[2026/27 Reduction]]+Dataset[[#This Row],[2026/27 From - Total]] -> 0 | CK29: =Dataset[[#This Row],[2023/24 Reduction]] -> 0 | CL29: =SUM(Dataset[[#This Row],[2024/25 Reduction]],Dataset[[#This Row],[2024/25 From - Total]],Dataset[[#This Row],[2024/25 To - Total]]) -> 0 | CM29: =SUM(Dataset[[#This Row],[2025/26 Reduction]],Dataset[[#This Row],[2025/26 From - Total]],Dataset[[#This Row],[2025/26 To - Total]]) -> 0 | CN29: =SUM(Dataset[[#This Row],[2026/27 Reduction]],Dataset[[#This Row],[2026/27 From - Total]],Dataset[[#This Row],[2026/27 To - Total]]) -> 0 | CO29: =Dataset[[#This Row],[2023/24 Baseline]]+Dataset[[#This Row],[2023/24 Total change]] -> 0 | CP29: =Dataset[[#This Row],[2024/25 Baseline]]+Dataset[[#This Row],[2024/25 Total change]] -> 0 | CQ29: =Dataset[[#This Row],[2025/26 Baseline]]+Dataset[[#This Row],[2025/26 Total change]] -> 0 | CR29: =Dataset[[#This Row],[2026/27 Baseline]]+Dataset[[#This Row],[2026/27 Total change]] -> 0
A30: NAT|Non-transfer item | B30: 23|Infrastructure and planning services | C30: 2024_25 | D30: MTEF2024 | E30: 23 | F30: 1 | G30: 1 | H30: 36066 | I30: 12 | J30: 23 | K30: 01 | L30: 01 | M30: 036066 | N30: 000012 | O30: 23|01|01 | P30: 01 | Q30: 01 | R30: 02 | S30: 12 | T30: 12 | U30: 01|01|02|12|12 | V30: National | W30: Defence | X30: Administration | Y30: Ministry | Z30: Non-transfer item | AA30: Current | AB30: Current payments | AC30: Goods and services | AD30: Infrastructure and planning services | AE30: Infrastructure and planning services | AF30: Peace and security | AG30: Defence and state security | AH30: NAT | AI30: 0 | AJ30: 0 | AK30: 0 | AL30: 0 | AM30: 0 | AN30: 0 | AO30: 0 | AP30: 0 | AQ30: 0 | AR30: 0 | AS30: 0 | CB30: =Dataset[[#This Row],[2024/25 From - Spending review Topic 1]]+Dataset[[#This Row],[2024/25 From - Spending review Topic 2]]+Dataset[[#This Row],[2024/25 From - Spending review Topic 3]]+Dataset[[#This Row],[2024/25 From - Spending review Topic 4]]+Dataset[[#This Row],[2024/25 From - Other reallocations]] -> 0 | CC30: =Dataset[[#This Row],[2025/26 From - Spending review Topic 1]]+Dataset[[#This Row],[2025/26 From - Spending review Topic 2]]+Dataset[[#This Row],[2025/26 From - Spending review Topic 3]]+Dataset[[#This Row],[2025/26 From - Spending review Topic 4]]+Dataset[[#This Row],[2025/26 From - Other reallocations]] -> 0 | CD30: =Dataset[[#This Row],[2026/27 From - Spending review Topic 1]]+Dataset[[#This Row],[2026/27 From - Spending review Topic 2]]+Dataset[[#This Row],[2026/27 From - Spending review Topic 3]]+Dataset[[#This Row],[2026/27 From - Spending review Topic 4]]+Dataset[[#This Row],[2026/27 From - Other reallocations]] -> 0 | CE30: =Dataset[[#This Row],[2024/25 To - Spending review Topic 1]]+Dataset[[#This Row],[2024/25 To - Spending review Topic 2]]+Dataset[[#This Row],[2024/25 To - Spending review Topic 3]]+Dataset[[#This Row],[2024/25 To - Spending review Topic 4]]+Dataset[[#This Row],[2024/25 To - Other reallocations]] -> 0 | CF30: =Dataset[[#This Row],[2025/26 To - Spending review Topic 1]]+Dataset[[#This Row],[2025/26 To - Spending review Topic 2]]+Dataset[[#This Row],[2025/26 To - Spending review Topic 3]]+Dataset[[#This Row],[2025/26 To - Spending review Topic 4]]+Dataset[[#This Row],[2025/26 To - Other reallocations]] -> 0 | CG30: =Dataset[[#This Row],[2026/27 To - Spending review Topic 1]]+Dataset[[#This Row],[2026/27 To - Spending review Topic 2]]+Dataset[[#This Row],[2026/27 To - Spending review Topic 3]]+Dataset[[#This Row],[2026/27 To - Spending review Topic 4]]+Dataset[[#This Row],[2026/27 To - Other reallocations]] -> 0 | CH30: =Dataset[[#This Row],[2024/25 Reduction]]+Dataset[[#This Row],[2024/25 From - Total]] -> 0 | CI30: =Dataset[[#This Row],[2025/26 Reduction]]+Dataset[[#This Row],[2025/26 From - Total]] -> 0 | CJ30: =Dataset[[#This Row],[2026/27 Reduction]]+Dataset[[#This Row],[2026/27 From - Total]] -> 0 | CK30: =Dataset[[#This Row],[2023/24 Reduction]] -> 0 | CL30: =SUM(Dataset[[#This Row],[2024/25 Reduction]],Dataset[[#This Row],[2024/25 From - Total]],Dataset[[#This Row],[2024/25 To - Total]]) -> 0 | CM30: =SUM(Dataset[[#This Row],[2025/26 Reduction]],Dataset[[#This Row],[2025/26 From - Total]],Dataset[[#This Row],[2025/26 To - Total]]) -> 0 | CN30: =SUM(Dataset[[#This Row],[2026/27 Reduction]],Dataset[[#This Row],[2026/27 From - Total]],Dataset[[#This Row],[2026/27 To - Total]]) -> 0 | CO30: =Dataset[[#This Row],[2023/24 Baseline]]+Dataset[[#This Row],[2023/24 Total change]] -> 0 | CP30: =Dataset[[#This Row],[2024/25 Baseline]]+Dataset[[#This Row],[2024/25 Total change]] -> 0 | CQ30: =Dataset[[#This Row],[2025/26 Baseline]]+Dataset[[#This Row],[2025/26 Total change]] -> 0 | CR30: =Dataset[[#This Row],[2026/27 Baseline]]+Dataset[[#This Row],[2026/27 Total change]] -> 0
A31: NAT|Non-transfer item | B31: 23|Laboratory services | C31: 2024_25 | D31: MTEF2024 | E31: 23 | F31: 1 | G31: 1 | H31: 36067 | I31: 13 | J31: 23 | K31: 01 | L31: 01 | M31: 036067 | N31: 000013 | O31: 23|01|01 | P31: 01 | Q31: 01 | R31: 02 | S31: 13 | T31: 13 | U31: 01|01|02|13|13 | V31: National | W31: Defence | X31: Administration | Y31: Ministry | Z31: Non-transfer item | AA31: Current | AB31: Current payments | AC31: Goods and services | AD31: Laboratory services | AE31: Laboratory services | AF31: Peace and security | AG31: Defence and state security | AH31: NAT | AI31: 0 | AJ31: 0 | AK31: 0 | AL31: 0 | AM31: 0 | AN31: 0 | AO31: 0 | AP31: 0 | AQ31: 0 | AR31: 0 | AS31: 0 | CB31: =Dataset[[#This Row],[2024/25 From - Spending review Topic 1]]+Dataset[[#This Row],[2024/25 From - Spending review Topic 2]]+Dataset[[#This Row],[2024/25 From - Spending review Topic 3]]+Dataset[[#This Row],[2024/25 From - Spending review Topic 4]]+Dataset[[#This Row],[2024/25 From - Other reallocations]] -> 0 | CC31: =Dataset[[#This Row],[2025/26 From - Spending review Topic 1]]+Dataset[[#This Row],[2025/26 From - Spending review Topic 2]]+Dataset[[#This Row],[2025/26 From - Spending review Topic 3]]+Dataset[[#This Row],[2025/26 From - Spending review Topic 4]]+Dataset[[#This Row],[2025/26 From - Other reallocations]] -> 0 | CD31: =Dataset[[#This Row],[2026/27 From - Spending review Topic 1]]+Dataset[[#This Row],[2026/27 From - Spending review Topic 2]]+Dataset[[#This Row],[2026/27 From - Spending review Topic 3]]+Dataset[[#This Row],[2026/27 From - Spending review Topic 4]]+Dataset[[#This Row],[2026/27 From - Other reallocations]] -> 0 | CE31: =Dataset[[#This Row],[2024/25 To - Spending review Topic 1]]+Dataset[[#This Row],[2024/25 To - Spending review Topic 2]]+Dataset[[#This Row],[2024/25 To - Spending review Topic 3]]+Dataset[[#This Row],[2024/25 To - Spending review Topic 4]]+Dataset[[#This Row],[2024/25 To - Other reallocations]] -> 0 | CF31: =Dataset[[#This Row],[2025/26 To - Spending review Topic 1]]+Dataset[[#This Row],[2025/26 To - Spending review Topic 2]]+Dataset[[#This Row],[2025/26 To - Spending review Topic 3]]+Dataset[[#This Row],[2025/26 To - Spending review Topic 4]]+Dataset[[#This Row],[2025/26 To - Other reallocations]] -> 0 | CG31: =Dataset[[#This Row],[2026/27 To - Spending review Topic 1]]+Dataset[[#This Row],[2026/27 To - Spending review Topic 2]]+Dataset[[#This Row],[2026/27 To - Spending review Topic 3]]+Dataset[[#This Row],[2026/27 To - Spending review Topic 4]]+Dataset[[#This Row],[2026/27 To - Other reallocations]] -> 0 | CH31: =Dataset[[#This Row],[2024/25 Reduction]]+Dataset[[#This Row],[2024/25 From - Total]] -> 0 | CI31: =Dataset[[#This Row],[2025/26 Reduction]]+Dataset[[#This Row],[2025/26 From - Total]] -> 0 | CJ31: =Dataset[[#This Row],[2026/27 Reduction]]+Dataset[[#This Row],[2026/27 From - Total]] -> 0 | CK31: =Dataset[[#This Row],[2023/24 Reduction]] -> 0 | CL31: =SUM(Dataset[[#This Row],[2024/25 Reduction]],Dataset[[#This Row],[2024/25 From - Total]],Dataset[[#This Row],[2024/25 To - Total]]) -> 0 | CM31: =SUM(Dataset[[#This Row],[2025/26 Reduction]],Dataset[[#This Row],[2025/26 From - Total]],Dataset[[#This Row],[2025/26 To - Total]]) -> 0 | CN31: =SUM(Dataset[[#This Row],[2026/27 Reduction]],Dataset[[#This Row],[2026/27 From - Total]],Dataset[[#This Row],[2026/27 To - Total]]) -> 0 | CO31: =Dataset[[#This Row],[2023/24 Baseline]]+Dataset[[#This Row],[2023/24 Total change]] -> 0 | CP31: =Dataset[[#This Row],[2024/25 Baseline]]+Dataset[[#This Row],[2024/25 Total change]] -> 0 | CQ31: =Dataset[[#This Row],[2025/26 Baseline]]+Dataset[[#This Row],[2025/26 Total change]] -> 0 | CR31: =Dataset[[#This Row],[2026/27 Baseline]]+Dataset[[#This Row],[2026/27 Total change]] -> 0
A32: NAT|Non-transfer item | B32: 23|Legal services (G&S) | C32: 2024_25 | D32: MTEF2024 | E32: 23 | F32: 1 | G32: 1 | H32: 36068 | I32: 14 | J32: 23 | K32: 01 | L32: 01 | M32: 036068 | N32: 000014 | O32: 23|01|01 | P32: 01 | Q32: 01 | R32: 02 | S32: 14 | T32: 14 | U32: 01|01|02|14|14 | V32: National | W32: Defence | X32: Administration | Y32: Ministry | Z32: Non-transfer item | AA32: Current | AB32: Current payments | AC32: Goods and services | AD32: Legal services (G&S) | AE32: Legal services (G&S) | AF32: Peace and security | AG32: Defence and state security | AH32: NAT | AI32: 0 | AJ32: 0 | AK32: 0 | AL32: 0 | AM32: 0 | AN32: 0 | AO32: 0 | AP32: 0 | AQ32: 0 | AR32: 0 | AS32: 0 | CB32: =Dataset[[#This Row],[2024/25 From - Spending review Topic 1]]+Dataset[[#This Row],[2024/25 From - Spending review Topic 2]]+Dataset[[#This Row],[2024/25 From - Spending review Topic 3]]+Dataset[[#This Row],[2024/25 From - Spending review Topic 4]]+Dataset[[#This Row],[2024/25 From - Other reallocations]] -> 0 | CC32: =Dataset[[#This Row],[2025/26 From - Spending review Topic 1]]+Dataset[[#This Row],[2025/26 From - Spending review Topic 2]]+Dataset[[#This Row],[2025/26 From - Spending review Topic 3]]+Dataset[[#This Row],[2025/26 From - Spending review Topic 4]]+Dataset[[#This Row],[2025/26 From - Other reallocations]] -> 0 | CD32: =Dataset[[#This Row],[2026/27 From - Spending review Topic 1]]+Dataset[[#This Row],[2026/27 From - Spending review Topic 2]]+Dataset[[#This Row],[2026/27 From - Spending review Topic 3]]+Dataset[[#This Row],[2026/27 From - Spending review Topic 4]]+Dataset[[#This Row],[2026/27 From - Other reallocations]] -> 0 | CE32: =Dataset[[#This Row],[2024/25 To - Spending review Topic 1]]+Dataset[[#This Row],[2024/25 To - Spending review Topic 2]]+Dataset[[#This Row],[2024/25 To - Spending review Topic 3]]+Dataset[[#This Row],[2024/25 To - Spending review Topic 4]]+Dataset[[#This Row],[2024/25 To - Other reallocations]] -> 0 | CF32: =Dataset[[#This Row],[2025/26 To - Spending review Topic 1]]+Dataset[[#This Row],[2025/26 To - Spending review Topic 2]]+Dataset[[#This Row],[2025/26 To - Spending review Topic 3]]+Dataset[[#This Row],[2025/26 To - Spending review Topic 4]]+Dataset[[#This Row],[2025/26 To - Other reallocations]] -> 0 | CG32: =Dataset[[#This Row],[2026/27 To - Spending review Topic 1]]+Dataset[[#This Row],[2026/27 To - Spending review Topic 2]]+Dataset[[#This Row],[2026/27 To - Spending review Topic 3]]+Dataset[[#This Row],[2026/27 To - Spending review Topic 4]]+Dataset[[#This Row],[2026/27 To - Other reallocations]] -> 0 | CH32: =Dataset[[#This Row],[2024/25 Reduction]]+Dataset[[#This Row],[2024/25 From - Total]] -> 0 | CI32: =Dataset[[#This Row],[2025/26 Reduction]]+Dataset[[#This Row],[2025/26 From - Total]] -> 0 | CJ32: =Dataset[[#This Row],[2026/27 Reduction]]+Dataset[[#This Row],[2026/27 From - Total]] -> 0 | CK32: =Dataset[[#This Row],[2023/24 Reduction]] -> 0 | CL32: =SUM(Dataset[[#This Row],[2024/25 Reduction]],Dataset[[#This Row],[2024/25 From - Total]],Dataset[[#This Row],[2024/25 To - Total]]) -> 0 | CM32: =SUM(Dataset[[#This Row],[2025/26 Reduction]],Dataset[[#This Row],[2025/26 From - Total]],Dataset[[#This Row],[2025/26 To - Total]]) -> 0 | CN32: =SUM(Dataset[[#This Row],[2026/27 Reduction]],Dataset[[#This Row],[2026/27 From - Total]],Dataset[[#This Row],[2026/27 To - Total]]) -> 0 | CO32: =Dataset[[#This Row],[2023/24 Baseline]]+Dataset[[#This Row],[2023/24 Total change]] -> 0 | CP32: =Dataset[[#This Row],[2024/25 Baseline]]+Dataset[[#This Row],[2024/25 Total change]] -> 0 | CQ32: =Dataset[[#This Row],[2025/26 Baseline]]+Dataset[[#This Row],[2025/26 Total change]] -> 0 | CR32: =Dataset[[#This Row],[2026/27 Baseline]]+Dataset[[#This Row],[2026/27 Total change]] -> 0
A33: NAT|Non-transfer item | B33: 23|Science and technological services | C33: 2024_25 | D33: MTEF2024 | E33: 23 | F33: 1 | G33: 1 | H33: 36069 | I33: 15 | J33: 23 | K33: 01 | L33: 01 | M33: 036069 | N33: 000015 | O33: 23|01|01 | P33: 01 | Q33: 01 | R33: 02 | S33: 15 | T33: 15 | U33: 01|01|02|15|15 | V33: National | W33: Defence | X33: Administration | Y33: Ministry | Z33: Non-transfer item | AA33: Current | AB33: Current payments | AC33: Goods and services | AD33: Science and technological services | AE33: Science and technological services | AF33: Peace and security | AG33: Defence and state security | AH33: NAT | AI33: 0 | AJ33: 0 | AK33: 0 | AL33: 0 | AM33: 0 | AN33: 0 | AO33: 0 | AP33: 0 | AQ33: 0 | AR33: 0 | AS33: 0 | CB33: =Dataset[[#This Row],[2024/25 From - Spending review Topic 1]]+Dataset[[#This Row],[2024/25 From - Spending review Topic 2]]+Dataset[[#This Row],[2024/25 From - Spending review Topic 3]]+Dataset[[#This Row],[2024/25 From - Spending review Topic 4]]+Dataset[[#This Row],[2024/25 From - Other reallocations]] -> 0 | CC33: =Dataset[[#This Row],[2025/26 From - Spending review Topic 1]]+Dataset[[#This Row],[2025/26 From - Spending review Topic 2]]+Dataset[[#This Row],[2025/26 From - Spending review Topic 3]]+Dataset[[#This Row],[2025/26 From - Spending review Topic 4]]+Dataset[[#This Row],[2025/26 From - Other reallocations]] -> 0 | CD33: =Dataset[[#This Row],[2026/27 From - Spending review Topic 1]]+Dataset[[#This Row],[2026/27 From - Spending review Topic 2]]+Dataset[[#This Row],[2026/27 From - Spending review Topic 3]]+Dataset[[#This Row],[2026/27 From - Spending review Topic 4]]+Dataset[[#This Row],[2026/27 From - Other reallocations]] -> 0 | CE33: =Dataset[[#This Row],[2024/25 To - Spending review Topic 1]]+Dataset[[#This Row],[2024/25 To - Spending review Topic 2]]+Dataset[[#This Row],[2024/25 To - Spending review Topic 3]]+Dataset[[#This Row],[2024/25 To - Spending review Topic 4]]+Dataset[[#This Row],[2024/25 To - Other reallocations]] -> 0 | CF33: =Dataset[[#This Row],[2025/26 To - Spending review Topic 1]]+Dataset[[#This Row],[2025/26 To - Spending review Topic 2]]+Dataset[[#This Row],[2025/26 To - Spending review Topic 3]]+Dataset[[#This Row],[2025/26 To - Spending review Topic 4]]+Dataset[[#This Row],[2025/26 To - Other reallocations]] -> 0 | CG33: =Dataset[[#This Row],[2026/27 To - Spending review Topic 1]]+Dataset[[#This Row],[2026/27 To - Spending review Topic 2]]+Dataset[[#This Row],[2026/27 To - Spending review Topic 3]]+Dataset[[#This Row],[2026/27 To - Spending review Topic 4]]+Dataset[[#This Row],[2026/27 To - Other reallocations]] -> 0 | CH33: =Dataset[[#This Row],[2024/25 Reduction]]+Dataset[[#This Row],[2024/25 From - Total]] -> 0 | CI33: =Dataset[[#This Row],[2025/26 Reduction]]+Dataset[[#This Row],[2025/26 From - Total]] -> 0 | CJ33: =Dataset[[#This Row],[2026/27 Reduction]]+Dataset[[#This Row],[2026/27 From - Total]] -> 0 | CK33: =Dataset[[#This Row],[2023/24 Reduction]] -> 0 | CL33: =SUM(Dataset[[#This Row],[2024/25 Reduction]],Dataset[[#This Row],[2024/25 From - Total]],Dataset[[#This Row],[2024/25 To - Total]]) -> 0 | CM33: =SUM(Dataset[[#This Row],[2025/26 Reduction]],Dataset[[#This Row],[2025/26 From - Total]],Dataset[[#This Row],[2025/26 To - Total]]) -> 0 | CN33: =SUM(Dataset[[#This Row],[2026/27 Reduction]],Dataset[[#This Row],[2026/27 From - Total]],Dataset[[#This Row],[2026/27 To - Total]]) -> 0 | CO33: =Dataset[[#This Row],[2023/24 Baseline]]+Dataset[[#This Row],[2023/24 Total change]] -> 0 | CP33: =Dataset[[#This Row],[2024/25 Baseline]]+Dataset[[#This Row],[2024/25 Total change]] -> 0 | CQ33: =Dataset[[#This Row],[2025/26 Baseline]]+Dataset[[#This Row],[2025/26 Total change]] -> 0 | CR33: =Dataset[[#This Row],[2026/27 Baseline]]+Dataset[[#This Row],[2026/27 Total change]] -> 0
A34: NAT|Non-transfer item | B34: 23|Contractors | C34: 2024_25 | D34: MTEF2024 | E34: 23 | F34: 1 | G34: 1 | H34: 36070 | I34: 16 | J34: 23 | K34: 01 | L34: 01 | M34: 036070 | N34: 000016 | O34: 23|01|01 | P34: 01 | Q34: 01 | R34: 02 | S34: 16 | T34: 16 | U34: 01|01|02|16|16 | V34: National | W34: Defence | X34: Administration | Y34: Ministry | Z34: Non-transfer item | AA34: Current | AB34: Current payments | AC34: Goods and services | AD34: Contractors | AE34: Contractors | AF34: Peace and security | AG34: Defence and state security | AH34: NAT | AI34: 241 | AJ34: 340 | AK34: 11 | AL34: 6 | AM34: 6 | AN34: 6 | AO34: 4 | AP34: 288 | AQ34: 317 | AR34: 348 | AS34: 364 | CB34: =Dataset[[#This Row],[2024/25 From - Spending review Topic 1]]+Dataset[[#This Row],[2024/25 From - Spending review Topic 2]]+Dataset[[#This Row],[2024/25 From - Spending review Topic 3]]+Dataset[[#This Row],[2024/25 From - Spending review Topic 4]]+Dataset[[#This Row],[2024/25 From - Other reallocations]] -> 0 | CC34: =Dataset[[#This Row],[2025/26 From - Spending review Topic 1]]+Dataset[[#This Row],[2025/26 From - Spending review Topic 2]]+Dataset[[#This Row],[2025/26 From - Spending review Topic 3]]+Dataset[[#This Row],[2025/26 From - Spending review Topic 4]]+Dataset[[#This Row],[2025/26 From - Other reallocations]] -> 0 | CD34: =Dataset[[#This Row],[2026/27 From - Spending review Topic 1]]+Dataset[[#This Row],[2026/27 From - Spending review Topic 2]]+Dataset[[#This Row],[2026/27 From - Spending review Topic 3]]+Dataset[[#This Row],[2026/27 From - Spending review Topic 4]]+Dataset[[#This Row],[2026/27 From - Other reallocations]] -> 0 | CE34: =Dataset[[#This Row],[2024/25 To - Spending review Topic 1]]+Dataset[[#This Row],[2024/25 To - Spending review Topic 2]]+Dataset[[#This Row],[2024/25 To - Spending review Topic 3]]+Dataset[[#This Row],[2024/25 To - Spending review Topic 4]]+Dataset[[#This Row],[2024/25 To - Other reallocations]] -> 0 | CF34: =Dataset[[#This Row],[2025/26 To - Spending review Topic 1]]+Dataset[[#This Row],[2025/26 To - Spending review Topic 2]]+Dataset[[#This Row],[2025/26 To - Spending review Topic 3]]+Dataset[[#This Row],[2025/26 To - Spending review Topic 4]]+Dataset[[#This Row],[2025/26 To - Other reallocations]] -> 0 | CG34: =Dataset[[#This Row],[2026/27 To - Spending review Topic 1]]+Dataset[[#This Row],[2026/27 To - Spending review Topic 2]]+Dataset[[#This Row],[2026/27 To - Spending review Topic 3]]+Dataset[[#This Row],[2026/27 To - Spending review Topic 4]]+Dataset[[#This Row],[2026/27 To - Other reallocations]] -> 0 | CH34: =Dataset[[#This Row],[2024/25 Reduction]]+Dataset[[#This Row],[2024/25 From - Total]] -> 0 | CI34: =Dataset[[#This Row],[2025/26 Reduction]]+Dataset[[#This Row],[2025/26 From - Total]] -> 0 | CJ34: =Dataset[[#This Row],[2026/27 Reduction]]+Dataset[[#This Row],[2026/27 From - Total]] -> 0 | CK34: =Dataset[[#This Row],[2023/24 Reduction]] -> 0 | CL34: =SUM(Dataset[[#This Row],[2024/25 Reduction]],Dataset[[#This Row],[2024/25 From - Total]],Dataset[[#This Row],[2024/25 To - Total]]) -> 0 | CM34: =SUM(Dataset[[#This Row],[2025/26 Reduction]],Dataset[[#This Row],[2025/26 From - Total]],Dataset[[#This Row],[2025/26 To - Total]]) -> 0 | CN34: =SUM(Dataset[[#This Row],[2026/27 Reduction]],Dataset[[#This Row],[2026/27 From - Total]],Dataset[[#This Row],[2026/27 To - Total]]) -> 0 | CO34: =Dataset[[#This Row],[2023/24 Baseline]]+Dataset[[#This Row],[2023/24 Total change]] -> 288 | CP34: =Dataset[[#This Row],[2024/25 Baseline]]+Dataset[[#This Row],[2024/25 Total change]] -> 317 | CQ34: =Dataset[[#This Row],[2025/26 Baseline]]+Dataset[[#This Row],[2025/26 Total change]] -> 348 | CR34: =Dataset[[#This Row],[2026/27 Baseline]]+Dataset[[#This Row],[2026/27 Total change]] -> 364
A35: NAT|Non-transfer item | B35: 23|Agency and support/outsourced services | C35: 2024_25 | D35: MTEF2024 | E35: 23 | F35: 1 | G35: 1 | H35: 36071 | I35: 17 | J35: 23 | K35: 01 | L35: 01 | M35: 036071 | N35: 000017 | O35: 23|01|01 | P35: 01 | Q35: 01 | R35: 02 | S35: 17 | T35: 17 | U35: 01|01|02|17|17 | V35: National | W35: Defence | X35: Administration | Y35: Ministry | Z35: Non-transfer item | AA35: Current | AB35: Current payments | AC35: Goods and services | AD35: Agency and support/outsourced services | AE35: Agency and support/outsourced services | AF35: Peace and security | AG35: Defence and state security | AH35: NAT | AI35: 0 | AJ35: 197 | AK35: 0 | AL35: 0 | AM35: 0 | AN35: 0 | AO35: 0 | AP35: 0 | AQ35: 0 | AR35: 0 | AS35: 0 | CB35: =Dataset[[#This Row],[2024/25 From - Spending review Topic 1]]+Dataset[[#This Row],[2024/25 From - Spending review Topic 2]]+Dataset[[#This Row],[2024/25 From - Spending review Topic 3]]+Dataset[[#This Row],[2024/25 From - Spending review Topic 4]]+Dataset[[#This Row],[2024/25 From - Other reallocations]] -> 0 | CC35: =Dataset[[#This Row],[2025/26 From - Spending review Topic 1]]+Dataset[[#This Row],[2025/26 From - Spending review Topic 2]]+Dataset[[#This Row],[2025/26 From - Spending review Topic 3]]+Dataset[[#This Row],[2025/26 From - Spending review Topic 4]]+Dataset[[#This Row],[2025/26 From - Other reallocations]] -> 0 | CD35: =Dataset[[#This Row],[2026/27 From - Spending review Topic 1]]+Dataset[[#This Row],[2026/27 From - Spending review Topic 2]]+Dataset[[#This Row],[2026/27 From - Spending review Topic 3]]+Dataset[[#This Row],[2026/27 From - Spending review Topic 4]]+Dataset[[#This Row],[2026/27 From - Other reallocations]] -> 0 | CE35: =Dataset[[#This Row],[2024/25 To - Spending review Topic 1]]+Dataset[[#This Row],[2024/25 To - Spending review Topic 2]]+Dataset[[#This Row],[2024/25 To - Spending review Topic 3]]+Dataset[[#This Row],[2024/25 To - Spending review Topic 4]]+Dataset[[#This Row],[2024/25 To - Other reallocations]] -> 0 | CF35: =Dataset[[#This Row],[2025/26 To - Spending review Topic 1]]+Dataset[[#This Row],[2025/26 To - Spending review Topic 2]]+Dataset[[#This Row],[2025/26 To - Spending review Topic 3]]+Dataset[[#This Row],[2025/26 To - Spending review Topic 4]]+Dataset[[#This Row],[2025/26 To - Other reallocations]] -> 0 | CG35: =Dataset[[#This Row],[2026/27 To - Spending review Topic 1]]+Dataset[[#This Row],[2026/27 To - Spending review Topic 2]]+Dataset[[#This Row],[2026/27 To - Spending review Topic 3]]+Dataset[[#This Row],[2026/27 To - Spending review Topic 4]]+Dataset[[#This Row],[2026/27 To - Other reallocations]] -> 0 | CH35: =Dataset[[#This Row],[2024/25 Reduction]]+Dataset[[#This Row],[2024/25 From - Total]] -> 0 | CI35: =Dataset[[#This Row],[2025/26 Reduction]]+Dataset[[#This Row],[2025/26 From - Total]] -> 0 | CJ35: =Dataset[[#This Row],[2026/27 Reduction]]+Dataset[[#This Row],[2026/27 From - Total]] -> 0 | CK35: =Dataset[[#This Row],[2023/24 Reduction]] -> 0 | CL35: =SUM(Dataset[[#This Row],[2024/25 Reduction]],Dataset[[#This Row],[2024/25 From - Total]],Dataset[[#This Row],[2024/25 To - Total]]) -> 0 | CM35: =SUM(Dataset[[#This Row],[2025/26 Reduction]],Dataset[[#This Row],[2025/26 From - Total]],Dataset[[#This Row],[2025/26 To - Total]]) -> 0 | CN35: =SUM(Dataset[[#This Row],[2026/27 Reduction]],Dataset[[#This Row],[2026/27 From - Total]],Dataset[[#This Row],[2026/27 To - Total]]) -> 0 | CO35: =Dataset[[#This Row],[2023/24 Baseline]]+Dataset[[#This Row],[2023/24 Total change]] -> 0 | CP35: =Dataset[[#This Row],[2024/25 Baseline]]+Dataset[[#This Row],[2024/25 Total change]] -> 0 | CQ35: =Dataset[[#This Row],[2025/26 Baseline]]+Dataset[[#This Row],[2025/26 Total change]] -> 0 | CR35: =Dataset[[#This Row],[2026/27 Baseline]]+Dataset[[#This Row],[2026/27 Total change]] -> 0
A36: NAT|Non-transfer item | B36: 23|Entertainment | C36: 2024_25 | D36: MTEF2024 | E36: 23 | F36: 1 | G36: 1 | H36: 36072 | I36: 18 | J36: 23 | K36: 01 | L36: 01 | M36: 036072 | N36: 000018 | O36: 23|01|01 | P36: 01 | Q36: 01 | R36: 02 | S36: 18 | T36: 18 | U36: 01|01|02|18|18 | V36: National | W36: Defence | X36: Administration | Y36: Ministry | Z36: Non-transfer item | AA36: Current | AB36: Current payments | AC36: Goods and services | AD36: Entertainment | AE36: Entertainment | AF36: Peace and security | AG36: Defence and state security | AH36: NAT | AI36: 777 | AJ36: 372 | AK36: 300 | AL36: 774 | AM36: 774 | AN36: 774 | AO36: 164 | AP36: 632 | AQ36: 695 | AR36: 765 | AS36: 800 | CB36: =Dataset[[#This Row],[2024/25 From - Spending review Topic 1]]+Dataset[[#This Row],[2024/25 From - Spending review Topic 2]]+Dataset[[#This Row],[2024/25 From - Spending review Topic 3]]+Dataset[[#This Row],[2024/25 From - Spending review Topic 4]]+Dataset[[#This Row],[2024/25 From - Other reallocations]] -> 0 | CC36: =Dataset[[#This Row],[2025/26 From - Spending review Topic 1]]+Dataset[[#This Row],[2025/26 From - Spending review Topic 2]]+Dataset[[#This Row],[2025/26 From - Spending review Topic 3]]+Dataset[[#This Row],[2025/26 From - Spending review Topic 4]]+Dataset[[#This Row],[2025/26 From - Other reallocations]] -> 0 | CD36: =Dataset[[#This Row],[2026/27 From - Spending review Topic 1]]+Dataset[[#This Row],[2026/27 From - Spending review Topic 2]]+Dataset[[#This Row],[2026/27 From - Spending review Topic 3]]+Dataset[[#This Row],[2026/27 From - Spending review Topic 4]]+Dataset[[#This Row],[2026/27 From - Other reallocations]] -> 0 | CE36: =Dataset[[#This Row],[2024/25 To - Spending review Topic 1]]+Dataset[[#This Row],[2024/25 To - Spending review Topic 2]]+Dataset[[#This Row],[2024/25 To - Spending review Topic 3]]+Dataset[[#This Row],[2024/25 To - Spending review Topic 4]]+Dataset[[#This Row],[2024/25 To - Other reallocations]] -> 0 | CF36: =Dataset[[#This Row],[2025/26 To - Spending review Topic 1]]+Dataset[[#This Row],[2025/26 To - Spending review Topic 2]]+Dataset[[#This Row],[2025/26 To - Spending review Topic 3]]+Dataset[[#This Row],[2025/26 To - Spending review Topic 4]]+Dataset[[#This Row],[2025/26 To - Other reallocations]] -> 0 | CG36: =Dataset[[#This Row],[2026/27 To - Spending review Topic 1]]+Dataset[[#This Row],[2026/27 To - Spending review Topic 2]]+Dataset[[#This Row],[2026/27 To - Spending review Topic 3]]+Dataset[[#This Row],[2026/27 To - Spending review Topic 4]]+Dataset[[#This Row],[2026/27 To - Other reallocations]] -> 0 | CH36: =Dataset[[#This Row],[2024/25 Reduction]]+Dataset[[#This Row],[2024/25 From - Total]] -> 0 | CI36: =Dataset[[#This Row],[2025/26 Reduction]]+Dataset[[#This Row],[2025/26 From - Total]] -> 0 | CJ36: =Dataset[[#This Row],[2026/27 Reduction]]+Dataset[[#This Row],[2026/27 From - Total]] -> 0 | CK36: =Dataset[[#This Row],[2023/24 Reduction]] -> 0 | CL36: =SUM(Dataset[[#This Row],[2024/25 Reduction]],Dataset[[#This Row],[2024/25 From - Total]],Dataset[[#This Row],[2024/25 To - Total]]) -> 0 | CM36: =SUM(Dataset[[#This Row],[2025/26 Reduction]],Dataset[[#This Row],[2025/26 From - Total]],Dataset[[#This Row],[2025/26 To - Total]]) -> 0 | CN36: =SUM(Dataset[[#This Row],[2026/27 Reduction]],Dataset[[#This Row],[2026/27 From - Total]],Dataset[[#This Row],[2026/27 To - Total]]) -> 0 | CO36: =Dataset[[#This Row],[2023/24 Baseline]]+Dataset[[#This Row],[2023/24 Total change]] -> 632 | CP36: =Dataset[[#This Row],[2024/25 Baseline]]+Dataset[[#This Row],[2024/25 Total change]] -> 695 | CQ36: =Dataset[[#This Row],[2025/26 Baseline]]+Dataset[[#This Row],[2025/26 Total change]] -> 765 | CR36: =Dataset[[#This Row],[2026/27 Baseline]]+Dataset[[#This Row],[2026/27 Total change]] -> 800
A37: NAT|Non-transfer item | B37: 23|Fleet services (including government motor transport) | C37: 2024_25 | D37: MTEF2024 | E37: 23 | F37: 1 | G37: 1 | H37: 36073 | I37: 19 | J37: 23 | K37: 01 | L37: 01 | M37: 036073 | N37: 000019 | O37: 23|01|01 | P37: 01 | Q37: 01 | R37: 02 | S37: 19 | T37: 19 | U37: 01|01|02|19|19 | V37: National | W37: Defence | X37: Administration | Y37: Ministry | Z37: Non-transfer item | AA37: Current | AB37: Current payments | AC37: Goods and services | AD37: Fleet services (including government motor transport) | AE37: Fleet services (including government motor transport) | AF37: Peace and security | AG37: Defence and state security | AH37: NAT | AI37: 1473 | AJ37: 1131 | AK37: 1767 | AL37: 1925 | AM37: 1925 | AN37: 1925 | AO37: 2228 | AP37: 1408 | AQ37: 1549 | AR37: 1704 | AS37: 1782 | CB37: =Dataset[[#This Row],[2024/25 From - Spending review Topic 1]]+Dataset[[#This Row],[2024/25 From - Spending review Topic 2]]+Dataset[[#This Row],[2024/25 From - Spending review Topic 3]]+Dataset[[#This Row],[2024/25 From - Spending review Topic 4]]+Dataset[[#This Row],[2024/25 From - Other reallocations]] -> 0 | CC37: =Dataset[[#This Row],[2025/26 From - Spending review Topic 1]]+Dataset[[#This Row],[2025/26 From - Spending review Topic 2]]+Dataset[[#This Row],[2025/26 From - Spending review Topic 3]]+Dataset[[#This Row],[2025/26 From - Spending review Topic 4]]+Dataset[[#This Row],[2025/26 From - Other reallocations]] -> 0 | CD37: =Dataset[[#This Row],[2026/27 From - Spending review Topic 1]]+Dataset[[#This Row],[2026/27 From - Spending review Topic 2]]+Dataset[[#This Row],[2026/27 From - Spending review Topic 3]]+Dataset[[#This Row],[2026/27 From - Spending review Topic 4]]+Dataset[[#This Row],[2026/27 From - Other reallocations]] -> 0 | CE37: =Dataset[[#This Row],[2024/25 To - Spending review Topic 1]]+Dataset[[#This Row],[2024/25 To - Spending review Topic 2]]+Dataset[[#This Row],[2024/25 To - Spending review Topic 3]]+Dataset[[#This Row],[2024/25 To - Spending review Topic 4]]+Dataset[[#This Row],[2024/25 To - Other reallocations]] -> 0 | CF37: =Dataset[[#This Row],[2025/26 To - Spending review Topic 1]]+Dataset[[#This Row],[2025/26 To - Spending review Topic 2]]+Dataset[[#This Row],[2025/26 To - Spending review Topic 3]]+Dataset[[#This Row],[2025/26 To - Spending review Topic 4]]+Dataset[[#This Row],[2025/26 To - Other reallocations]] -> 0 | CG37: =Dataset[[#This Row],[2026/27 To - Spending review Topic 1]]+Dataset[[#This Row],[2026/27 To - Spending review Topic 2]]+Dataset[[#This Row],[2026/27 To - Spending review Topic 3]]+Dataset[[#This Row],[2026/27 To - Spending review Topic 4]]+Dataset[[#This Row],[2026/27 To - Other reallocations]] -> 0 | CH37: =Dataset[[#This Row],[2024/25 Reduction]]+Dataset[[#This Row],[2024/25 From - Total]] -> 0 | CI37: =Dataset[[#This Row],[2025/26 Reduction]]+Dataset[[#This Row],[2025/26 From - Total]] -> 0 | CJ37: =Dataset[[#This Row],[2026/27 Reduction]]+Dataset[[#This Row],[2026/27 From - Total]] -> 0 | CK37: =Dataset[[#This Row],[2023/24 Reduction]] -> 0 | CL37: =SUM(Dataset[[#This Row],[2024/25 Reduction]],Dataset[[#This Row],[2024/25 From - Total]],Dataset[[#This Row],[2024/25 To - Total]]) -> 0 | CM37: =SUM(Dataset[[#This Row],[2025/26 Reduction]],Dataset[[#This Row],[2025/26 From - Total]],Dataset[[#This Row],[2025/26 To - Total]]) -> 0 | CN37: =SUM(Dataset[[#This Row],[2026/27 Reduction]],Dataset[[#This Row],[2026/27 From - Total]],Dataset[[#This Row],[2026/27 To - Total]]) -> 0 | CO37: =Dataset[[#This Row],[2023/24 Baseline]]+Dataset[[#This Row],[2023/24 Total change]] -> 1408 | CP37: =Dataset[[#This Row],[2024/25 Baseline]]+Dataset[[#This Row],[2024/25 Total change]] -> 1549 | CQ37: =Dataset[[#This Row],[2025/26 Baseline]]+Dataset[[#This Row],[2025/26 Total change]] -> 1704 | CR37: =Dataset[[#This Row],[2026/27 Baseline]]+Dataset[[#This Row],[2026/27 Total change]] -> 1782
A38: NAT|Non-transfer item | B38: 23|Housing | C38: 2024_25 | D38: MTEF2024 | E38: 23 | F38: 1 | G38: 1 | H38: 36074 | I38: 20 | J38: 23 | K38: 01 | L38: 01 | M38: 036074 | N38: 000020 | O38: 23|01|01 | P38: 01 | Q38: 01 | R38: 02 | S38: 20 | T38: 20 | U38: 01|01|02|20|20 | V38: National | W38: Defence | X38: Administration | Y38: Ministry | Z38: Non-transfer item | AA38: Current | AB38: Current payments | AC38: Goods and services | AD38: Housing | AE38: Housing | AF38: Peace and security | AG38: Defence and state security | AH38: NAT | AI38: 0 | AJ38: 0 | AK38: 0 | AL38: 0 | AM38: 0 | AN38: 0 | AO38: 0 | AP38: 0 | AQ38: 0 | AR38: 0 | AS38: 0 | CB38: =Dataset[[#This Row],[2024/25 From - Spending review Topic 1]]+Dataset[[#This Row],[2024/25 From - Spending review Topic 2]]+Dataset[[#This Row],[2024/25 From - Spending review Topic 3]]+Dataset[[#This Row],[2024/25 From - Spending review Topic 4]]+Dataset[[#This Row],[2024/25 From - Other reallocations]] -> 0 | CC38: =Dataset[[#This Row],[2025/26 From - Spending review Topic 1]]+Dataset[[#This Row],[2025/26 From - Spending review Topic 2]]+Dataset[[#This Row],[2025/26 From - Spending review Topic 3]]+Dataset[[#This Row],[2025/26 From - Spending review Topic 4]]+Dataset[[#This Row],[2025/26 From - Other reallocations]] -> 0 | CD38: =Dataset[[#This Row],[2026/27 From - Spending review Topic 1]]+Dataset[[#This Row],[2026/27 From - Spending review Topic 2]]+Dataset[[#This Row],[2026/27 From - Spending review Topic 3]]+Dataset[[#This Row],[2026/27 From - Spending review Topic 4]]+Dataset[[#This Row],[2026/27 From - Other reallocations]] -> 0 | CE38: =Dataset[[#This Row],[2024/25 To - Spending review Topic 1]]+Dataset[[#This Row],[2024/25 To - Spending review Topic 2]]+Dataset[[#This Row],[2024/25 To - Spending review Topic 3]]+Dataset[[#This Row],[2024/25 To - Spending review Topic 4]]+Dataset[[#This Row],[2024/25 To - Other reallocations]] -> 0 | CF38: =Dataset[[#This Row],[2025/26 To - Spending review Topic 1]]+Dataset[[#This Row],[2025/26 To - Spending review Topic 2]]+Dataset[[#This Row],[2025/26 To - Spending review Topic 3]]+Dataset[[#This Row],[2025/26 To - Spending review Topic 4]]+Dataset[[#This Row],[2025/26 To - Other reallocations]] -> 0 | CG38: =Dataset[[#This Row],[2026/27 To - Spending review Topic 1]]+Dataset[[#This Row],[2026/27 To - Spending review Topic 2]]+Dataset[[#This Row],[2026/27 To - Spending review Topic 3]]+Dataset[[#This Row],[2026/27 To - Spending review Topic 4]]+Dataset[[#This Row],[2026/27 To - Other reallocations]] -> 0 | CH38: =Dataset[[#This Row],[2024/25 Reduction]]+Dataset[[#This Row],[2024/25 From - Total]] -> 0 | CI38: =Dataset[[#This Row],[2025/26 Reduction]]+Dataset[[#This Row],[2025/26 From - Total]] -> 0 | CJ38: =Dataset[[#This Row],[2026/27 Reduction]]+Dataset[[#This Row],[2026/27 From - Total]] -> 0 | CK38: =Dataset[[#This Row],[2023/24 Reduction]] -> 0 | CL38: =SUM(Dataset[[#This Row],[2024/25 Reduction]],Dataset[[#This Row],[2024/25 From - Total]],Dataset[[#This Row],[2024/25 To - Total]]) -> 0 | CM38: =SUM(Dataset[[#This Row],[2025/26 Reduction]],Dataset[[#This Row],[2025/26 From - Total]],Dataset[[#This Row],[2025/26 To - Total]]) -> 0 | CN38: =SUM(Dataset[[#This Row],[2026/27 Reduction]],Dataset[[#This Row],[2026/27 From - Total]],Dataset[[#This Row],[2026/27 To - Total]]) -> 0 | CO38: =Dataset[[#This Row],[2023/24 Baseline]]+Dataset[[#This Row],[2023/24 Total change]] -> 0 | CP38: =Dataset[[#This Row],[2024/25 Baseline]]+Dataset[[#This Row],[2024/25 Total change]] -> 0 | CQ38: =Dataset[[#This Row],[2025/26 Baseline]]+Dataset[[#This Row],[2025/26 Total change]] -> 0 | CR38: =Dataset[[#This Row],[2026/27 Baseline]]+Dataset[[#This Row],[2026/27 Total change]] -> 0
A39: NAT|Non-transfer item | B39: 23|Inventory: Clothing material and accessories | C39: 2024_25 | D39: MTEF2024 | E39: 23 | F39: 1 | G39: 1 | H39: 36075 | I39: 21 | J39: 23 | K39: 01 | L39: 01 | M39: 036075 | N39: 000021 | O39: 23|01|01 | P39: 01 | Q39: 01 | R39: 02 | S39: 21 | T39: 21 | U39: 01|01|02|21|21 | V39: National | W39: Defence | X39: Administration | Y39: Ministry | Z39: Non-transfer item | AA39: Current | AB39: Current payments | AC39: Goods and services | AD39: Inventory: Clothing material and accessories | AE39: Inventory: Clothing material and accessories | AF39: Peace and security | AG39: Defence and state security | AH39: NAT | AI39: 0 | AJ39: 0 | AK39: 0 | AL39: 0 | AM39: 0 | AN39: 0 | AO39: 2 | AP39: 0 | AQ39: 0 | AR39: 0 | AS39: 0 | CB39: =Dataset[[#This Row],[2024/25 From - Spending review Topic 1]]+Dataset[[#This Row],[2024/25 From - Spending review Topic 2]]+Dataset[[#This Row],[2024/25 From - Spending review Topic 3]]+Dataset[[#This Row],[2024/25 From - Spending review Topic 4]]+Dataset[[#This Row],[2024/25 From - Other reallocations]] -> 0 | CC39: =Dataset[[#This Row],[2025/26 From - Spending review Topic 1]]+Dataset[[#This Row],[2025/26 From - Spending review Topic 2]]+Dataset[[#This Row],[2025/26 From - Spending review Topic 3]]+Dataset[[#This Row],[2025/26 From - Spending review Topic 4]]+Dataset[[#This Row],[2025/26 From - Other reallocations]] -> 0 | CD39: =Dataset[[#This Row],[2026/27 From - Spending review Topic 1]]+Dataset[[#This Row],[2026/27 From - Spending review Topic 2]]+Dataset[[#This Row],[2026/27 From - Spending review Topic 3]]+Dataset[[#This Row],[2026/27 From - Spending review Topic 4]]+Dataset[[#This Row],[2026/27 From - Other reallocations]] -> 0 | CE39: =Dataset[[#This Row],[2024/25 To - Spending review Topic 1]]+Dataset[[#This Row],[2024/25 To - Spending review Topic 2]]+Dataset[[#This Row],[2024/25 To - Spending review Topic 3]]+Dataset[[#This Row],[2024/25 To - Spending review Topic 4]]+Dataset[[#This Row],[2024/25 To - Other reallocations]] -> 0 | CF39: =Dataset[[#This Row],[2025/26 To - Spending review Topic 1]]+Dataset[[#This Row],[2025/26 To - Spending review Topic 2]]+Dataset[[#This Row],[2025/26 To - Spending review Topic 3]]+Dataset[[#This Row],[2025/26 To - Spending review Topic 4]]+Dataset[[#This Row],[2025/26 To - Other reallocations]] -> 0 | CG39: =Dataset[[#This Row],[2026/27 To - Spending review Topic 1]]+Dataset[[#This Row],[2026/27 To - Spending review Topic 2]]+Dataset[[#This Row],[2026/27 To - Spending review Topic 3]]+Dataset[[#This Row],[2026/27 To - Spending review Topic 4]]+Dataset[[#This Row],[2026/27 To - Other reallocations]] -> 0 | CH39: =Dataset[[#This Row],[2024/25 Reduction]]+Dataset[[#This Row],[2024/25 From - Total]] -> 0 | CI39: =Dataset[[#This Row],[2025/26 Reduction]]+Dataset[[#This Row],[2025/26 From - Total]] -> 0 | CJ39: =Dataset[[#This Row],[2026/27 Reduction]]+Dataset[[#This Row],[2026/27 From - Total]] -> 0 | CK39: =Dataset[[#This Row],[2023/24 Reduction]] -> 0 | CL39: =SUM(Dataset[[#This Row],[2024/25 Reduction]],Dataset[[#This Row],[2024/25 From - Total]],Dataset[[#This Row],[2024/25 To - Total]]) -> 0 | CM39: =SUM(Dataset[[#This Row],[2025/26 Reduction]],Dataset[[#This Row],[2025/26 From - Total]],Dataset[[#This Row],[2025/26 To - Total]]) -> 0 | CN39: =SUM(Dataset[[#This Row],[2026/27 Reduction]],Dataset[[#This Row],[2026/27 From - Total]],Dataset[[#This Row],[2026/27 To - Total]]) -> 0 | CO39: =Dataset[[#This Row],[2023/24 Baseline]]+Dataset[[#This Row],[2023/24 Total change]] -> 0 | CP39: =Dataset[[#This Row],[2024/25 Baseline]]+Dataset[[#This Row],[2024/25 Total change]] -> 0 | CQ39: =Dataset[[#This Row],[2025/26 Baseline]]+Dataset[[#This Row],[2025/26 Total change]] -> 0 | CR39: =Dataset[[#This Row],[2026/27 Baseline]]+Dataset[[#This Row],[2026/27 Total change]] -> 0
A40: NAT|Non-transfer item | B40: 23|Inventory: Farming supplies | C40: 2024_25 | D40: MTEF2024 | E40: 23 | F40: 1 | G40: 1 | H40: 36076 | I40: 22 | J40: 23 | K40: 01 | L40: 01 | M40: 036076 | N40: 000022 | O40: 23|01|01 | P40: 01 | Q40: 01 | R40: 02 | S40: 22 | T40: 22 | U40: 01|01|02|22|22 | V40: National | W40: Defence | X40: Administration | Y40: Ministry | Z40: Non-transfer item | AA40: Current | AB40: Current payments | AC40: Goods and services | AD40: Inventory: Farming supplies | AE40: Inventory: Farming supplies | AF40: Peace and security | AG40: Defence and state security | AH40: NAT | AI40: 0 | AJ40: 0 | AK40: 0 | AL40: 0 | AM40: 0 | AN40: 0 | AO40: 0 | AP40: 0 | AQ40: 0 | AR40: 0 | AS40: 0 | CB40: =Dataset[[#This Row],[2024/25 From - Spending review Topic 1]]+Dataset[[#This Row],[2024/25 From - Spending review Topic 2]]+Dataset[[#This Row],[2024/25 From - Spending review Topic 3]]+Dataset[[#This Row],[2024/25 From - Spending review Topic 4]]+Dataset[[#This Row],[2024/25 From - Other reallocations]] -> 0 | CC40: =Dataset[[#This Row],[2025/26 From - Spending review Topic 1]]+Dataset[[#This Row],[2025/26 From - Spending review Topic 2]]+Dataset[[#This Row],[2025/26 From - Spending review Topic 3]]+Dataset[[#This Row],[2025/26 From - Spending review Topic 4]]+Dataset[[#This Row],[2025/26 From - Other reallocations]] -> 0 | CD40: =Dataset[[#This Row],[2026/27 From - Spending review Topic 1]]+Dataset[[#This Row],[2026/27 From - Spending review Topic 2]]+Dataset[[#This Row],[2026/27 From - Spending review Topic 3]]+Dataset[[#This Row],[2026/27 From - Spending review Topic 4]]+Dataset[[#This Row],[2026/27 From - Other reallocations]] -> 0 | CE40: =Dataset[[#This Row],[2024/25 To - Spending review Topic 1]]+Dataset[[#This Row],[2024/25 To - Spending review Topic 2]]+Dataset[[#This Row],[2024/25 To - Spending review Topic 3]]+Dataset[[#This Row],[2024/25 To - Spending review Topic 4]]+Dataset[[#This Row],[2024/25 To - Other reallocations]] -> 0 | CF40: =Dataset[[#This Row],[2025/26 To - Spending review Topic 1]]+Dataset[[#This Row],[2025/26 To - Spending review Topic 2]]+Dataset[[#This Row],[2025/26 To - Spending review Topic 3]]+Dataset[[#This Row],[2025/26 To - Spending review Topic 4]]+Dataset[[#This Row],[2025/26 To - Other reallocations]] -> 0 | CG40: =Dataset[[#This Row],[2026/27 To - Spending review Topic 1]]+Dataset[[#This Row],[2026/27 To - Spending review Topic 2]]+Dataset[[#This Row],[2026/27 To - Spending review Topic 3]]+Dataset[[#This Row],[2026/27 To - Spending review Topic 4]]+Dataset[[#This Row],[2026/27 To - Other reallocations]] -> 0 | CH40: =Dataset[[#This Row],[2024/25 Reduction]]+Dataset[[#This Row],[2024/25 From - Total]] -> 0 | CI40: =Dataset[[#This Row],[2025/26 Reduction]]+Dataset[[#This Row],[2025/26 From - Total]] -> 0 | CJ40: =Dataset[[#This Row],[2026/27 Reduction]]+Dataset[[#This Row],[2026/27 From - Total]] -> 0 | CK40: =Dataset[[#This Row],[2023/24 Reduction]] -> 0 | CL40: =SUM(Dataset[[#This Row],[2024/25 Reduction]],Dataset[[#This Row],[2024/25 From - Total]],Dataset[[#This Row],[2024/25 To - Total]]) -> 0 | CM40: =SUM(Dataset[[#This Row],[2025/26 Reduction]],Dataset[[#This Row],[2025/26 From - Total]],Dataset[[#This Row],[2025/26 To - Total]]) -> 0 | CN40: =SUM(Dataset[[#This Row],[2026/27 Reduction]],Dataset[[#This Row],[2026/27 From - Total]],Dataset[[#This Row],[2026/27 To - Total]]) -> 0 | CO40: =Dataset[[#This Row],[2023/24 Baseline]]+Dataset[[#This Row],[2023/24 Total change]] -> 0 | CP40: =Dataset[[#This Row],[2024/25 Baseline]]+Dataset[[#This Row],[2024/25 Total change]] -> 0 | CQ40: =Dataset[[#This Row],[2025/26 Baseline]]+Dataset[[#This Row],[2025/26 Total change]] -> 0 | CR40: =Dataset[[#This Row],[2026/27 Baseline]]+Dataset[[#This Row],[2026/27 Total change]] -> 0
A41: NAT|Non-transfer item | B41: 23|Inventory: Food and food supplies | C41: 2024_25 | D41: MTEF2024 | E41: 23 | F41: 1 | G41: 1 | H41: 36077 | I41: 23 | J41: 23 | K41: 01 | L41: 01 | M41: 036077 | N41: 000023 | O41: 23|01|01 | P41: 01 | Q41: 01 | R41: 02 | S41: 23 | T41: 23 | U41: 01|01|02|23|23 | V41: National | W41: Defence | X41: Administration | Y41: Ministry | Z41: Non-transfer item | AA41: Current | AB41: Current payments | AC41: Goods and services | AD41: Inventory: Food and food supplies | AE41: Inventory: Food and food supplies | AF41: Peace and security | AG41: Defence and state security | AH41: NAT | AI41: 19 | AJ41: 14 | AK41: 13 | AL41: 61 | AM41: 61 | AN41: 61 | AO41: 25 | AP41: 40 | AQ41: 44 | AR41: 48 | AS41: 50 | CB41: =Dataset[[#This Row],[2024/25 From - Spending review Topic 1]]+Dataset[[#This Row],[2024/25 From - Spending review Topic 2]]+Dataset[[#This Row],[2024/25 From - Spending review Topic 3]]+Dataset[[#This Row],[2024/25 From - Spending review Topic 4]]+Dataset[[#This Row],[2024/25 From - Other reallocations]] -> 0 | CC41: =Dataset[[#This Row],[2025/26 From - Spending review Topic 1]]+Dataset[[#This Row],[2025/26 From - Spending review Topic 2]]+Dataset[[#This Row],[2025/26 From - Spending review Topic 3]]+Dataset[[#This Row],[2025/26 From - Spending review Topic 4]]+Dataset[[#This Row],[2025/26 From - Other reallocations]] -> 0 | CD41: =Dataset[[#This Row],[2026/27 From - Spending review Topic 1]]+Dataset[[#This Row],[2026/27 From - Spending review Topic 2]]+Dataset[[#This Row],[2026/27 From - Spending review Topic 3]]+Dataset[[#This Row],[2026/27 From - Spending review Topic 4]]+Dataset[[#This Row],[2026/27 From - Other reallocations]] -> 0 | CE41: =Dataset[[#This Row],[2024/25 To - Spending review Topic 1]]+Dataset[[#This Row],[2024/25 To - Spending review Topic 2]]+Dataset[[#This Row],[2024/25 To - Spending review Topic 3]]+Dataset[[#This Row],[2024/25 To - Spending review Topic 4]]+Dataset[[#This Row],[2024/25 To - Other reallocations]] -> 0 | CF41: =Dataset[[#This Row],[2025/26 To - Spending review Topic 1]]+Dataset[[#This Row],[2025/26 To - Spending review Topic 2]]+Dataset[[#This Row],[2025/26 To - Spending review Topic 3]]+Dataset[[#This Row],[2025/26 To - Spending review Topic 4]]+Dataset[[#This Row],[2025/26 To - Other reallocations]] -> 0 | CG41: =Dataset[[#This Row],[2026/27 To - Spending review Topic 1]]+Dataset[[#This Row],[2026/27 To - Spending review Topic 2]]+Dataset[[#This Row],[2026/27 To - Spending review Topic 3]]+Dataset[[#This Row],[2026/27 To - Spending review Topic 4]]+Dataset[[#This Row],[2026/27 To - Other reallocations]] -> 0 | CH41: =Dataset[[#This Row],[2024/25 Reduction]]+Dataset[[#This Row],[2024/25 From - Total]] -> 0 | CI41: =Dataset[[#This Row],[2025/26 Reduction]]+Dataset[[#This Row],[2025/26 From - Total]] -> 0 | CJ41: =Dataset[[#This Row],[2026/27 Reduction]]+Dataset[[#This Row],[2026/27 From - Total]] -> 0 | CK41: =Dataset[[#This Row],[2023/24 Reduction]] -> 0 | CL41: =SUM(Dataset[[#This Row],[2024/25 Reduction]],Dataset[[#This Row],[2024/25 From - Total]],Dataset[[#This Row],[2024/25 To - Total]]) -> 0 | CM41: =SUM(Dataset[[#This Row],[2025/26 Reduction]],Dataset[[#This Row],[2025/26 From - Total]],Dataset[[#This Row],[2025/26 To - Total]]) -> 0 | CN41: =SUM(Dataset[[#This Row],[2026/27 Reduction]],Dataset[[#This Row],[2026/27 From - Total]],Dataset[[#This Row],[2026/27 To - Total]]) -> 0 | CO41: =Dataset[[#This Row],[2023/24 Baseline]]+Dataset[[#This Row],[2023/24 Total change]] -> 40 | CP41: =Dataset[[#This Row],[2024/25 Baseline]]+Dataset[[#This Row],[2024/25 Total change]] -> 44 | CQ41: =Dataset[[#This Row],[2025/26 Baseline]]+Dataset[[#This Row],[2025/26 Total change]] -> 48 | CR41: =Dataset[[#This Row],[2026/27 Baseline]]+Dataset[[#This Row],[2026/27 Total change]] -> 50
A42: NAT|Non-transfer item | B42: 23|Inventory: Fuel, oil and gas | C42: 2024_25 | D42: MTEF2024 | E42: 23 | F42: 1 | G42: 1 | H42: 36078 | I42: 24 | J42: 23 | K42: 01 | L42: 01 | M42: 036078 | N42: 000024 | O42: 23|01|01 | P42: 01 | Q42: 01 | R42: 02 | S42: 24 | T42: 24 | U42: 01|01|02|24|24 | V42: National | W42: Defence | X42: Administration | Y42: Ministry | Z42: Non-transfer item | AA42: Current | AB42: Current payments | AC42: Goods and services | AD42: Inventory: Fuel, oil and gas | AE42: Inventory: Fuel, oil and gas | AF42: Peace and security | AG42: Defence and state security | AH42: NAT | AI42: 3 | AJ42: 33 | AK42: 15 | AL42: 104 | AM42: 104 | AN42: 104 | AO42: 8 | AP42: 19 | AQ42: 21 | AR42: 24 | AS42: 25 | CB42: =Dataset[[#This Row],[2024/25 From - Spending review Topic 1]]+Dataset[[#This Row],[2024/25 From - Spending review Topic 2]]+Dataset[[#This Row],[2024/25 From - Spending review Topic 3]]+Dataset[[#This Row],[2024/25 From - Spending review Topic 4]]+Dataset[[#This Row],[2024/25 From - Other reallocations]] -> 0 | CC42: =Dataset[[#This Row],[2025/26 From - Spending review Topic 1]]+Dataset[[#This Row],[2025/26 From - Spending review Topic 2]]+Dataset[[#This Row],[2025/26 From - Spending review Topic 3]]+Dataset[[#This Row],[2025/26 From - Spending review Topic 4]]+Dataset[[#This Row],[2025/26 From - Other reallocations]] -> 0 | CD42: =Dataset[[#This Row],[2026/27 From - Spending review Topic 1]]+Dataset[[#This Row],[2026/27 From - Spending review Topic 2]]+Dataset[[#This Row],[2026/27 From - Spending review Topic 3]]+Dataset[[#This Row],[2026/27 From - Spending review Topic 4]]+Dataset[[#This Row],[2026/27 From - Other reallocations]] -> 0 | CE42: =Dataset[[#This Row],[2024/25 To - Spending review Topic 1]]+Dataset[[#This Row],[2024/25 To - Spending review Topic 2]]+Dataset[[#This Row],[2024/25 To - Spending review Topic 3]]+Dataset[[#This Row],[2024/25 To - Spending review Topic 4]]+Dataset[[#This Row],[2024/25 To - Other reallocations]] -> 0 | CF42: =Dataset[[#This Row],[2025/26 To - Spending review Topic 1]]+Dataset[[#This Row],[2025/26 To - Spending review Topic 2]]+Dataset[[#This Row],[2025/26 To - Spending review Topic 3]]+Dataset[[#This Row],[2025/26 To - Spending review Topic 4]]+Dataset[[#This Row],[2025/26 To - Other reallocations]] -> 0 | CG42: =Dataset[[#This Row],[2026/27 To - Spending review Topic 1]]+Dataset[[#This Row],[2026/27 To - Spending review Topic 2]]+Dataset[[#This Row],[2026/27 To - Spending review Topic 3]]+Dataset[[#This Row],[2026/27 To - Spending review Topic 4]]+Dataset[[#This Row],[2026/27 To - Other reallocations]] -> 0 | CH42: =Dataset[[#This Row],[2024/25 Reduction]]+Dataset[[#This Row],[2024/25 From - Total]] -> 0 | CI42: =Dataset[[#This Row],[2025/26 Reduction]]+Dataset[[#This Row],[2025/26 From - Total]] -> 0 | CJ42: =Dataset[[#This Row],[2026/27 Reduction]]+Dataset[[#This Row],[2026/27 From - Total]] -> 0 | CK42: =Dataset[[#This Row],[2023/24 Reduction]] -> 0 | CL42: =SUM(Dataset[[#This Row],[2024/25 Reduction]],Dataset[[#This Row],[2024/25 From - Total]],Dataset[[#This Row],[2024/25 To - Total]]) -> 0 | CM42: =SUM(Dataset[[#This Row],[2025/26 Reduction]],Dataset[[#This Row],[2025/26 From - Total]],Dataset[[#This Row],[2025/26 To - Total]]) -> 0 | CN42: =SUM(Dataset[[#This Row],[2026/27 Reduction]],Dataset[[#This Row],[2026/27 From - Total]],Dataset[[#This Row],[2026/27 To - Total]]) -> 0 | CO42: =Dataset[[#This Row],[2023/24 Baseline]]+Dataset[[#This Row],[2023/24 Total change]] -> 19 | CP42: =Dataset[[#This Row],[2024/25 Baseline]]+Dataset[[#This Row],[2024/25 Total change]] -> 21 | CQ42: =Dataset[[#This Row],[2025/26 Baseline]]+Dataset[[#This Row],[2025/26 Total change]] -> 24 | CR42: =Dataset[[#This Row],[2026/27 Baseline]]+Dataset[[#This Row],[2026/27 Total change]] -> 25
A43: NAT|Non-transfer item | B43: 23|Inventory: Learner and teacher support material | C43: 2024_25 | D43: MTEF2024 | E43: 23 | F43: 1 | G43: 1 | H43: 36079 | I43: 25 | J43: 23 | K43: 01 | L43: 01 | M43: 036079 | N43: 000025 | O43: 23|01|01 | P43: 01 | Q43: 01 | R43: 02 | S43: 25 | T43: 25 | U43: 01|01|02|25|25 | V43: National | W43: Defence | X43: Administration | Y43: Ministry | Z43: Non-transfer item | AA43: Current | AB43: Current payments | AC43: Goods and services | AD43: Inventory: Learner and teacher support material | AE43: Inventory: Learner and teacher support material | AF43: Peace and security | AG43: Defence and state security | AH43: NAT | AI43: 0 | AJ43: 0 | AK43: 0 | AL43: 0 | AM43: 0 | AN43: 0 | AO43: 0 | AP43: 0 | AQ43: 0 | AR43: 0 | AS43: 0 | CB43: =Dataset[[#This Row],[2024/25 From - Spending review Topic 1]]+Dataset[[#This Row],[2024/25 From - Spending review Topic 2]]+Dataset[[#This Row],[2024/25 From - Spending review Topic 3]]+Dataset[[#This Row],[2024/25 From - Spending review Topic 4]]+Dataset[[#This Row],[2024/25 From - Other reallocations]] -> 0 | CC43: =Dataset[[#This Row],[2025/26 From - Spending review Topic 1]]+Dataset[[#This Row],[2025/26 From - Spending review Topic 2]]+Dataset[[#This Row],[2025/26 From - Spending review Topic 3]]+Dataset[[#This Row],[2025/26 From - Spending review Topic 4]]+Dataset[[#This Row],[2025/26 From - Other reallocations]] -> 0 | CD43: =Dataset[[#This Row],[2026/27 From - Spending review Topic 1]]+Dataset[[#This Row],[2026/27 From - Spending review Topic 2]]+Dataset[[#This Row],[2026/27 From - Spending review Topic 3]]+Dataset[[#This Row],[2026/27 From - Spending review Topic 4]]+Dataset[[#This Row],[2026/27 From - Other reallocations]] -> 0 | CE43: =Dataset[[#This Row],[2024/25 To - Spending review Topic 1]]+Dataset[[#This Row],[2024/25 To - Spending review Topic 2]]+Dataset[[#This Row],[2024/25 To - Spending review Topic 3]]+Dataset[[#This Row],[2024/25 To - Spending review Topic 4]]+Dataset[[#This Row],[2024/25 To - Other reallocations]] -> 0 | CF43: =Dataset[[#This Row],[2025/26 To - Spending review Topic 1]]+Dataset[[#This Row],[2025/26 To - Spending review Topic 2]]+Dataset[[#This Row],[2025/26 To - Spending review Topic 3]]+Dataset[[#This Row],[2025/26 To - Spending review Topic 4]]+Dataset[[#This Row],[2025/26 To - Other reallocations]] -> 0 | CG43: =Dataset[[#This Row],[2026/27 To - Spending review Topic 1]]+Dataset[[#This Row],[2026/27 To - Spending review Topic 2]]+Dataset[[#This Row],[2026/27 To - Spending review Topic 3]]+Dataset[[#This Row],[2026/27 To - Spending review Topic 4]]+Dataset[[#This Row],[2026/27 To - Other reallocations]] -> 0 | CH43: =Dataset[[#This Row],[2024/25 Reduction]]+Dataset[[#This Row],[2024/25 From - Total]] -> 0 | CI43: =Dataset[[#This Row],[2025/26 Reduction]]+Dataset[[#This Row],[2025/26 From - Total]] -> 0 | CJ43: =Dataset[[#This Row],[2026/27 Reduction]]+Dataset[[#This Row],[2026/27 From - Total]] -> 0 | CK43: =Dataset[[#This Row],[2023/24 Reduction]] -> 0 | CL43: =SUM(Dataset[[#This Row],[2024/25 Reduction]],Dataset[[#This Row],[2024/25 From - Total]],Dataset[[#This Row],[2024/25 To - Total]]) -> 0 | CM43: =SUM(Dataset[[#This Row],[2025/26 Reduction]],Dataset[[#This Row],[2025/26 From - Total]],Dataset[[#This Row],[2025/26 To - Total]]) -> 0 | CN43: =SUM(Dataset[[#This Row],[2026/27 Reduction]],Dataset[[#This Row],[2026/27 From - Total]],Dataset[[#This Row],[2026/27 To - Total]]) -> 0 | CO43: =Dataset[[#This Row],[2023/24 Baseline]]+Dataset[[#This Row],[2023/24 Total change]] -> 0 | CP43: =Dataset[[#This Row],[2024/25 Baseline]]+Dataset[[#This Row],[2024/25 Total change]] -> 0 | CQ43: =Dataset[[#This Row],[2025/26 Baseline]]+Dataset[[#This Row],[2025/26 Total change]] -> 0 | CR43: =Dataset[[#This Row],[2026/27 Baseline]]+Dataset[[#This Row],[2026/27 Total change]] -> 0
A44: NAT|Non-transfer item | B44: 23|Inventory: Materials and supplies | C44: 2024_25 | D44: MTEF2024 | E44: 23 | F44: 1 | G44: 1 | H44: 36080 | I44: 26 | J44: 23 | K44: 01 | L44: 01 | M44: 036080 | N44: 000026 | O44: 23|01|01 | P44: 01 | Q44: 01 | R44: 02 | S44: 26 | T44: 26 | U44: 01|01|02|26|26 | V44: National | W44: Defence | X44: Administration | Y44: Ministry | Z44: Non-transfer item | AA44: Current | AB44: Current payments | AC44: Goods and services | AD44: Inventory: Materials and supplies | AE44: Inventory: Materials and supplies | AF44: Peace and security | AG44: Defence and state security | AH44: NAT | AI44: 2 | AJ44: 0 | AK44: 0 | AL44: 6 | AM44: 6 | AN44: 6 | AO44: 1 | AP44: 8 | AQ44: 8 | AR44: 9 | AS44: 9 | CB44: =Dataset[[#This Row],[2024/25 From - Spending review Topic 1]]+Dataset[[#This Row],[2024/25 From - Spending review Topic 2]]+Dataset[[#This Row],[2024/25 From - Spending review Topic 3]]+Dataset[[#This Row],[2024/25 From - Spending review Topic 4]]+Dataset[[#This Row],[2024/25 From - Other reallocations]] -> 0 | CC44: =Dataset[[#This Row],[2025/26 From - Spending review Topic 1]]+Dataset[[#This Row],[2025/26 From - Spending review Topic 2]]+Dataset[[#This Row],[2025/26 From - Spending review Topic 3]]+Dataset[[#This Row],[2025/26 From - Spending review Topic 4]]+Dataset[[#This Row],[2025/26 From - Other reallocations]] -> 0 | CD44: =Dataset[[#This Row],[2026/27 From - Spending review Topic 1]]+Dataset[[#This Row],[2026/27 From - Spending review Topic 2]]+Dataset[[#This Row],[2026/27 From - Spending review Topic 3]]+Dataset[[#This Row],[2026/27 From - Spending review Topic 4]]+Dataset[[#This Row],[2026/27 From - Other reallocations]] -> 0 | CE44: =Dataset[[#This Row],[2024/25 To - Spending review Topic 1]]+Dataset[[#This Row],[2024/25 To - Spending review Topic 2]]+Dataset[[#This Row],[2024/25 To - Spending review Topic 3]]+Dataset[[#This Row],[2024/25 To - Spending review Topic 4]]+Dataset[[#This Row],[2024/25 To - Other reallocations]] -> 0 | CF44: =Dataset[[#This Row],[2025/26 To - Spending review Topic 1]]+Dataset[[#This Row],[2025/26 To - Spending review Topic 2]]+Dataset[[#This Row],[2025/26 To - Spending review Topic 3]]+Dataset[[#This Row],[2025/26 To - Spending review Topic 4]]+Dataset[[#This Row],[2025/26 To - Other reallocations]] -> 0 | CG44: =Dataset[[#This Row],[2026/27 To - Spending review Topic 1]]+Dataset[[#This Row],[2026/27 To - Spending review Topic 2]]+Dataset[[#This Row],[2026/27 To - Spending review Topic 3]]+Dataset[[#This Row],[2026/27 To - Spending review Topic 4]]+Dataset[[#This Row],[2026/27 To - Other reallocations]] -> 0 | CH44: =Dataset[[#This Row],[2024/25 Reduction]]+Dataset[[#This Row],[2024/25 From - Total]] -> 0 | CI44: =Dataset[[#This Row],[2025/26 Reduction]]+Dataset[[#This Row],[2025/26 From - Total]] -> 0 | CJ44: =Dataset[[#This Row],[2026/27 Reduction]]+Dataset[[#This Row],[2026/27 From - Total]] -> 0 | CK44: =Dataset[[#This Row],[2023/24 Reduction]] -> 0 | CL44: =SUM(Dataset[[#This Row],[2024/25 Reduction]],Dataset[[#This Row],[2024/25 From - Total]],Dataset[[#This Row],[2024/25 To - Total]]) -> 0 | CM44: =SUM(Dataset[[#This Row],[2025/26 Reduction]],Dataset[[#This Row],[2025/26 From - Total]],Dataset[[#This Row],[2025/26 To - Total]]) -> 0 | CN44: =SUM(Dataset[[#This Row],[2026/27 Reduction]],Dataset[[#This Row],[2026/27 From - Total]],Dataset[[#This Row],[2026/27 To - Total]]) -> 0 | CO44: =Dataset[[#This Row],[2023/24 Baseline]]+Dataset[[#This Row],[2023/24 Total change]] -> 8 | CP44: =Dataset[[#This Row],[2024/25 Baseline]]+Dataset[[#This Row],[2024/25 Total change]] -> 8 | CQ44: =Dataset[[#This Row],[2025/26 Baseline]]+Dataset[[#This Row],[2025/26 Total change]] -> 9 | CR44: =Dataset[[#This Row],[2026/27 Baseline]]+Dataset[[#This Row],[2026/27 Total change]] -> 9
A45: NAT|Non-transfer item | B45: 23|Inventory: Medical supplies | C45: 2024_25 | D45: MTEF2024 | E45: 23 | F45: 1 | G45: 1 | H45: 36081 | I45: 27 | J45: 23 | K45: 01 | L45: 01 | M45: 036081 | N45: 000027 | O45: 23|01|01 | P45: 01 | Q45: 01 | R45: 02 | S45: 27 | T45: 27 | U45: 01|01|02|27|27 | V45: National | W45: Defence | X45: Administration | Y45: Ministry | Z45: Non-transfer item | AA45: Current | AB45: Current payments | AC45: Goods and services | AD45: Inventory: Medical supplies | AE45: Inventory: Medical supplies | AF45: Peace and security | AG45: Defence and state security | AH45: NAT | AI45: 0 | AJ45: 0 | AK45: 0 | AL45: 0 | AM45: 0 | AN45: 0 | AO45: 0 | AP45: 0 | AQ45: 0 | AR45: 0 | AS45: 0 | CB45: =Dataset[[#This Row],[2024/25 From - Spending review Topic 1]]+Dataset[[#This Row],[2024/25 From - Spending review Topic 2]]+Dataset[[#This Row],[2024/25 From - Spending review Topic 3]]+Dataset[[#This Row],[2024/25 From - Spending review Topic 4]]+Dataset[[#This Row],[2024/25 From - Other reallocations]] -> 0 | CC45: =Dataset[[#This Row],[2025/26 From - Spending review Topic 1]]+Dataset[[#This Row],[2025/26 From - Spending review Topic 2]]+Dataset[[#This Row],[2025/26 From - Spending review Topic 3]]+Dataset[[#This Row],[2025/26 From - Spending review Topic 4]]+Dataset[[#This Row],[2025/26 From - Other reallocations]] -> 0 | CD45: =Dataset[[#This Row],[2026/27 From - Spending review Topic 1]]+Dataset[[#This Row],[2026/27 From - Spending review Topic 2]]+Dataset[[#This Row],[2026/27 From - Spending review Topic 3]]+Dataset[[#This Row],[2026/27 From - Spending review Topic 4]]+Dataset[[#This Row],[2026/27 From - Other reallocations]] -> 0 | CE45: =Dataset[[#This Row],[2024/25 To - Spending review Topic 1]]+Dataset[[#This Row],[2024/25 To - Spending review Topic 2]]+Dataset[[#This Row],[2024/25 To - Spending review Topic 3]]+Dataset[[#This Row],[2024/25 To - Spending review Topic 4]]+Dataset[[#This Row],[2024/25 To - Other reallocations]] -> 0 | CF45: =Dataset[[#This Row],[2025/26 To - Spending review Topic 1]]+Dataset[[#This Row],[2025/26 To - Spending review Topic 2]]+Dataset[[#This Row],[2025/26 To - Spending review Topic 3]]+Dataset[[#This Row],[2025/26 To - Spending review Topic 4]]+Dataset[[#This Row],[2025/26 To - Other reallocations]] -> 0 | CG45: =Dataset[[#This Row],[2026/27 To - Spending review Topic 1]]+Dataset[[#This Row],[2026/27 To - Spending review Topic 2]]+Dataset[[#This Row],[2026/27 To - Spending review Topic 3]]+Dataset[[#This Row],[2026/27 To - Spending review Topic 4]]+Dataset[[#This Row],[2026/27 To - Other reallocations]] -> 0 | CH45: =Dataset[[#This Row],[2024/25 Reduction]]+Dataset[[#This Row],[2024/25 From - Total]] -> 0 | CI45: =Dataset[[#This Row],[2025/26 Reduction]]+Dataset[[#This Row],[2025/26 From - Total]] -> 0 | CJ45: =Dataset[[#This Row],[2026/27 Reduction]]+Dataset[[#This Row],[2026/27 From - Total]] -> 0 | CK45: =Dataset[[#This Row],[2023/24 Reduction]] -> 0 | CL45: =SUM(Dataset[[#This Row],[2024/25 Reduction]],Dataset[[#This Row],[2024/25 From - Total]],Dataset[[#This Row],[2024/25 To - Total]]) -> 0 | CM45: =SUM(Dataset[[#This Row],[2025/26 Reduction]],Dataset[[#This Row],[2025/26 From - Total]],Dataset[[#This Row],[2025/26 To - Total]]) -> 0 | CN45: =SUM(Dataset[[#This Row],[2026/27 Reduction]],Dataset[[#This Row],[2026/27 From - Total]],Dataset[[#This Row],[2026/27 To - Total]]) -> 0 | CO45: =Dataset[[#This Row],[2023/24 Baseline]]+Dataset[[#This Row],[2023/24 Total change]] -> 0 | CP45: =Dataset[[#This Row],[2024/25 Baseline]]+Dataset[[#This Row],[2024/25 Total change]] -> 0 | CQ45: =Dataset[[#This Row],[2025/26 Baseline]]+Dataset[[#This Row],[2025/26 Total change]] -> 0 | CR45: =Dataset[[#This Row],[2026/27 Baseline]]+Dataset[[#This Row],[2026/27 Total change]] -> 0
A46: NAT|Non-transfer item | B46: 23|Inventory: Medicine | C46: 2024_25 | D46: MTEF2024 | E46: 23 | F46: 1 | G46: 1 | H46: 36082 | I46: 28 | J46: 23 | K46: 01 | L46: 01 | M46: 036082 | N46: 000028 | O46: 23|01|01 | P46: 01 | Q46: 01 | R46: 02 | S46: 28 | T46: 28 | U46: 01|01|02|28|28 | V46: National | W46: Defence | X46: Administration | Y46: Ministry | Z46: Non-transfer item | AA46: Current | AB46: Current payments | AC46: Goods and services | AD46: Inventory: Medicine | AE46: Inventory: Medicine | AF46: Peace and security | AG46: Defence and state security | AH46: NAT | AI46: 0 | AJ46: 0 | AK46: 0 | AL46: 0 | AM46: 0 | AN46: 0 | AO46: 0 | AP46: 0 | AQ46: 0 | AR46: 0 | AS46: 0 | CB46: =Dataset[[#This Row],[2024/25 From - Spending review Topic 1]]+Dataset[[#This Row],[2024/25 From - Spending review Topic 2]]+Dataset[[#This Row],[2024/25 From - Spending review Topic 3]]+Dataset[[#This Row],[2024/25 From - Spending review Topic 4]]+Dataset[[#This Row],[2024/25 From - Other reallocations]] -> 0 | CC46: =Dataset[[#This Row],[2025/26 From - Spending review Topic 1]]+Dataset[[#This Row],[2025/26 From - Spending review Topic 2]]+Dataset[[#This Row],[2025/26 From - Spending review Topic 3]]+Dataset[[#This Row],[2025/26 From - Spending review Topic 4]]+Dataset[[#This Row],[2025/26 From - Other reallocations]] -> 0 | CD46: =Dataset[[#This Row],[2026/27 From - Spending review Topic 1]]+Dataset[[#This Row],[2026/27 From - Spending review Topic 2]]+Dataset[[#This Row],[2026/27 From - Spending review Topic 3]]+Dataset[[#This Row],[2026/27 From - Spending review Topic 4]]+Dataset[[#This Row],[2026/27 From - Other reallocations]] -> 0 | CE46: =Dataset[[#This Row],[2024/25 To - Spending review Topic 1]]+Dataset[[#This Row],[2024/25 To - Spending review Topic 2]]+Dataset[[#This Row],[2024/25 To - Spending review Topic 3]]+Dataset[[#This Row],[2024/25 To - Spending review Topic 4]]+Dataset[[#This Row],[2024/25 To - Other reallocations]] -> 0 | CF46: =Dataset[[#This Row],[2025/26 To - Spending review Topic 1]]+Dataset[[#This Row],[2025/26 To - Spending review Topic 2]]+Dataset[[#This Row],[2025/26 To - Spending review Topic 3]]+Dataset[[#This Row],[2025/26 To - Spending review Topic 4]]+Dataset[[#This Row],[2025/26 To - Other reallocations]] -> 0 | CG46: =Dataset[[#This Row],[2026/27 To - Spending review Topic 1]]+Dataset[[#This Row],[2026/27 To - Spending review Topic 2]]+Dataset[[#This Row],[2026/27 To - Spending review Topic 3]]+Dataset[[#This Row],[2026/27 To - Spending review Topic 4]]+Dataset[[#This Row],[2026/27 To - Other reallocations]] -> 0 | CH46: =Dataset[[#This Row],[2024/25 Reduction]]+Dataset[[#This Row],[2024/25 From - Total]] -> 0 | CI46: =Dataset[[#This Row],[2025/26 Reduction]]+Dataset[[#This Row],[2025/26 From - Total]] -> 0 | CJ46: =Dataset[[#This Row],[2026/27 Reduction]]+Dataset[[#This Row],[2026/27 From - Total]] -> 0 | CK46: =Dataset[[#This Row],[2023/24 Reduction]] -> 0 | CL46: =SUM(Dataset[[#This Row],[2024/25 Reduction]],Dataset[[#This Row],[2024/25 From - Total]],Dataset[[#This Row],[2024/25 To - Total]]) -> 0 | CM46: =SUM(Dataset[[#This Row],[2025/26 Reduction]],Dataset[[#This Row],[2025/26 From - Total]],Dataset[[#This Row],[2025/26 To - Total]]) -> 0 | CN46: =SUM(Dataset[[#This Row],[2026/27 Reduction]],Dataset[[#This Row],[2026/27 From - Total]],Dataset[[#This Row],[2026/27 To - Total]]) -> 0 | CO46: =Dataset[[#This Row],[2023/24 Baseline]]+Dataset[[#This Row],[2023/24 Total change]] -> 0 | CP46: =Dataset[[#This Row],[2024/25 Baseline]]+Dataset[[#This Row],[2024/25 Total change]] -> 0 | CQ46: =Dataset[[#This Row],[2025/26 Baseline]]+Dataset[[#This Row],[2025/26 Total change]] -> 0 | CR46: =Dataset[[#This Row],[2026/27 Baseline]]+Dataset[[#This Row],[2026/27 Total change]] -> 0
A47: NAT|Non-transfer item | B47: 23|Medsas inventory interface | C47: 2024_25 | D47: MTEF2024 | E47: 23 | F47: 1 | G47: 1 | H47: 36083 | I47: 29 | J47: 23 | K47: 01 | L47: 01 | M47: 036083 | N47: 000029 | O47: 23|01|01 | P47: 01 | Q47: 01 | R47: 02 | S47: 29 | T47: 29 | U47: 01|01|02|29|29 | V47: National | W47: Defence | X47: Administration | Y47: Ministry | Z47: Non-transfer item | AA47: Current | AB47: Current payments | AC47: Goods and services | AD47: Medsas inventory interface | AE47: Medsas inventory interface | AF47: Peace and security | AG47: Defence and state security | AH47: NAT | AI47: 0 | AJ47: 0 | AK47: 0 | AL47: 0 | AM47: 0 | AN47: 0 | AO47: 0 | AP47: 0 | AQ47: 0 | AR47: 0 | AS47: 0 | CB47: =Dataset[[#This Row],[2024/25 From - Spending review Topic 1]]+Dataset[[#This Row],[2024/25 From - Spending review Topic 2]]+Dataset[[#This Row],[2024/25 From - Spending review Topic 3]]+Dataset[[#This Row],[2024/25 From - Spending review Topic 4]]+Dataset[[#This Row],[2024/25 From - Other reallocations]] -> 0 | CC47: =Dataset[[#This Row],[2025/26 From - Spending review Topic 1]]+Dataset[[#This Row],[2025/26 From - Spending review Topic 2]]+Dataset[[#This Row],[2025/26 From - Spending review Topic 3]]+Dataset[[#This Row],[2025/26 From - Spending review Topic 4]]+Dataset[[#This Row],[2025/26 From - Other reallocations]] -> 0 | CD47: =Dataset[[#This Row],[2026/27 From - Spending review Topic 1]]+Dataset[[#This Row],[2026/27 From - Spending review Topic 2]]+Dataset[[#This Row],[2026/27 From - Spending review Topic 3]]+Dataset[[#This Row],[2026/27 From - Spending review Topic 4]]+Dataset[[#This Row],[2026/27 From - Other reallocations]] -> 0 | CE47: =Dataset[[#This Row],[2024/25 To - Spending review Topic 1]]+Dataset[[#This Row],[2024/25 To - Spending review Topic 2]]+Dataset[[#This Row],[2024/25 To - Spending review Topic 3]]+Dataset[[#This Row],[2024/25 To - Spending review Topic 4]]+Dataset[[#This Row],[2024/25 To - Other reallocations]] -> 0 | CF47: =Dataset[[#This Row],[2025/26 To - Spending review Topic 1]]+Dataset[[#This Row],[2025/26 To - Spending review Topic 2]]+Dataset[[#This Row],[2025/26 To - Spending review Topic 3]]+Dataset[[#This Row],[2025/26 To - Spending review Topic 4]]+Dataset[[#This Row],[2025/26 To - Other reallocations]] -> 0 | CG47: =Dataset[[#This Row],[2026/27 To - Spending review Topic 1]]+Dataset[[#This Row],[2026/27 To - Spending review Topic 2]]+Dataset[[#This Row],[2026/27 To - Spending review Topic 3]]+Dataset[[#This Row],[2026/27 To - Spending review Topic 4]]+Dataset[[#This Row],[2026/27 To - Other reallocations]] -> 0 | CH47: =Dataset[[#This Row],[2024/25 Reduction]]+Dataset[[#This Row],[2024/25 From - Total]] -> 0 | CI47: =Dataset[[#This Row],[2025/26 Reduction]]+Dataset[[#This Row],[2025/26 From - Total]] -> 0 | CJ47: =Dataset[[#This Row],[2026/27 Reduction]]+Dataset[[#This Row],[2026/27 From - Total]] -> 0 | CK47: =Dataset[[#This Row],[2023/24 Reduction]] -> 0 | CL47: =SUM(Dataset[[#This Row],[2024/25 Reduction]],Dataset[[#This Row],[2024/25 From - Total]],Dataset[[#This Row],[2024/25 To - Total]]) -> 0 | CM47: =SUM(Dataset[[#This Row],[2025/26 Reduction]],Dataset[[#This Row],[2025/26 From - Total]],Dataset[[#This Row],[2025/26 To - Total]]) -> 0 | CN47: =SUM(Dataset[[#This Row],[2026/27 Reduction]],Dataset[[#This Row],[2026/27 From - Total]],Dataset[[#This Row],[2026/27 To - Total]]) -> 0 | CO47: =Dataset[[#This Row],[2023/24 Baseline]]+Dataset[[#This Row],[2023/24 Total change]] -> 0 | CP47: =Dataset[[#This Row],[2024/25 Baseline]]+Dataset[[#This Row],[2024/25 Total change]] -> 0 | CQ47: =Dataset[[#This Row],[2025/26 Baseline]]+Dataset[[#This Row],[2025/26 Total change]] -> 0 | CR47: =Dataset[[#This Row],[2026/27 Baseline]]+Dataset[[#This Row],[2026/27 Total change]] -> 0
A48: NAT|Non-transfer item | B48: 23|Inventory: Other supplies | C48: 2024_25 | D48: MTEF2024 | E48: 23 | F48: 1 | G48: 1 | H48: 36084 | I48: 30 | J48: 23 | K48: 01 | L48: 01 | M48: 036084 | N48: 000030 | O48: 23|01|01 | P48: 01 | Q48: 01 | R48: 02 | S48: 30 | T48: 30 | U48: 01|01|02|30|30 | V48: National | W48: Defence | X48: Administration | Y48: Ministry | Z48: Non-transfer item | AA48: Current | AB48: Current payments | AC48: Goods and services | AD48: Inventory: Other supplies | AE48: Inventory: Other supplies | AF48: Peace and security | AG48: Defence and state security | AH48: NAT | AI48: 0 | AJ48: 0 | AK48: 0 | AL48: 0 | AM48: 0 | AN48: 0 | AO48: 0 | AP48: 0 | AQ48: 0 | AR48: 0 | AS48: 0 | CB48: =Dataset[[#This Row],[2024/25 From - Spending review Topic 1]]+Dataset[[#This Row],[2024/25 From - Spending review Topic 2]]+Dataset[[#This Row],[2024/25 From - Spending review Topic 3]]+Dataset[[#This Row],[2024/25 From - Spending review Topic 4]]+Dataset[[#This Row],[2024/25 From - Other reallocations]] -> 0 | CC48: =Dataset[[#This Row],[2025/26 From - Spending review Topic 1]]+Dataset[[#This Row],[2025/26 From - Spending review Topic 2]]+Dataset[[#This Row],[2025/26 From - Spending review Topic 3]]+Dataset[[#This Row],[2025/26 From - Spending review Topic 4]]+Dataset[[#This Row],[2025/26 From - Other reallocations]] -> 0 | CD48: =Dataset[[#This Row],[2026/27 From - Spending review Topic 1]]+Dataset[[#This Row],[2026/27 From - Spending review Topic 2]]+Dataset[[#This Row],[2026/27 From - Spending review Topic 3]]+Dataset[[#This Row],[2026/27 From - Spending review Topic 4]]+Dataset[[#This Row],[2026/27 From - Other reallocations]] -> 0 | CE48: =Dataset[[#This Row],[2024/25 To - Spending review Topic 1]]+Dataset[[#This Row],[2024/25 To - Spending review Topic 2]]+Dataset[[#This Row],[2024/25 To - Spending review Topic 3]]+Dataset[[#This Row],[2024/25 To - Spending review Topic 4]]+Dataset[[#This Row],[2024/25 To - Other reallocations]] -> 0 | CF48: =Dataset[[#This Row],[2025/26 To - Spending review Topic 1]]+Dataset[[#This Row],[2025/26 To - Spending review Topic 2]]+Dataset[[#This Row],[2025/26 To - Spending review Topic 3]]+Dataset[[#This Row],[2025/26 To - Spending review Topic 4]]+Dataset[[#This Row],[2025/26 To - Other reallocations]] -> 0 | CG48: =Dataset[[#This Row],[2026/27 To - Spending review Topic 1]]+Dataset[[#This Row],[2026/27 To - Spending review Topic 2]]+Dataset[[#This Row],[2026/27 To - Spending review Topic 3]]+Dataset[[#This Row],[2026/27 To - Spending review Topic 4]]+Dataset[[#This Row],[2026/27 To - Other reallocations]] -> 0 | CH48: =Dataset[[#This Row],[2024/25 Reduction]]+Dataset[[#This Row],[2024/25 From - Total]] -> 0 | CI48: =Dataset[[#This Row],[2025/26 Reduction]]+Dataset[[#This Row],[2025/26 From - Total]] -> 0 | CJ48: =Dataset[[#This Row],[2026/27 Reduction]]+Dataset[[#This Row],[2026/27 From - Total]] -> 0 | CK48: =Dataset[[#This Row],[2023/24 Reduction]] -> 0 | CL48: =SUM(Dataset[[#This Row],[2024/25 Reduction]],Dataset[[#This Row],[2024/25 From - Total]],Dataset[[#This Row],[2024/25 To - Total]]) -> 0 | CM48: =SUM(Dataset[[#This Row],[2025/26 Reduction]],Dataset[[#This Row],[2025/26 From - Total]],Dataset[[#This Row],[2025/26 To - Total]]) -> 0 | CN48: =SUM(Dataset[[#This Row],[2026/27 Reduction]],Dataset[[#This Row],[2026/27 From - Total]],Dataset[[#This Row],[2026/27 To - Total]]) -> 0 | CO48: =Dataset[[#This Row],[2023/24 Baseline]]+Dataset[[#This Row],[2023/24 Total change]] -> 0 | CP48: =Dataset[[#This Row],[2024/25 Baseline]]+Dataset[[#This Row],[2024/25 Total change]] -> 0 | CQ48: =Dataset[[#This Row],[2025/26 Baseline]]+Dataset[[#This Row],[2025/26 Total change]] -> 0 | CR48: =Dataset[[#This Row],[2026/27 Baseline]]+Dataset[[#This Row],[2026/27 Total change]] -> 0
A49: NAT|Non-transfer item | B49: 23|Consumable supplies | C49: 2024_25 | D49: MTEF2024 | E49: 23 | F49: 1 | G49: 1 | H49: 36085 | I49: 31 | J49: 23 | K49: 01 | L49: 01 | M49: 036085 | N49: 000031 | O49: 23|01|01 | P49: 01 | Q49: 01 | R49: 02 | S49: 31 | T49: 31 | U49: 01|01|02|31|31 | V49: National | W49: Defence | X49: Administration | Y49: Ministry | Z49: Non-transfer item | AA49: Current | AB49: Current payments | AC49: Goods and services | AD49: Consumable supplies | AE49: Consumable supplies | AF49: Peace and security | AG49: Defence and state security | AH49: NAT | AI49: 289 | AJ49: 488 | AK49: 165 | AL49: 232 | AM49: 232 | AN49: 232 | AO49: 83 | AP49: 482 | AQ49: 530 | AR49: 583 | AS49: 610 | CB49: =Dataset[[#This Row],[2024/25 From - Spending review Topic 1]]+Dataset[[#This Row],[2024/25 From - Spending review Topic 2]]+Dataset[[#This Row],[2024/25 From - Spending review Topic 3]]+Dataset[[#This Row],[2024/25 From - Spending review Topic 4]]+Dataset[[#This Row],[2024/25 From - Other reallocations]] -> 0 | CC49: =Dataset[[#This Row],[2025/26 From - Spending review Topic 1]]+Dataset[[#This Row],[2025/26 From - Spending review Topic 2]]+Dataset[[#This Row],[2025/26 From - Spending review Topic 3]]+Dataset[[#This Row],[2025/26 From - Spending review Topic 4]]+Dataset[[#This Row],[2025/26 From - Other reallocations]] -> 0 | CD49: =Dataset[[#This Row],[2026/27 From - Spending review Topic 1]]+Dataset[[#This Row],[2026/27 From - Spending review Topic 2]]+Dataset[[#This Row],[2026/27 From - Spending review Topic 3]]+Dataset[[#This Row],[2026/27 From - Spending review Topic 4]]+Dataset[[#This Row],[2026/27 From - Other reallocations]] -> 0 | CE49: =Dataset[[#This Row],[2024/25 To - Spending review Topic 1]]+Dataset[[#This Row],[2024/25 To - Spending review Topic 2]]+Dataset[[#This Row],[2024/25 To - Spending review Topic 3]]+Dataset[[#This Row],[2024/25 To - Spending review Topic 4]]+Dataset[[#This Row],[2024/25 To - Other reallocations]] -> 0 | CF49: =Dataset[[#This Row],[2025/26 To - Spending review Topic 1]]+Dataset[[#This Row],[2025/26 To - Spending review Topic 2]]+Dataset[[#This Row],[2025/26 To - Spending review Topic 3]]+Dataset[[#This Row],[2025/26 To - Spending review Topic 4]]+Dataset[[#This Row],[2025/26 To - Other reallocations]] -> 0 | CG49: =Dataset[[#This Row],[2026/27 To - Spending review Topic 1]]+Dataset[[#This Row],[2026/27 To - Spending review Topic 2]]+Dataset[[#This Row],[2026/27 To - Spending review Topic 3]]+Dataset[[#This Row],[2026/27 To - Spending review Topic 4]]+Dataset[[#This Row],[2026/27 To - Other reallocations]] -> 0 | CH49: =Dataset[[#This Row],[2024/25 Reduction]]+Dataset[[#This Row],[2024/25 From - Total]] -> 0 | CI49: =Dataset[[#This Row],[2025/26 Reduction]]+Dataset[[#This Row],[2025/26 From - Total]] -> 0 | CJ49: =Dataset[[#This Row],[2026/27 Reduction]]+Dataset[[#This Row],[2026/27 From - Total]] -> 0 | CK49: =Dataset[[#This Row],[2023/24 Reduction]] -> 0 | CL49: =SUM(Dataset[[#This Row],[2024/25 Reduction]],Dataset[[#This Row],[2024/25 From - Total]],Dataset[[#This Row],[2024/25 To - Total]]) -> 0 | CM49: =SUM(Dataset[[#This Row],[2025/26 Reduction]],Dataset[[#This Row],[2025/26 From - Total]],Dataset[[#This Row],[2025/26 To - Total]]) -> 0 | CN49: =SUM(Dataset[[#This Row],[2026/27 Reduction]],Dataset[[#This Row],[2026/27 From - Total]],Dataset[[#This Row],[2026/27 To - Total]]) -> 0 | CO49: =Dataset[[#This Row],[2023/24 Baseline]]+Dataset[[#This Row],[2023/24 Total change]] -> 482 | CP49: =Dataset[[#This Row],[2024/25 Baseline]]+Dataset[[#This Row],[2024/25 Total change]] -> 530 | CQ49: =Dataset[[#This Row],[2025/26 Baseline]]+Dataset[[#This Row],[2025/26 Total change]] -> 583 | CR49: =Dataset[[#This Row],[2026/27 Baseline]]+Dataset[[#This Row],[2026/27 Total change]] -> 610
A50: NAT|Non-transfer item | B50: 23|Consumables: Stationery, printing and office supplies | C50: 2024_25 | D50: MTEF2024 | E50: 23 | F50: 1 | G50: 1 | H50: 36086 | I50: 32 | J50: 23 | K50: 01 | L50: 01 | M50: 036086 | N50: 000032 | O50: 23|01|01 | P50: 01 | Q50: 01 | R50: 02 | S50: 32 | T50: 32 | U50: 01|01|02|32|32 | V50: National | W50: Defence | X50: Administration | Y50: Ministry | Z50: Non-transfer item | AA50: Current | AB50: Current payments | AC50: Goods and services | AD50: Consumables: Stationery, printing and office supplies | AE50: Consumables: Stationery, printing and office supplies | AF50: Peace and security | AG50: Defence and state security | AH50: NAT | AI50: 215 | AJ50: 62 | AK50: 107 | AL50: 257 | AM50: 257 | AN50: 257 | AO50: 0 | AP50: 261 | AQ50: 287 | AR50: 316 | AS50: 330 | CB50: =Dataset[[#This Row],[2024/25 From - Spending review Topic 1]]+Dataset[[#This Row],[2024/25 From - Spending review Topic 2]]+Dataset[[#This Row],[2024/25 From - Spending review Topic 3]]+Dataset[[#This Row],[2024/25 From - Spending review Topic 4]]+Dataset[[#This Row],[2024/25 From - Other reallocations]] -> 0 | CC50: =Dataset[[#This Row],[2025/26 From - Spending review Topic 1]]+Dataset[[#This Row],[2025/26 From - Spending review Topic 2]]+Dataset[[#This Row],[2025/26 From - Spending review Topic 3]]+Dataset[[#This Row],[2025/26 From - Spending review Topic 4]]+Dataset[[#This Row],[2025/26 From - Other reallocations]] -> 0 | CD50: =Dataset[[#This Row],[2026/27 From - Spending review Topic 1]]+Dataset[[#This Row],[2026/27 From - Spending review Topic 2]]+Dataset[[#This Row],[2026/27 From - Spending review Topic 3]]+Dataset[[#This Row],[2026/27 From - Spending review Topic 4]]+Dataset[[#This Row],[2026/27 From - Other reallocations]] -> 0 | CE50: =Dataset[[#This Row],[2024/25 To - Spending review Topic 1]]+Dataset[[#This Row],[2024/25 To - Spending review Topic 2]]+Dataset[[#This Row],[2024/25 To - Spending review Topic 3]]+Dataset[[#This Row],[2024/25 To - Spending review Topic 4]]+Dataset[[#This Row],[2024/25 To - Other reallocations]] -> 0 | CF50: =Dataset[[#This Row],[2025/26 To - Spending review Topic 1]]+Dataset[[#This Row],[2025/26 To - Spending review Topic 2]]+Dataset[[#This Row],[2025/26 To - Spending review Topic 3]]+Dataset[[#This Row],[2025/26 To - Spending review Topic 4]]+Dataset[[#This Row],[2025/26 To - Other reallocations]] -> 0 | CG50: =Dataset[[#This Row],[2026/27 To - Spending review Topic 1]]+Dataset[[#This Row],[2026/27 To - Spending review Topic 2]]+Dataset[[#This Row],[2026/27 To - Spending review Topic 3]]+Dataset[[#This Row],[2026/27 To - Spending review Topic 4]]+Dataset[[#This Row],[2026/27 To - Other reallocations]] -> 0 | CH50: =Dataset[[#This Row],[2024/25 Reduction]]+Dataset[[#This Row],[2024/25 From - Total]] -> 0 | CI50: =Dataset[[#This Row],[2025/26 Reduction]]+Dataset[[#This Row],[2025/26 From - Total]] -> 0 | CJ50: =Dataset[[#This Row],[2026/27 Reduction]]+Dataset[[#This Row],[2026/27 From - Total]] -> 0 | CK50: =Dataset[[#This Row],[2023/24 Reduction]] -> 0 | CL50: =SUM(Dataset[[#This Row],[2024/25 Reduction]],Dataset[[#This Row],[2024/25 From - Total]],Dataset[[#This Row],[2024/25 To - Total]]) -> 0 | CM50: =SUM(Dataset[[#This Row],[2025/26 Reduction]],Dataset[[#This Row],[2025/26 From - Total]],Dataset[[#This Row],[2025/26 To - Total]]) -> 0 | CN50: =SUM(Dataset[[#This Row],[2026/27 Reduction]],Dataset[[#This Row],[2026/27 From - Total]],Dataset[[#This Row],[2026/27 To - Total]]) -> 0 | CO50: =Dataset[[#This Row],[2023/24 Baseline]]+Dataset[[#This Row],[2023/24 Total change]] -> 261 | CP50: =Dataset[[#This Row],[2024/25 Baseline]]+Dataset[[#This Row],[2024/25 Total change]] -> 287 | CQ50: =Dataset[[#This Row],[2025/26 Baseline]]+Dataset[[#This Row],[2025/26 Total change]] -> 316 | CR50: =Dataset[[#This Row],[2026/27 Baseline]]+Dataset[[#This Row],[2026/27 Total change]] -> 330
A51: NAT|Non-transfer item | B51: 23|Operating leases | C51: 2024_25 | D51: MTEF2024 | E51: 23 | F51: 1 | G51: 1 | H51: 36087 | I51: 33 | J51: 23 | K51: 01 | L51: 01 | M51: 036087 | N51: 000033 | O51: 23|01|01 | P51: 01 | Q51: 01 | R51: 02 | S51: 33 | T51: 33 | U51: 01|01|02|33|33 | V51: National | W51: Defence | X51: Administration | Y51: Ministry | Z51: Non-transfer item | AA51: Current | AB51: Current payments | AC51: Goods and services | AD51: Operating leases | AE51: Operating leases | AF51: Peace and security | AG51: Defence and state security | AH51: NAT | AI51: 0 | AJ51: 0 | AK51: 0 | AL51: 0 | AM51: 0 | AN51: 0 | AO51: 0 | AP51: 0 | AQ51: 0 | AR51: 0 | AS51: 0 | CB51: =Dataset[[#This Row],[2024/25 From - Spending review Topic 1]]+Dataset[[#This Row],[2024/25 From - Spending review Topic 2]]+Dataset[[#This Row],[2024/25 From - Spending review Topic 3]]+Dataset[[#This Row],[2024/25 From - Spending review Topic 4]]+Dataset[[#This Row],[2024/25 From - Other reallocations]] -> 0 | CC51: =Dataset[[#This Row],[2025/26 From - Spending review Topic 1]]+Dataset[[#This Row],[2025/26 From - Spending review Topic 2]]+Dataset[[#This Row],[2025/26 From - Spending review Topic 3]]+Dataset[[#This Row],[2025/26 From - Spending review Topic 4]]+Dataset[[#This Row],[2025/26 From - Other reallocations]] -> 0 | CD51: =Dataset[[#This Row],[2026/27 From - Spending review Topic 1]]+Dataset[[#This Row],[2026/27 From - Spending review Topic 2]]+Dataset[[#This Row],[2026/27 From - Spending review Topic 3]]+Dataset[[#This Row],[2026/27 From - Spending review Topic 4]]+Dataset[[#This Row],[2026/27 From - Other reallocations]] -> 0 | CE51: =Dataset[[#This Row],[2024/25 To - Spending review Topic 1]]+Dataset[[#This Row],[2024/25 To - Spending review Topic 2]]+Dataset[[#This Row],[2024/25 To - Spending review Topic 3]]+Dataset[[#This Row],[2024/25 To - Spending review Topic 4]]+Dataset[[#This Row],[2024/25 To - Other reallocations]] -> 0 | CF51: =Dataset[[#This Row],[2025/26 To - Spending review Topic 1]]+Dataset[[#This Row],[2025/26 To - Spending review Topic 2]]+Dataset[[#This Row],[2025/26 To - Spending review Topic 3]]+Dataset[[#This Row],[2025/26 To - Spending review Topic 4]]+Dataset[[#This Row],[2025/26 To - Other reallocations]] -> 0 | CG51: =Dataset[[#This Row],[2026/27 To - Spending review Topic 1]]+Dataset[[#This Row],[2026/27 To - Spending review Topic 2]]+Dataset[[#This Row],[2026/27 To - Spending review Topic 3]]+Dataset[[#This Row],[2026/27 To - Spending review Topic 4]]+Dataset[[#This Row],[2026/27 To - Other reallocations]] -> 0 | CH51: =Dataset[[#This Row],[2024/25 Reduction]]+Dataset[[#This Row],[2024/25 From - Total]] -> 0 | CI51: =Dataset[[#This Row],[2025/26 Reduction]]+Dataset[[#This Row],[2025/26 From - Total]] -> 0 | CJ51: =Dataset[[#This Row],[2026/27 Reduction]]+Dataset[[#This Row],[2026/27 From - Total]] -> 0 | CK51: =Dataset[[#This Row],[2023/24 Reduction]] -> 0 | CL51: =SUM(Dataset[[#This Row],[2024/25 Reduction]],Dataset[[#This Row],[2024/25 From - Total]],Dataset[[#This Row],[2024/25 To - Total]]) -> 0 | CM51: =SUM(Dataset[[#This Row],[2025/26 Reduction]],Dataset[[#This Row],[2025/26 From - Total]],Dataset[[#This Row],[2025/26 To - Total]]) -> 0 | CN51: =SUM(Dataset[[#This Row],[2026/27 Reduction]],Dataset[[#This Row],[2026/27 From - Total]],Dataset[[#This Row],[2026/27 To - Total]]) -> 0 | CO51: =Dataset[[#This Row],[2023/24 Baseline]]+Dataset[[#This Row],[2023/24 Total change]] -> 0 | CP51: =Dataset[[#This Row],[2024/25 Baseline]]+Dataset[[#This Row],[2024/25 Total change]] -> 0 | CQ51: =Dataset[[#This Row],[2025/26 Baseline]]+Dataset[[#This Row],[2025/26 Total change]] -> 0 | CR51: =Dataset[[#This Row],[2026/27 Baseline]]+Dataset[[#This Row],[2026/27 Total change]] -> 0
A52: NAT|Non-transfer item | B52: 23|Rental and hiring | C52: 2024_25 | D52: MTEF2024 | E52: 23 | F52: 1 | G52: 1 | H52: 36088 | I52: 34 | J52: 23 | K52: 01 | L52: 01 | M52: 036088 | N52: 000034 | O52: 23|01|01 | P52: 01 | Q52: 01 | R52: 02 | S52: 34 | T52: 34 | U52: 01|01|02|34|34 | V52: National | W52: Defence | X52: Administration | Y52: Ministry | Z52: Non-transfer item | AA52: Current | AB52: Current payments | AC52: Goods and services | AD52: Rental and hiring | AE52: Rental and hiring | AF52: Peace and security | AG52: Defence and state security | AH52: NAT | AI52: 0 | AJ52: 0 | AK52: 0 | AL52: 0 | AM52: 0 | AN52: 0 | AO52: 0 | AP52: 0 | AQ52: 0 | AR52: 0 | AS52: 0 | CB52: =Dataset[[#This Row],[2024/25 From - Spending review Topic 1]]+Dataset[[#This Row],[2024/25 From - Spending review Topic 2]]+Dataset[[#This Row],[2024/25 From - Spending review Topic 3]]+Dataset[[#This Row],[2024/25 From - Spending review Topic 4]]+Dataset[[#This Row],[2024/25 From - Other reallocations]] -> 0 | CC52: =Dataset[[#This Row],[2025/26 From - Spending review Topic 1]]+Dataset[[#This Row],[2025/26 From - Spending review Topic 2]]+Dataset[[#This Row],[2025/26 From - Spending review Topic 3]]+Dataset[[#This Row],[2025/26 From - Spending review Topic 4]]+Dataset[[#This Row],[2025/26 From - Other reallocations]] -> 0 | CD52: =Dataset[[#This Row],[2026/27 From - Spending review Topic 1]]+Dataset[[#This Row],[2026/27 From - Spending review Topic 2]]+Dataset[[#This Row],[2026/27 From - Spending review Topic 3]]+Dataset[[#This Row],[2026/27 From - Spending review Topic 4]]+Dataset[[#This Row],[2026/27 From - Other reallocations]] -> 0 | CE52: =Dataset[[#This Row],[2024/25 To - Spending review Topic 1]]+Dataset[[#This Row],[2024/25 To - Spending review Topic 2]]+Dataset[[#This Row],[2024/25 To - Spending review Topic 3]]+Dataset[[#This Row],[2024/25 To - Spending review Topic 4]]+Dataset[[#This Row],[2024/25 To - Other reallocations]] -> 0 | CF52: =Dataset[[#This Row],[2025/26 To - Spending review Topic 1]]+Dataset[[#This Row],[2025/26 To - Spending review Topic 2]]+Dataset[[#This Row],[2025/26 To - Spending review Topic 3]]+Dataset[[#This Row],[2025/26 To - Spending review Topic 4]]+Dataset[[#This Row],[2025/26 To - Other reallocations]] -> 0 | CG52: =Dataset[[#This Row],[2026/27 To - Spending review Topic 1]]+Dataset[[#This Row],[2026/27 To - Spending review Topic 2]]+Dataset[[#This Row],[2026/27 To - Spending review Topic 3]]+Dataset[[#This Row],[2026/27 To - Spending review Topic 4]]+Dataset[[#This Row],[2026/27 To - Other reallocations]] -> 0 | CH52: =Dataset[[#This Row],[2024/25 Reduction]]+Dataset[[#This Row],[2024/25 From - Total]] -> 0 | CI52: =Dataset[[#This Row],[2025/26 Reduction]]+Dataset[[#This Row],[2025/26 From - Total]] -> 0 | CJ52: =Dataset[[#This Row],[2026/27 Reduction]]+Dataset[[#This Row],[2026/27 From - Total]] -> 0 | CK52: =Dataset[[#This Row],[2023/24 Reduction]] -> 0 | CL52: =SUM(Dataset[[#This Row],[2024/25 Reduction]],Dataset[[#This Row],[2024/25 From - Total]],Dataset[[#This Row],[2024/25 To - Total]]) -> 0 | CM52: =SUM(Dataset[[#This Row],[2025/26 Reduction]],Dataset[[#This Row],[2025/26 From - Total]],Dataset[[#This Row],[2025/26 To - Total]]) -> 0 | CN52: =SUM(Dataset[[#This Row],[2026/27 Reduction]],Dataset[[#This Row],[2026/27 From - Total]],Dataset[[#This Row],[2026/27 To - Total]]) -> 0 | CO52: =Dataset[[#This Row],[2023/24 Baseline]]+Dataset[[#This Row],[2023/24 Total change]] -> 0 | CP52: =Dataset[[#This Row],[2024/25 Baseline]]+Dataset[[#This Row],[2024/25 Total change]] -> 0 | CQ52: =Dataset[[#This Row],[2025/26 Baseline]]+Dataset[[#This Row],[2025/26 Total change]] -> 0 | CR52: =Dataset[[#This Row],[2026/27 Baseline]]+Dataset[[#This Row],[2026/27 Total change]] -> 0
A53: NAT|Non-transfer item | B53: 23|Property payments | C53: 2024_25 | D53: MTEF2024 | E53: 23 | F53: 1 | G53: 1 | H53: 36089 | I53: 35 | J53: 23 | K53: 01 | L53: 01 | M53: 036089 | N53: 000035 | O53: 23|01|01 | P53: 01 | Q53: 01 | R53: 02 | S53: 35 | T53: 35 | U53: 01|01|02|35|35 | V53: National | W53: Defence | X53: Administration | Y53: Ministry | Z53: Non-transfer item | AA53: Current | AB53: Current payments | AC53: Goods and services | AD53: Property payments | AE53: Property payments | AF53: Peace and security | AG53: Defence and state security | AH53: NAT | AI53: 0 | AJ53: 0 | AK53: 0 | AL53: 0 | AM53: 0 | AN53: 0 | AO53: 0 | AP53: 0 | AQ53: 0 | AR53: 0 | AS53: 0 | CB53: =Dataset[[#This Row],[2024/25 From - Spending review Topic 1]]+Dataset[[#This Row],[2024/25 From - Spending review Topic 2]]+Dataset[[#This Row],[2024/25 From - Spending review Topic 3]]+Dataset[[#This Row],[2024/25 From - Spending review Topic 4]]+Dataset[[#This Row],[2024/25 From - Other reallocations]] -> 0 | CC53: =Dataset[[#This Row],[2025/26 From - Spending review Topic 1]]+Dataset[[#This Row],[2025/26 From - Spending review Topic 2]]+Dataset[[#This Row],[2025/26 From - Spending review Topic 3]]+Dataset[[#This Row],[2025/26 From - Spending review Topic 4]]+Dataset[[#This Row],[2025/26 From - Other reallocations]] -> 0 | CD53: =Dataset[[#This Row],[2026/27 From - Spending review Topic 1]]+Dataset[[#This Row],[2026/27 From - Spending review Topic 2]]+Dataset[[#This Row],[2026/27 From - Spending review Topic 3]]+Dataset[[#This Row],[2026/27 From - Spending review Topic 4]]+Dataset[[#This Row],[2026/27 From - Other reallocations]] -> 0 | CE53: =Dataset[[#This Row],[2024/25 To - Spending review Topic 1]]+Dataset[[#This Row],[2024/25 To - Spending review Topic 2]]+Dataset[[#This Row],[2024/25 To - Spending review Topic 3]]+Dataset[[#This Row],[2024/25 To - Spending review Topic 4]]+Dataset[[#This Row],[2024/25 To - Other reallocations]] -> 0 | CF53: =Dataset[[#This Row],[2025/26 To - Spending review Topic 1]]+Dataset[[#This Row],[2025/26 To - Spending review Topic 2]]+Dataset[[#This Row],[2025/26 To - Spending review Topic 3]]+Dataset[[#This Row],[2025/26 To - Spending review Topic 4]]+Dataset[[#This Row],[2025/26 To - Other reallocations]] -> 0 | CG53: =Dataset[[#This Row],[2026/27 To - Spending review Topic 1]]+Dataset[[#This Row],[2026/27 To - Spending review Topic 2]]+Dataset[[#This Row],[2026/27 To - Spending review Topic 3]]+Dataset[[#This Row],[2026/27 To - Spending review Topic 4]]+Dataset[[#This Row],[2026/27 To - Other reallocations]] -> 0 | CH53: =Dataset[[#This Row],[2024/25 Reduction]]+Dataset[[#This Row],[2024/25 From - Total]] -> 0 | CI53: =Dataset[[#This Row],[2025/26 Reduction]]+Dataset[[#This Row],[2025/26 From - Total]] -> 0 | CJ53: =Dataset[[#This Row],[2026/27 Reduction]]+Dataset[[#This Row],[2026/27 From - Total]] -> 0 | CK53: =Dataset[[#This Row],[2023/24 Reduction]] -> 0 | CL53: =SUM(Dataset[[#This Row],[2024/25 Reduction]],Dataset[[#This Row],[2024/25 From - Total]],Dataset[[#This Row],[2024/25 To - Total]]) -> 0 | CM53: =SUM(Dataset[[#This Row],[2025/26 Reduction]],Dataset[[#This Row],[2025/26 From - Total]],Dataset[[#This Row],[2025/26 To - Total]]) -> 0 | CN53: =SUM(Dataset[[#This Row],[2026/27 Reduction]],Dataset[[#This Row],[2026/27 From - Total]],Dataset[[#This Row],[2026/27 To - Total]]) -> 0 | CO53: =Dataset[[#This Row],[2023/24 Baseline]]+Dataset[[#This Row],[2023/24 Total change]] -> 0 | CP53: =Dataset[[#This Row],[2024/25 Baseline]]+Dataset[[#This Row],[2024/25 Total change]] -> 0 | CQ53: =Dataset[[#This Row],[2025/26 Baseline]]+Dataset[[#This Row],[2025/26 Total change]] -> 0 | CR53: =Dataset[[#This Row],[2026/27 Baseline]]+Dataset[[#This Row],[2026/27 Total change]] -> 0
A54: NAT|Non-transfer item | B54: 23|Transport provided: Departmental activity | C54: 2024_25 | D54: MTEF2024 | E54: 23 | F54: 1 | G54: 1 | H54: 36090 | I54: 36 | J54: 23 | K54: 01 | L54: 01 | M54: 036090 | N54: 000036 | O54: 23|01|01 | P54: 01 | Q54: 01 | R54: 02 | S54: 36 | T54: 36 | U54: 01|01|02|36|36 | V54: National | W54: Defence | X54: Administration | Y54: Ministry | Z54: Non-transfer item | AA54: Current | AB54: Current payments | AC54: Goods and services | AD54: Transport provided: Departmental activity | AE54: Transport provided: Departmental activity | AF54: Peace and security | AG54: Defence and state security | AH54: NAT | AI54: 0 | AJ54: 0 | AK54: 0 | AL54: 0 | AM54: 0 | AN54: 0 | AO54: 0 | AP54: 0 | AQ54: 0 | AR54: 0 | AS54: 0 | CB54: =Dataset[[#This Row],[2024/25 From - Spending review Topic 1]]+Dataset[[#This Row],[2024/25 From - Spending review Topic 2]]+Dataset[[#This Row],[2024/25 From - Spending review Topic 3]]+Dataset[[#This Row],[2024/25 From - Spending review Topic 4]]+Dataset[[#This Row],[2024/25 From - Other reallocations]] -> 0 | CC54: =Dataset[[#This Row],[2025/26 From - Spending review Topic 1]]+Dataset[[#This Row],[2025/26 From - Spending review Topic 2]]+Dataset[[#This Row],[2025/26 From - Spending review Topic 3]]+Dataset[[#This Row],[2025/26 From - Spending review Topic 4]]+Dataset[[#This Row],[2025/26 From - Other reallocations]] -> 0 | CD54: =Dataset[[#This Row],[2026/27 From - Spending review Topic 1]]+Dataset[[#This Row],[2026/27 From - Spending review Topic 2]]+Dataset[[#This Row],[2026/27 From - Spending review Topic 3]]+Dataset[[#This Row],[2026/27 From - Spending review Topic 4]]+Dataset[[#This Row],[2026/27 From - Other reallocations]] -> 0 | CE54: =Dataset[[#This Row],[2024/25 To - Spending review Topic 1]]+Dataset[[#This Row],[2024/25 To - Spending review Topic 2]]+Dataset[[#This Row],[2024/25 To - Spending review Topic 3]]+Dataset[[#This Row],[2024/25 To - Spending review Topic 4]]+Dataset[[#This Row],[2024/25 To - Other reallocations]] -> 0 | CF54: =Dataset[[#This Row],[2025/26 To - Spending review Topic 1]]+Dataset[[#This Row],[2025/26 To - Spending review Topic 2]]+Dataset[[#This Row],[2025/26 To - Spending review Topic 3]]+Dataset[[#This Row],[2025/26 To - Spending review Topic 4]]+Dataset[[#This Row],[2025/26 To - Other reallocations]] -> 0 | CG54: =Dataset[[#This Row],[2026/27 To - Spending review Topic 1]]+Dataset[[#This Row],[2026/27 To - Spending review Topic 2]]+Dataset[[#This Row],[2026/27 To - Spending review Topic 3]]+Dataset[[#This Row],[2026/27 To - Spending review Topic 4]]+Dataset[[#This Row],[2026/27 To - Other reallocations]] -> 0 | CH54: =Dataset[[#This Row],[2024/25 Reduction]]+Dataset[[#This Row],[2024/25 From - Total]] -> 0 | CI54: =Dataset[[#This Row],[2025/26 Reduction]]+Dataset[[#This Row],[2025/26 From - Total]] -> 0 | CJ54: =Dataset[[#This Row],[2026/27 Reduction]]+Dataset[[#This Row],[2026/27 From - Total]] -> 0 | CK54: =Dataset[[#This Row],[2023/24 Reduction]] -> 0 | CL54: =SUM(Dataset[[#This Row],[2024/25 Reduction]],Dataset[[#This Row],[2024/25 From - Total]],Dataset[[#This Row],[2024/25 To - Total]]) -> 0 | CM54: =SUM(Dataset[[#This Row],[2025/26 Reduction]],Dataset[[#This Row],[2025/26 From - Total]],Dataset[[#This Row],[2025/26 To - Total]]) -> 0 | CN54: =SUM(Dataset[[#This Row],[2026/27 Reduction]],Dataset[[#This Row],[2026/27 From - Total]],Dataset[[#This Row],[2026/27 To - Total]]) -> 0 | CO54: =Dataset[[#This Row],[2023/24 Baseline]]+Dataset[[#This Row],[2023/24 Total change]] -> 0 | CP54: =Dataset[[#This Row],[2024/25 Baseline]]+Dataset[[#This Row],[2024/25 Total change]] -> 0 | CQ54: =Dataset[[#This Row],[2025/26 Baseline]]+Dataset[[#This Row],[2025/26 Total change]] -> 0 | CR54: =Dataset[[#This Row],[2026/27 Baseline]]+Dataset[[#This Row],[2026/27 Total change]] -> 0
A55: NAT|Non-transfer item | B55: 23|Travel and subsistence | C55: 2024_25 | D55: MTEF2024 | E55: 23 | F55: 1 | G55: 1 | H55: 36091 | I55: 37 | J55: 23 | K55: 01 | L55: 01 | M55: 036091 | N55: 000037 | O55: 23|01|01 | P55: 01 | Q55: 01 | R55: 02 | S55: 37 | T55: 37 | U55: 01|01|02|37|37 | V55: National | W55: Defence | X55: Administration | Y55: Ministry | Z55: Non-transfer item | AA55: Current | AB55: Current payments | AC55: Goods and services | AD55: Travel and subsistence | AE55: Travel and subsistence | AF55: Peace and security | AG55: Defence and state security | AH55: NAT | AI55: 52062 | AJ55: 30180 | AK55: 21525 | AL55: 41023 | AM55: 41023 | AN55: 41023 | AO55: 12988 | AP55: 41144 | AQ55: 45258 | AR55: 49784 | AS55: 52065 | CB55: =Dataset[[#This Row],[2024/25 From - Spending review Topic 1]]+Dataset[[#This Row],[2024/25 From - Spending review Topic 2]]+Dataset[[#This Row],[2024/25 From - Spending review Topic 3]]+Dataset[[#This Row],[2024/25 From - Spending review Topic 4]]+Dataset[[#This Row],[2024/25 From - Other reallocations]] -> 0 | CC55: =Dataset[[#This Row],[2025/26 From - Spending review Topic 1]]+Dataset[[#This Row],[2025/26 From - Spending review Topic 2]]+Dataset[[#This Row],[2025/26 From - Spending review Topic 3]]+Dataset[[#This Row],[2025/26 From - Spending review Topic 4]]+Dataset[[#This Row],[2025/26 From - Other reallocations]] -> 0 | CD55: =Dataset[[#This Row],[2026/27 From - Spending review Topic 1]]+Dataset[[#This Row],[2026/27 From - Spending review Topic 2]]+Dataset[[#This Row],[2026/27 From - Spending review Topic 3]]+Dataset[[#This Row],[2026/27 From - Spending review Topic 4]]+Dataset[[#This Row],[2026/27 From - Other reallocations]] -> 0 | CE55: =Dataset[[#This Row],[2024/25 To - Spending review Topic 1]]+Dataset[[#This Row],[2024/25 To - Spending review Topic 2]]+Dataset[[#This Row],[2024/25 To - Spending review Topic 3]]+Dataset[[#This Row],[2024/25 To - Spending review Topic 4]]+Dataset[[#This Row],[2024/25 To - Other reallocations]] -> 0 | CF55: =Dataset[[#This Row],[2025/26 To - Spending review Topic 1]]+Dataset[[#This Row],[2025/26 To - Spending review Topic 2]]+Dataset[[#This Row],[2025/26 To - Spending review Topic 3]]+Dataset[[#This Row],[2025/26 To - Spending review Topic 4]]+Dataset[[#This Row],[2025/26 To - Other reallocations]] -> 0 | CG55: =Dataset[[#This Row],[2026/27 To - Spending review Topic 1]]+Dataset[[#This Row],[2026/27 To - Spending review Topic 2]]+Dataset[[#This Row],[2026/27 To - Spending review Topic 3]]+Dataset[[#This Row],[2026/27 To - Spending review Topic 4]]+Dataset[[#This Row],[2026/27 To - Other reallocations]] -> 0 | CH55: =Dataset[[#This Row],[2024/25 Reduction]]+Dataset[[#This Row],[2024/25 From - Total]] -> 0 | CI55: =Dataset[[#This Row],[2025/26 Reduction]]+Dataset[[#This Row],[2025/26 From - Total]] -> 0 | CJ55: =Dataset[[#This Row],[2026/27 Reduction]]+Dataset[[#This Row],[2026/27 From - Total]] -> 0 | CK55: =Dataset[[#This Row],[2023/24 Reduction]] -> 0 | CL55: =SUM(Dataset[[#This Row],[2024/25 Reduction]],Dataset[[#This Row],[2024/25 From - Total]],Dataset[[#This Row],[2024/25 To - Total]]) -> 0 | CM55: =SUM(Dataset[[#This Row],[2025/26 Reduction]],Dataset[[#This Row],[2025/26 From - Total]],Dataset[[#This Row],[2025/26 To - Total]]) -> 0 | CN55: =SUM(Dataset[[#This Row],[2026/27 Reduction]],Dataset[[#This Row],[2026/27 From - Total]],Dataset[[#This Row],[2026/27 To - Total]]) -> 0 | CO55: =Dataset[[#This Row],[2023/24 Baseline]]+Dataset[[#This Row],[2023/24 Total change]] -> 41144 | CP55: =Dataset[[#This Row],[2024/25 Baseline]]+Dataset[[#This Row],[2024/25 Total change]] -> 45258 | CQ55: =Dataset[[#This Row],[2025/26 Baseline]]+Dataset[[#This Row],[2025/26 Total change]] -> 49784 | CR55: =Dataset[[#This Row],[2026/27 Baseline]]+Dataset[[#This Row],[2026/27 Total change]] -> 52065
A56: NAT|Non-transfer item | B56: 23|Training and development | C56: 2024_25 | D56: MTEF2024 | E56: 23 | F56: 1 | G56: 1 | H56: 36092 | I56: 38 | J56: 23 | K56: 01 | L56: 01 | M56: 036092 | N56: 000038 | O56: 23|01|01 | P56: 01 | Q56: 01 | R56: 02 | S56: 38 | T56: 38 | U56: 01|01|02|38|38 | V56: National | W56: Defence | X56: Administration | Y56: Ministry | Z56: Non-transfer item | AA56: Current | AB56: Current payments | AC56: Goods and services | AD56: Training and development | AE56: Training and development | AF56: Peace and security | AG56: Defence and state security | AH56: NAT | AI56: 0 | AJ56: 0 | AK56: 6 | AL56: 274 | AM56: 274 | AN56: 274 | AO56: 136 | AP56: 1110 | AQ56: 1221 | AR56: 1343 | AS56: 1405 | CB56: =Dataset[[#This Row],[2024/25 From - Spending review Topic 1]]+Dataset[[#This Row],[2024/25 From - Spending review Topic 2]]+Dataset[[#This Row],[2024/25 From - Spending review Topic 3]]+Dataset[[#This Row],[2024/25 From - Spending review Topic 4]]+Dataset[[#This Row],[2024/25 From - Other reallocations]] -> 0 | CC56: =Dataset[[#This Row],[2025/26 From - Spending review Topic 1]]+Dataset[[#This Row],[2025/26 From - Spending review Topic 2]]+Dataset[[#This Row],[2025/26 From - Spending review Topic 3]]+Dataset[[#This Row],[2025/26 From - Spending review Topic 4]]+Dataset[[#This Row],[2025/26 From - Other reallocations]] -> 0 | CD56: =Dataset[[#This Row],[2026/27 From - Spending review Topic 1]]+Dataset[[#This Row],[2026/27 From - Spending review Topic 2]]+Dataset[[#This Row],[2026/27 From - Spending review Topic 3]]+Dataset[[#This Row],[2026/27 From - Spending review Topic 4]]+Dataset[[#This Row],[2026/27 From - Other reallocations]] -> 0 | CE56: =Dataset[[#This Row],[2024/25 To - Spending review Topic 1]]+Dataset[[#This Row],[2024/25 To - Spending review Topic 2]]+Dataset[[#This Row],[2024/25 To - Spending review Topic 3]]+Dataset[[#This Row],[2024/25 To - Spending review Topic 4]]+Dataset[[#This Row],[2024/25 To - Other reallocations]] -> 0 | CF56: =Dataset[[#This Row],[2025/26 To - Spending review Topic 1]]+Dataset[[#This Row],[2025/26 To - Spending review Topic 2]]+Dataset[[#This Row],[2025/26 To - Spending review Topic 3]]+Dataset[[#This Row],[2025/26 To - Spending review Topic 4]]+Dataset[[#This Row],[2025/26 To - Other reallocations]] -> 0 | CG56: =Dataset[[#This Row],[2026/27 To - Spending review Topic 1]]+Dataset[[#This Row],[2026/27 To - Spending review Topic 2]]+Dataset[[#This Row],[2026/27 To - Spending review Topic 3]]+Dataset[[#This Row],[2026/27 To - Spending review Topic 4]]+Dataset[[#This Row],[2026/27 To - Other reallocations]] -> 0 | CH56: =Dataset[[#This Row],[2024/25 Reduction]]+Dataset[[#This Row],[2024/25 From - Total]] -> 0 | CI56: =Dataset[[#This Row],[2025/26 Reduction]]+Dataset[[#This Row],[2025/26 From - Total]] -> 0 | CJ56: =Dataset[[#This Row],[2026/27 Reduction]]+Dataset[[#This Row],[2026/27 From - Total]] -> 0 | CK56: =Dataset[[#This Row],[2023/24 Reduction]] -> 0 | CL56: =SUM(Dataset[[#This Row],[2024/25 Reduction]],Dataset[[#This Row],[2024/25 From - Total]],Dataset[[#This Row],[2024/25 To - Total]]) -> 0 | CM56: =SUM(Dataset[[#This Row],[2025/26 Reduction]],Dataset[[#This Row],[2025/26 From - Total]],Dataset[[#This Row],[2025/26 To - Total]]) -> 0 | CN56: =SUM(Dataset[[#This Row],[2026/27 Reduction]],Dataset[[#This Row],[2026/27 From - Total]],Dataset[[#This Row],[2026/27 To - Total]]) -> 0 | CO56: =Dataset[[#This Row],[2023/24 Baseline]]+Dataset[[#This Row],[2023/24 Total change]] -> 1110 | CP56: =Dataset[[#This Row],[2024/25 Baseline]]+Dataset[[#This Row],[2024/25 Total change]] -> 1221 | CQ56: =Dataset[[#This Row],[2025/26 Baseline]]+Dataset[[#This Row],[2025/26 Total change]] -> 1343 | CR56: =Dataset[[#This Row],[2026/27 Baseline]]+Dataset[[#This Row],[2026/27 Total change]] -> 1405
A57: NAT|Non-transfer item | B57: 23|Operating payments | C57: 2024_25 | D57: MTEF2024 | E57: 23 | F57: 1 | G57: 1 | H57: 36093 | I57: 39 | J57: 23 | K57: 01 | L57: 01 | M57: 036093 | N57: 000039 | O57: 23|01|01 | P57: 01 | Q57: 01 | R57: 02 | S57: 39 | T57: 39 | U57: 01|01|02|39|39 | V57: National | W57: Defence | X57: Administration | Y57: Ministry | Z57: Non-transfer item | AA57: Current | AB57: Current payments | AC57: Goods and services | AD57: Operating payments | AE57: Operating payments | AF57: Peace and security | AG57: Defence and state security | AH57: NAT | AI57: 9707 | AJ57: 419 | AK57: 3583 | AL57: 39440 | AM57: 39440 | AN57: 39440 | AO57: 609 | AP57: 31967 | AQ57: 34509 | AR57: 33420 | AS57: 34951 | CB57: =Dataset[[#This Row],[2024/25 From - Spending review Topic 1]]+Dataset[[#This Row],[2024/25 From - Spending review Topic 2]]+Dataset[[#This Row],[2024/25 From - Spending review Topic 3]]+Dataset[[#This Row],[2024/25 From - Spending review Topic 4]]+Dataset[[#This Row],[2024/25 From - Other reallocations]] -> 0 | CC57: =Dataset[[#This Row],[2025/26 From - Spending review Topic 1]]+Dataset[[#This Row],[2025/26 From - Spending review Topic 2]]+Dataset[[#This Row],[2025/26 From - Spending review Topic 3]]+Dataset[[#This Row],[2025/26 From - Spending review Topic 4]]+Dataset[[#This Row],[2025/26 From - Other reallocations]] -> 0 | CD57: =Dataset[[#This Row],[2026/27 From - Spending review Topic 1]]+Dataset[[#This Row],[2026/27 From - Spending review Topic 2]]+Dataset[[#This Row],[2026/27 From - Spending review Topic 3]]+Dataset[[#This Row],[2026/27 From - Spending review Topic 4]]+Dataset[[#This Row],[2026/27 From - Other reallocations]] -> 0 | CE57: =Dataset[[#This Row],[2024/25 To - Spending review Topic 1]]+Dataset[[#This Row],[2024/25 To - Spending review Topic 2]]+Dataset[[#This Row],[2024/25 To - Spending review Topic 3]]+Dataset[[#This Row],[2024/25 To - Spending review Topic 4]]+Dataset[[#This Row],[2024/25 To - Other reallocations]] -> 0 | CF57: =Dataset[[#This Row],[2025/26 To - Spending review Topic 1]]+Dataset[[#This Row],[2025/26 To - Spending review Topic 2]]+Dataset[[#This Row],[2025/26 To - Spending review Topic 3]]+Dataset[[#This Row],[2025/26 To - Spending review Topic 4]]+Dataset[[#This Row],[2025/26 To - Other reallocations]] -> 0 | CG57: =Dataset[[#This Row],[2026/27 To - Spending review Topic 1]]+Dataset[[#This Row],[2026/27 To - Spending review Topic 2]]+Dataset[[#This Row],[2026/27 To - Spending review Topic 3]]+Dataset[[#This Row],[2026/27 To - Spending review Topic 4]]+Dataset[[#This Row],[2026/27 To - Other reallocations]] -> 0 | CH57: =Dataset[[#This Row],[2024/25 Reduction]]+Dataset[[#This Row],[2024/25 From - Total]] -> 0 | CI57: =Dataset[[#This Row],[2025/26 Reduction]]+Dataset[[#This Row],[2025/26 From - Total]] -> 0 | CJ57: =Dataset[[#This Row],[2026/27 Reduction]]+Dataset[[#This Row],[2026/27 From - Total]] -> 0 | CK57: =Dataset[[#This Row],[2023/24 Reduction]] -> 0 | CL57: =SUM(Dataset[[#This Row],[2024/25 Reduction]],Dataset[[#This Row],[2024/25 From - Total]],Dataset[[#This Row],[2024/25 To - Total]]) -> 0 | CM57: =SUM(Dataset[[#This Row],[2025/26 Reduction]],Dataset[[#This Row],[2025/26 From - Total]],Dataset[[#This Row],[2025/26 To - Total]]) -> 0 | CN57: =SUM(Dataset[[#This Row],[2026/27 Reduction]],Dataset[[#This Row],[2026/27 From - Total]],Dataset[[#This Row],[2026/27 To - Total]]) -> 0 | CO57: =Dataset[[#This Row],[2023/24 Baseline]]+Dataset[[#This Row],[2023/24 Total change]] -> 31967 | CP57: =Dataset[[#This Row],[2024/25 Baseline]]+Dataset[[#This Row],[2024/25 Total change]] -> 34509 | CQ57: =Dataset[[#This Row],[2025/26 Baseline]]+Dataset[[#This Row],[2025/26 Total change]] -> 33420 | CR57: =Dataset[[#This Row],[2026/27 Baseline]]+Dataset[[#This Row],[2026/27 Total change]] -> 34951
A58: NAT|Non-transfer item | B58: 23|Venues and facilities | C58: 2024_25 | D58: MTEF2024 | E58: 23 | F58: 1 | G58: 1 | H58: 36094 | I58: 40 | J58: 23 | K58: 01 | L58: 01 | M58: 036094 | N58: 000040 | O58: 23|01|01 | P58: 01 | Q58: 01 | R58: 02 | S58: 40 | T58: 40 | U58: 01|01|02|40|40 | V58: National | W58: Defence | X58: Administration | Y58: Ministry | Z58: Non-transfer item | AA58: Current | AB58: Current payments | AC58: Goods and services | AD58: Venues and facilities | AE58: Venues and facilities | AF58: Peace and security | AG58: Defence and state security | AH58: NAT | AI58: 0 | AJ58: 0 | AK58: 23 | AL58: 95 | AM58: 95 | AN58: 95 | AO58: 0 | AP58: 393 | AQ58: 432 | AR58: 475 | AS58: 497 | CB58: =Dataset[[#This Row],[2024/25 From - Spending review Topic 1]]+Dataset[[#This Row],[2024/25 From - Spending review Topic 2]]+Dataset[[#This Row],[2024/25 From - Spending review Topic 3]]+Dataset[[#This Row],[2024/25 From - Spending review Topic 4]]+Dataset[[#This Row],[2024/25 From - Other reallocations]] -> 0 | CC58: =Dataset[[#This Row],[2025/26 From - Spending review Topic 1]]+Dataset[[#This Row],[2025/26 From - Spending review Topic 2]]+Dataset[[#This Row],[2025/26 From - Spending review Topic 3]]+Dataset[[#This Row],[2025/26 From - Spending review Topic 4]]+Dataset[[#This Row],[2025/26 From - Other reallocations]] -> 0 | CD58: =Dataset[[#This Row],[2026/27 From - Spending review Topic 1]]+Dataset[[#This Row],[2026/27 From - Spending review Topic 2]]+Dataset[[#This Row],[2026/27 From - Spending review Topic 3]]+Dataset[[#This Row],[2026/27 From - Spending review Topic 4]]+Dataset[[#This Row],[2026/27 From - Other reallocations]] -> 0 | CE58: =Dataset[[#This Row],[2024/25 To - Spending review Topic 1]]+Dataset[[#This Row],[2024/25 To - Spending review Topic 2]]+Dataset[[#This Row],[2024/25 To - Spending review Topic 3]]+Dataset[[#This Row],[2024/25 To - Spending review Topic 4]]+Dataset[[#This Row],[2024/25 To - Other reallocations]] -> 0 | CF58: =Dataset[[#This Row],[2025/26 To - Spending review Topic 1]]+Dataset[[#This Row],[2025/26 To - Spending review Topic 2]]+Dataset[[#This Row],[2025/26 To - Spending review Topic 3]]+Dataset[[#This Row],[2025/26 To - Spending review Topic 4]]+Dataset[[#This Row],[2025/26 To - Other reallocations]] -> 0 | CG58: =Dataset[[#This Row],[2026/27 To - Spending review Topic 1]]+Dataset[[#This Row],[2026/27 To - Spending review Topic 2]]+Dataset[[#This Row],[2026/27 To - Spending review Topic 3]]+Dataset[[#This Row],[2026/27 To - Spending review Topic 4]]+Dataset[[#This Row],[2026/27 To - Other reallocations]] -> 0 | CH58: =Dataset[[#This Row],[2024/25 Reduction]]+Dataset[[#This Row],[2024/25 From - Total]] -> 0 | CI58: =Dataset[[#This Row],[2025/26 Reduction]]+Dataset[[#This Row],[2025/26 From - Total]] -> 0 | CJ58: =Dataset[[#This Row],[2026/27 Reduction]]+Dataset[[#This Row],[2026/27 From - Total]] -> 0 | CK58: =Dataset[[#This Row],[2023/24 Reduction]] -> 0 | CL58: =SUM(Dataset[[#This Row],[2024/25 Reduction]],Dataset[[#This Row],[2024/25 From - Total]],Dataset[[#This Row],[2024/25 To - Total]]) -> 0 | CM58: =SUM(Dataset[[#This Row],[2025/26 Reduction]],Dataset[[#This Row],[2025/26 From - Total]],Dataset[[#This Row],[2025/26 To - Total]]) -> 0 | CN58: =SUM(Dataset[[#This Row],[2026/27 Reduction]],Dataset[[#This Row],[2026/27 From - Total]],Dataset[[#This Row],[2026/27 To - Total]]) -> 0 | CO58: =Dataset[[#This Row],[2023/24 Baseline]]+Dataset[[#This Row],[2023/24 Total change]] -> 393 | CP58: =Dataset[[#This Row],[2024/25 Baseline]]+Dataset[[#This Row],[2024/25 Total change]] -> 432 | CQ58: =Dataset[[#This Row],[2025/26 Baseline]]+Dataset[[#This Row],[2025/26 Total change]] -> 475 | CR58: =Dataset[[#This Row],[2026/27 Baseline]]+Dataset[[#This Row],[2026/27 Total change]] -> 497
A59: NAT|Non-transfer item | B59: 23|Interest (Incl. interest on unitary payments (PPP)) | C59: 2024_25 | D59: MTEF2024 | E59: 23 | F59: 1 | G59: 1 | H59: 36095 | I59: 41 | J59: 23 | K59: 01 | L59: 01 | M59: 036095 | N59: 000041 | O59: 23|01|01 | P59: 01 | Q59: 01 | R59: 03 | S59: 41 | T59: 41 | U59: 01|01|03|41|41 | V59: National | W59: Defence | X59: Administration | Y59: Ministry | Z59: Non-transfer item | AA59: Current | AB59: Current payments | AC59: Interest and rent on land | AD59: Interest (Incl. interest on unitary payments (PPP)) | AE59: Interest (Incl. interest on unitary payments (PPP)) | AF59: Peace and security | AG59: Defence and state security | AH59: NAT | AI59: 0 | AJ59: 0 | AK59: 0 | AL59: 0 | AM59: 0 | AN59: 0 | AO59: 0 | AP59: 0 | AQ59: 0 | AR59: 0 | AS59: 0 | CB59: =Dataset[[#This Row],[2024/25 From - Spending review Topic 1]]+Dataset[[#This Row],[2024/25 From - Spending review Topic 2]]+Dataset[[#This Row],[2024/25 From - Spending review Topic 3]]+Dataset[[#This Row],[2024/25 From - Spending review Topic 4]]+Dataset[[#This Row],[2024/25 From - Other reallocations]] -> 0 | CC59: =Dataset[[#This Row],[2025/26 From - Spending review Topic 1]]+Dataset[[#This Row],[2025/26 From - Spending review Topic 2]]+Dataset[[#This Row],[2025/26 From - Spending review Topic 3]]+Dataset[[#This Row],[2025/26 From - Spending review Topic 4]]+Dataset[[#This Row],[2025/26 From - Other reallocations]] -> 0 | CD59: =Dataset[[#This Row],[2026/27 From - Spending review Topic 1]]+Dataset[[#This Row],[2026/27 From - Spending review Topic 2]]+Dataset[[#This Row],[2026/27 From - Spending review Topic 3]]+Dataset[[#This Row],[2026/27 From - Spending review Topic 4]]+Dataset[[#This Row],[2026/27 From - Other reallocations]] -> 0 | CE59: =Dataset[[#This Row],[2024/25 To - Spending review Topic 1]]+Dataset[[#This Row],[2024/25 To - Spending review Topic 2]]+Dataset[[#This Row],[2024/25 To - Spending review Topic 3]]+Dataset[[#This Row],[2024/25 To - Spending review Topic 4]]+Dataset[[#This Row],[2024/25 To - Other reallocations]] -> 0 | CF59: =Dataset[[#This Row],[2025/26 To - Spending review Topic 1]]+Dataset[[#This Row],[2025/26 To - Spending review Topic 2]]+Dataset[[#This Row],[2025/26 To - Spending review Topic 3]]+Dataset[[#This Row],[2025/26 To - Spending review Topic 4]]+Dataset[[#This Row],[2025/26 To - Other reallocations]] -> 0 | CG59: =Dataset[[#This Row],[2026/27 To - Spending review Topic 1]]+Dataset[[#This Row],[2026/27 To - Spending review Topic 2]]+Dataset[[#This Row],[2026/27 To - Spending review Topic 3]]+Dataset[[#This Row],[2026/27 To - Spending review Topic 4]]+Dataset[[#This Row],[2026/27 To - Other reallocations]] -> 0 | CH59: =Dataset[[#This Row],[2024/25 Reduction]]+Dataset[[#This Row],[2024/25 From - Total]] -> 0 | CI59: =Dataset[[#This Row],[2025/26 Reduction]]+Dataset[[#This Row],[2025/26 From - Total]] -> 0 | CJ59: =Dataset[[#This Row],[2026/27 Reduction]]+Dataset[[#This Row],[2026/27 From - Total]] -> 0 | CK59: =Dataset[[#This Row],[2023/24 Reduction]] -> 0 | CL59: =SUM(Dataset[[#This Row],[2024/25 Reduction]],Dataset[[#This Row],[2024/25 From - Total]],Dataset[[#This Row],[2024/25 To - Total]]) -> 0 | CM59: =SUM(Dataset[[#This Row],[2025/26 Reduction]],Dataset[[#This Row],[2025/26 From - Total]],Dataset[[#This Row],[2025/26 To - Total]]) -> 0 | CN59: =SUM(Dataset[[#This Row],[2026/27 Reduction]],Dataset[[#This Row],[2026/27 From - Total]],Dataset[[#This Row],[2026/27 To - Total]]) -> 0 | CO59: =Dataset[[#This Row],[2023/24 Baseline]]+Dataset[[#This Row],[2023/24 Total change]] -> 0 | CP59: =Dataset[[#This Row],[2024/25 Baseline]]+Dataset[[#This Row],[2024/25 Total change]] -> 0 | CQ59: =Dataset[[#This Row],[2025/26 Baseline]]+Dataset[[#This Row],[2025/26 Total change]] -> 0 | CR59: =Dataset[[#This Row],[2026/27 Baseline]]+Dataset[[#This Row],[2026/27 Total change]] -> 0
A60: NAT|Non-transfer item | B60: 23|Rent on land | C60: 2024_25 | D60: MTEF2024 | E60: 23 | F60: 1 | G60: 1 | H60: 36096 | I60: 42 | J60: 23 | K60: 01 | L60: 01 | M60: 036096 | N60: 000042 | O60: 23|01|01 | P60: 01 | Q60: 01 | R60: 03 | S60: 42 | T60: 42 | U60: 01|01|03|42|42 | V60: National | W60: Defence | X60: Administration | Y60: Ministry | Z60: Non-transfer item | AA60: Current | AB60: Current payments | AC60: Interest and rent on land | AD60: Rent on land | AE60: Rent on land | AF60: Peace and security | AG60: Defence and state security | AH60: NAT | AI60: 0 | AJ60: 0 | AK60: 0 | AL60: 0 | AM60: 0 | AN60: 0 | AO60: 0 | AP60: 0 | AQ60: 0 | AR60: 0 | AS60: 0 | CB60: =Dataset[[#This Row],[2024/25 From - Spending review Topic 1]]+Dataset[[#This Row],[2024/25 From - Spending review Topic 2]]+Dataset[[#This Row],[2024/25 From - Spending review Topic 3]]+Dataset[[#This Row],[2024/25 From - Spending review Topic 4]]+Dataset[[#This Row],[2024/25 From - Other reallocations]] -> 0 | CC60: =Dataset[[#This Row],[2025/26 From - Spending review Topic 1]]+Dataset[[#This Row],[2025/26 From - Spending review Topic 2]]+Dataset[[#This Row],[2025/26 From - Spending review Topic 3]]+Dataset[[#This Row],[2025/26 From - Spending review Topic 4]]+Dataset[[#This Row],[2025/26 From - Other reallocations]] -> 0 | CD60: =Dataset[[#This Row],[2026/27 From - Spending review Topic 1]]+Dataset[[#This Row],[2026/27 From - Spending review Topic 2]]+Dataset[[#This Row],[2026/27 From - Spending review Topic 3]]+Dataset[[#This Row],[2026/27 From - Spending review Topic 4]]+Dataset[[#This Row],[2026/27 From - Other reallocations]] -> 0 | CE60: =Dataset[[#This Row],[2024/25 To - Spending review Topic 1]]+Dataset[[#This Row],[2024/25 To - Spending review Topic 2]]+Dataset[[#This Row],[2024/25 To - Spending review Topic 3]]+Dataset[[#This Row],[2024/25 To - Spending review Topic 4]]+Dataset[[#This Row],[2024/25 To - Other reallocations]] -> 0 | CF60: =Dataset[[#This Row],[2025/26 To - Spending review Topic 1]]+Dataset[[#This Row],[2025/26 To - Spending review Topic 2]]+Dataset[[#This Row],[2025/26 To - Spending review Topic 3]]+Dataset[[#This Row],[2025/26 To - Spending review Topic 4]]+Dataset[[#This Row],[2025/26 To - Other reallocations]] -> 0 | CG60: =Dataset[[#This Row],[2026/27 To - Spending review Topic 1]]+Dataset[[#This Row],[2026/27 To - Spending review Topic 2]]+Dataset[[#This Row],[2026/27 To - Spending review Topic 3]]+Dataset[[#This Row],[2026/27 To - Spending review Topic 4]]+Dataset[[#This Row],[2026/27 To - Other reallocations]] -> 0 | CH60: =Dataset[[#This Row],[2024/25 Reduction]]+Dataset[[#This Row],[2024/25 From - Total]] -> 0 | CI60: =Dataset[[#This Row],[2025/26 Reduction]]+Dataset[[#This Row],[2025/26 From - Total]] -> 0 | CJ60: =Dataset[[#This Row],[2026/27 Reduction]]+Dataset[[#This Row],[2026/27 From - Total]] -> 0 | CK60: =Dataset[[#This Row],[2023/24 Reduction]] -> 0 | CL60: =SUM(Dataset[[#This Row],[2024/25 Reduction]],Dataset[[#This Row],[2024/25 From - Total]],Dataset[[#This Row],[2024/25 To - Total]]) -> 0 | CM60: =SUM(Dataset[[#This Row],[2025/26 Reduction]],Dataset[[#This Row],[2025/26 From - Total]],Dataset[[#This Row],[2025/26 To - Total]]) -> 0 | CN60: =SUM(Dataset[[#This Row],[2026/27 Reduction]],Dataset[[#This Row],[2026/27 From - Total]],Dataset[[#This Row],[2026/27 To - Total]]) -> 0 | CO60: =Dataset[[#This Row],[2023/24 Baseline]]+Dataset[[#This Row],[2023/24 Total change]] -> 0 | CP60: =Dataset[[#This Row],[2024/25 Baseline]]+Dataset[[#This Row],[2024/25 Total change]] -> 0 | CQ60: =Dataset[[#This Row],[2025/26 Baseline]]+Dataset[[#This Row],[2025/26 Total change]] -> 0 | CR60: =Dataset[[#This Row],[2026/27 Baseline]]+Dataset[[#This Row],[2026/27 Total change]] -> 0
A61: NAT|Non-transfer item | B61: 23|Provincial Revenue Funds | C61: 2024_25 | D61: MTEF2024 | E61: 23 | F61: 1 | G61: 1 | H61: 36097 | I61: 43 | J61: 23 | K61: 01 | L61: 01 | M61: 036097 | N61: 000043 | O61: 23|01|01 | P61: 01 | Q61: 02 | R61: 04 | S61: 43 | T61: 43 | U61: 01|02|04|43|43 | V61: National | W61: Defence | X61: Administration | Y61: Ministry | Z61: Non-transfer item | AA61: Current | AB61: Transfers and subsidies | AC61: Provinces and municipalities | AD61: Provinces | AE61: Provincial Revenue Funds | AF61: Peace and security | AG61: Defence and state security | AH61: NAT | AI61: 0 | AJ61: 0 | AK61: 0 | AL61: 0 | AM61: 0 | AN61: 0 | AO61: 0 | AP61: 0 | AQ61: 0 | AR61: 0 | AS61: 0 | CB61: =Dataset[[#This Row],[2024/25 From - Spending review Topic 1]]+Dataset[[#This Row],[2024/25 From - Spending review Topic 2]]+Dataset[[#This Row],[2024/25 From - Spending review Topic 3]]+Dataset[[#This Row],[2024/25 From - Spending review Topic 4]]+Dataset[[#This Row],[2024/25 From - Other reallocations]] -> 0 | CC61: =Dataset[[#This Row],[2025/26 From - Spending review Topic 1]]+Dataset[[#This Row],[2025/26 From - Spending review Topic 2]]+Dataset[[#This Row],[2025/26 From - Spending review Topic 3]]+Dataset[[#This Row],[2025/26 From - Spending review Topic 4]]+Dataset[[#This Row],[2025/26 From - Other reallocations]] -> 0 | CD61: =Dataset[[#This Row],[2026/27 From - Spending review Topic 1]]+Dataset[[#This Row],[2026/27 From - Spending review Topic 2]]+Dataset[[#This Row],[2026/27 From - Spending review Topic 3]]+Dataset[[#This Row],[2026/27 From - Spending review Topic 4]]+Dataset[[#This Row],[2026/27 From - Other reallocations]] -> 0 | CE61: =Dataset[[#This Row],[2024/25 To - Spending review Topic 1]]+Dataset[[#This Row],[2024/25 To - Spending review Topic 2]]+Dataset[[#This Row],[2024/25 To - Spending review Topic 3]]+Dataset[[#This Row],[2024/25 To - Spending review Topic 4]]+Dataset[[#This Row],[2024/25 To - Other reallocations]] -> 0 | CF61: =Dataset[[#This Row],[2025/26 To - Spending review Topic 1]]+Dataset[[#This Row],[2025/26 To - Spending review Topic 2]]+Dataset[[#This Row],[2025/26 To - Spending review Topic 3]]+Dataset[[#This Row],[2025/26 To - Spending review Topic 4]]+Dataset[[#This Row],[2025/26 To - Other reallocations]] -> 0 | CG61: =Dataset[[#This Row],[2026/27 To - Spending review Topic 1]]+Dataset[[#This Row],[2026/27 To - Spending review Topic 2]]+Dataset[[#This Row],[2026/27 To - Spending review Topic 3]]+Dataset[[#This Row],[2026/27 To - Spending review Topic 4]]+Dataset[[#This Row],[2026/27 To - Other reallocations]] -> 0 | CH61: =Dataset[[#This Row],[2024/25 Reduction]]+Dataset[[#This Row],[2024/25 From - Total]] -> 0 | CI61: =Dataset[[#This Row],[2025/26 Reduction]]+Dataset[[#This Row],[2025/26 From - Total]] -> 0 | CJ61: =Dataset[[#This Row],[2026/27 Reduction]]+Dataset[[#This Row],[2026/27 From - Total]] -> 0 | CK61: =Dataset[[#This Row],[2023/24 Reduction]] -> 0 | CL61: =SUM(Dataset[[#This Row],[2024/25 Reduction]],Dataset[[#This Row],[2024/25 From - Total]],Dataset[[#This Row],[2024/25 To - Total]]) -> 0 | CM61: =SUM(Dataset[[#This Row],[2025/26 Reduction]],Dataset[[#This Row],[2025/26 From - Total]],Dataset[[#This Row],[2025/26 To - Total]]) -> 0 | CN61: =SUM(Dataset[[#This Row],[2026/27 Reduction]],Dataset[[#This Row],[2026/27 From - Total]],Dataset[[#This Row],[2026/27 To - Total]]) -> 0 | CO61: =Dataset[[#This Row],[2023/24 Baseline]]+Dataset[[#This Row],[2023/24 Total change]] -> 0 | CP61: =Dataset[[#This Row],[2024/25 Baseline]]+Dataset[[#This Row],[2024/25 Total change]] -> 0 | CQ61: =Dataset[[#This Row],[2025/26 Baseline]]+Dataset[[#This Row],[2025/26 Total change]] -> 0 | CR61: =Dataset[[#This Row],[2026/27 Baseline]]+Dataset[[#This Row],[2026/27 Total change]] -> 0
A62: NAT|Non-transfer item | B62: 23|Provincial agencies and funds | C62: 2024_25 | D62: MTEF2024 | E62: 23 | F62: 1 | G62: 1 | H62: 36098 | I62: 44 | J62: 23 | K62: 01 | L62: 01 | M62: 036098 | N62: 000044 | O62: 23|01|01 | P62: 01 | Q62: 02 | R62: 04 | S62: 43 | T62: 44 | U62: 01|02|04|43|44 | V62: National | W62: Defence | X62: Administration | Y62: Ministry | Z62: Non-transfer item | AA62: Current | AB62: Transfers and subsidies | AC62: Provinces and municipalities | AD62: Provinces | AE62: Provincial agencies and funds | AF62: Peace and security | AG62: Defence and state security | AH62: NAT | AI62: 0 | AJ62: 0 | AK62: 0 | AL62: 0 | AM62: 0 | AN62: 0 | AO62: 0 | AP62: 0 | AQ62: 0 | AR62: 0 | AS62: 0 | CB62: =Dataset[[#This Row],[2024/25 From - Spending review Topic 1]]+Dataset[[#This Row],[2024/25 From - Spending review Topic 2]]+Dataset[[#This Row],[2024/25 From - Spending review Topic 3]]+Dataset[[#This Row],[2024/25 From - Spending review Topic 4]]+Dataset[[#This Row],[2024/25 From - Other reallocations]] -> 0 | CC62: =Dataset[[#This Row],[2025/26 From - Spending review Topic 1]]+Dataset[[#This Row],[2025/26 From - Spending review Topic 2]]+Dataset[[#This Row],[2025/26 From - Spending review Topic 3]]+Dataset[[#This Row],[2025/26 From - Spending review Topic 4]]+Dataset[[#This Row],[2025/26 From - Other reallocations]] -> 0 | CD62: =Dataset[[#This Row],[2026/27 From - Spending review Topic 1]]+Dataset[[#This Row],[2026/27 From - Spending review Topic 2]]+Dataset[[#This Row],[2026/27 From - Spending review Topic 3]]+Dataset[[#This Row],[2026/27 From - Spending review Topic 4]]+Dataset[[#This Row],[2026/27 From - Other reallocations]] -> 0 | CE62: =Dataset[[#This Row],[2024/25 To - Spending review Topic 1]]+Dataset[[#This Row],[2024/25 To - Spending review Topic 2]]+Dataset[[#This Row],[2024/25 To - Spending review Topic 3]]+Dataset[[#This Row],[2024/25 To - Spending review Topic 4]]+Dataset[[#This Row],[2024/25 To - Other reallocations]] -> 0 | CF62: =Dataset[[#This Row],[2025/26 To - Spending review Topic 1]]+Dataset[[#This Row],[2025/26 To - Spending review Topic 2]]+Dataset[[#This Row],[2025/26 To - Spending review Topic 3]]+Dataset[[#This Row],[2025/26 To - Spending review Topic 4]]+Dataset[[#This Row],[2025/26 To - Other reallocations]] -> 0 | CG62: =Dataset[[#This Row],[2026/27 To - Spending review Topic 1]]+Dataset[[#This Row],[2026/27 To - Spending review Topic 2]]+Dataset[[#This Row],[2026/27 To - Spending review Topic 3]]+Dataset[[#This Row],[2026/27 To - Spending review Topic 4]]+Dataset[[#This Row],[2026/27 To - Other reallocations]] -> 0 | CH62: =Dataset[[#This Row],[2024/25 Reduction]]+Dataset[[#This Row],[2024/25 From - Total]] -> 0 | CI62: =Dataset[[#This Row],[2025/26 Reduction]]+Dataset[[#This Row],[2025/26 From - Total]] -> 0 | CJ62: =Dataset[[#This Row],[2026/27 Reduction]]+Dataset[[#This Row],[2026/27 From - Total]] -> 0 | CK62: =Dataset[[#This Row],[2023/24 Reduction]] -> 0 | CL62: =SUM(Dataset[[#This Row],[2024/25 Reduction]],Dataset[[#This Row],[2024/25 From - Total]],Dataset[[#This Row],[2024/25 To - Total]]) -> 0 | CM62: =SUM(Dataset[[#This Row],[2025/26 Reduction]],Dataset[[#This Row],[2025/26 From - Total]],Dataset[[#This Row],[2025/26 To - Total]]) -> 0 | CN62: =SUM(Dataset[[#This Row],[2026/27 Reduction]],Dataset[[#This Row],[2026/27 From - Total]],Dataset[[#This Row],[2026/27 To - Total]]) -> 0 | CO62: =Dataset[[#This Row],[2023/24 Baseline]]+Dataset[[#This Row],[2023/24 Total change]] -> 0 | CP62: =Dataset[[#This Row],[2024/25 Baseline]]+Dataset[[#This Row],[2024/25 Total change]] -> 0 | CQ62: =Dataset[[#This Row],[2025/26 Baseline]]+Dataset[[#This Row],[2025/26 Total change]] -> 0 | CR62: =Dataset[[#This Row],[2026/27 Baseline]]+Dataset[[#This Row],[2026/27 Total change]] -> 0
A63: NAT|Vehicle licences | B63: 23|Municipal bank accounts | C63: 2024_25 | D63: MTEF2024 | E63: 23 | F63: 1 | G63: 1 | H63: 36099 | I63: 45 | J63: 23 | K63: 01 | L63: 01 | M63: 036099 | N63: 000045 | O63: 23|01|01 | P63: 01 | Q63: 02 | R63: 04 | S63: 44 | T63: 45 | U63: 01|02|04|44|45 | V63: National | W63: Defence | X63: Administration | Y63: Ministry | Z63: Vehicle licences | AA63: Current | AB63: Transfers and subsidies | AC63: Provinces and municipalities | AD63: Municipalities | AE63: Municipal bank accounts | AF63: Peace and security | AG63: Defence and state security | AH63: NAT | AI63: 13 | AJ63: 14 | AK63: 35 | AL63: 23 | AM63: 23 | AN63: 23 | AO63: 0 | AP63: 10 | AQ63: 11 | AR63: 12 | AS63: 13 | CB63: =Dataset[[#This Row],[2024/25 From - Spending review Topic 1]]+Dataset[[#This Row],[2024/25 From - Spending review Topic 2]]+Dataset[[#This Row],[2024/25 From - Spending review Topic 3]]+Dataset[[#This Row],[2024/25 From - Spending review Topic 4]]+Dataset[[#This Row],[2024/25 From - Other reallocations]] -> 0 | CC63: =Dataset[[#This Row],[2025/26 From - Spending review Topic 1]]+Dataset[[#This Row],[2025/26 From - Spending review Topic 2]]+Dataset[[#This Row],[2025/26 From - Spending review Topic 3]]+Dataset[[#This Row],[2025/26 From - Spending review Topic 4]]+Dataset[[#This Row],[2025/26 From - Other reallocations]] -> 0 | CD63: =Dataset[[#This Row],[2026/27 From - Spending review Topic 1]]+Dataset[[#This Row],[2026/27 From - Spending review Topic 2]]+Dataset[[#This Row],[2026/27 From - Spending review Topic 3]]+Dataset[[#This Row],[2026/27 From - Spending review Topic 4]]+Dataset[[#This Row],[2026/27 From - Other reallocations]] -> 0 | CE63: =Dataset[[#This Row],[2024/25 To - Spending review Topic 1]]+Dataset[[#This Row],[2024/25 To - Spending review Topic 2]]+Dataset[[#This Row],[2024/25 To - Spending review Topic 3]]+Dataset[[#This Row],[2024/25 To - Spending review Topic 4]]+Dataset[[#This Row],[2024/25 To - Other reallocations]] -> 0 | CF63: =Dataset[[#This Row],[2025/26 To - Spending review Topic 1]]+Dataset[[#This Row],[2025/26 To - Spending review Topic 2]]+Dataset[[#This Row],[2025/26 To - Spending review Topic 3]]+Dataset[[#This Row],[2025/26 To - Spending review Topic 4]]+Dataset[[#This Row],[2025/26 To - Other reallocations]] -> 0 | CG63: =Dataset[[#This Row],[2026/27 To - Spending review Topic 1]]+Dataset[[#This Row],[2026/27 To - Spending review Topic 2]]+Dataset[[#This Row],[2026/27 To - Spending review Topic 3]]+Dataset[[#This Row],[2026/27 To - Spending review Topic 4]]+Dataset[[#This Row],[2026/27 To - Other reallocations]] -> 0 | CH63: =Dataset[[#This Row],[2024/25 Reduction]]+Dataset[[#This Row],[2024/25 From - Total]] -> 0 | CI63: =Dataset[[#This Row],[2025/26 Reduction]]+Dataset[[#This Row],[2025/26 From - Total]] -> 0 | CJ63: =Dataset[[#This Row],[2026/27 Reduction]]+Dataset[[#This Row],[2026/27 From - Total]] -> 0 | CK63: =Dataset[[#This Row],[2023/24 Reduction]] -> 0 | CL63: =SUM(Dataset[[#This Row],[2024/25 Reduction]],Dataset[[#This Row],[2024/25 From - Total]],Dataset[[#This Row],[2024/25 To - Total]]) -> 0 | CM63: =SUM(Dataset[[#This Row],[2025/26 Reduction]],Dataset[[#This Row],[2025/26 From - Total]],Dataset[[#This Row],[2025/26 To - Total]]) -> 0 | CN63: =SUM(Dataset[[#This Row],[2026/27 Reduction]],Dataset[[#This Row],[2026/27 From - Total]],Dataset[[#This Row],[2026/27 To - Total]]) -> 0 | CO63: =Dataset[[#This Row],[2023/24 Baseline]]+Dataset[[#This Row],[2023/24 Total change]] -> 10 | CP63: =Dataset[[#This Row],[2024/25 Baseline]]+Dataset[[#This Row],[2024/25 Total change]] -> 11 | CQ63: =Dataset[[#This Row],[2025/26 Baseline]]+Dataset[[#This Row],[2025/26 Total change]] -> 12 | CR63: =Dataset[[#This Row],[2026/27 Baseline]]+Dataset[[#This Row],[2026/27 Total change]] -> 13
A64: NAT|Non-transfer item | B64: 23|Municipal agencies and funds | C64: 2024_25 | D64: MTEF2024 | E64: 23 | F64: 1 | G64: 1 | H64: 36100 | I64: 46 | J64: 23 | K64: 01 | L64: 01 | M64: 036100 | N64: 000046 | O64: 23|01|01 | P64: 01 | Q64: 02 | R64: 04 | S64: 44 | T64: 46 | U64: 01|02|04|44|46 | V64: National | W64: Defence | X64: Administration | Y64: Ministry | Z64: Non-transfer item | AA64: Current | AB64: Transfers and subsidies | AC64: Provinces and municipalities | AD64: Municipalities | AE64: Municipal agencies and funds | AF64: Peace and security | AG64: Defence and state security | AH64: NAT | AI64: 0 | AJ64: 0 | AK64: 0 | AL64: 0 | AM64: 0 | AN64: 0 | AO64: 0 | AP64: 0 | AQ64: 0 | AR64: 0 | AS64: 0 | CB64: =Dataset[[#This Row],[2024/25 From - Spending review Topic 1]]+Dataset[[#This Row],[2024/25 From - Spending review Topic 2]]+Dataset[[#This Row],[2024/25 From - Spending review Topic 3]]+Dataset[[#This Row],[2024/25 From - Spending review Topic 4]]+Dataset[[#This Row],[2024/25 From - Other reallocations]] -> 0 | CC64: =Dataset[[#This Row],[2025/26 From - Spending review Topic 1]]+Dataset[[#This Row],[2025/26 From - Spending review Topic 2]]+Dataset[[#This Row],[2025/26 From - Spending review Topic 3]]+Dataset[[#This Row],[2025/26 From - Spending review Topic 4]]+Dataset[[#This Row],[2025/26 From - Other reallocations]] -> 0 | CD64: =Dataset[[#This Row],[2026/27 From - Spending review Topic 1]]+Dataset[[#This Row],[2026/27 From - Spending review Topic 2]]+Dataset[[#This Row],[2026/27 From - Spending review Topic 3]]+Dataset[[#This Row],[2026/27 From - Spending review Topic 4]]+Dataset[[#This Row],[2026/27 From - Other reallocations]] -> 0 | CE64: =Dataset[[#This Row],[2024/25 To - Spending review Topic 1]]+Dataset[[#This Row],[2024/25 To - Spending review Topic 2]]+Dataset[[#This Row],[2024/25 To - Spending review Topic 3]]+Dataset[[#This Row],[2024/25 To - Spending review Topic 4]]+Dataset[[#This Row],[2024/25 To - Other reallocations]] -> 0 | CF64: =Dataset[[#This Row],[2025/26 To - Spending review Topic 1]]+Dataset[[#This Row],[2025/26 To - Spending review Topic 2]]+Dataset[[#This Row],[2025/26 To - Spending review Topic 3]]+Dataset[[#This Row],[2025/26 To - Spending review Topic 4]]+Dataset[[#This Row],[2025/26 To - Other reallocations]] -> 0 | CG64: =Dataset[[#This Row],[2026/27 To - Spending review Topic 1]]+Dataset[[#This Row],[2026/27 To - Spending review Topic 2]]+Dataset[[#This Row],[2026/27 To - Spending review Topic 3]]+Dataset[[#This Row],[2026/27 To - Spending review Topic 4]]+Dataset[[#This Row],[2026/27 To - Other reallocations]] -> 0 | CH64: =Dataset[[#This Row],[2024/25 Reduction]]+Dataset[[#This Row],[2024/25 From - Total]] -> 0 | CI64: =Dataset[[#This Row],[2025/26 Reduction]]+Dataset[[#This Row],[2025/26 From - Total]] -> 0 | CJ64: =Dataset[[#This Row],[2026/27 Reduction]]+Dataset[[#This Row],[2026/27 From - Total]] -> 0 | CK64: =Dataset[[#This Row],[2023/24 Reduction]] -> 0 | CL64: =SUM(Dataset[[#This Row],[2024/25 Reduction]],Dataset[[#This Row],[2024/25 From - Total]],Dataset[[#This Row],[2024/25 To - Total]]) -> 0 | CM64: =SUM(Dataset[[#This Row],[2025/26 Reduction]],Dataset[[#This Row],[2025/26 From - Total]],Dataset[[#This Row],[2025/26 To - Total]]) -> 0 | CN64: =SUM(Dataset[[#This Row],[2026/27 Reduction]],Dataset[[#This Row],[2026/27 From - Total]],Dataset[[#This Row],[2026/27 To - Total]]) -> 0 | CO64: =Dataset[[#This Row],[2023/24 Baseline]]+Dataset[[#This Row],[2023/24 Total change]] -> 0 | CP64: =Dataset[[#This Row],[2024/25 Baseline]]+Dataset[[#This Row],[2024/25 Total change]] -> 0 | CQ64: =Dataset[[#This Row],[2025/26 Baseline]]+Dataset[[#This Row],[2025/26 Total change]] -> 0 | CR64: =Dataset[[#This Row],[2026/27 Baseline]]+Dataset[[#This Row],[2026/27 Total change]] -> 0
A65: NAT|Non-transfer item | B65: 23|Social security funds | C65: 2024_25 | D65: MTEF2024 | E65: 23 | F65: 1 | G65: 1 | H65: 36101 | I65: 47 | J65: 23 | K65: 01 | L65: 01 | M65: 036101 | N65: 000047 | O65: 23|01|01 | P65: 01 | Q65: 02 | R65: 05 | S65: 45 | T65: 47 | U65: 01|02|05|45|47 | V65: National | W65: Defence | X65: Administration | Y65: Ministry | Z65: Non-transfer item | AA65: Current | AB65: Transfers and subsidies | AC65: Departmental agencies and accounts | AD65: Social security funds | AE65: Social security funds | AF65: Peace and security | AG65: Defence and state security | AH65: NAT | AI65: 0 | AJ65: 0 | AK65: 0 | AL65: 0 | AM65: 0 | AN65: 0 | AO65: 0 | AP65: 0 | AQ65: 0 | AR65: 0 | AS65: 0 | CB65: =Dataset[[#This Row],[2024/25 From - Spending review Topic 1]]+Dataset[[#This Row],[2024/25 From - Spending review Topic 2]]+Dataset[[#This Row],[2024/25 From - Spending review Topic 3]]+Dataset[[#This Row],[2024/25 From - Spending review Topic 4]]+Dataset[[#This Row],[2024/25 From - Other reallocations]] -> 0 | CC65: =Dataset[[#This Row],[2025/26 From - Spending review Topic 1]]+Dataset[[#This Row],[2025/26 From - Spending review Topic 2]]+Dataset[[#This Row],[2025/26 From - Spending review Topic 3]]+Dataset[[#This Row],[2025/26 From - Spending review Topic 4]]+Dataset[[#This Row],[2025/26 From - Other reallocations]] -> 0 | CD65: =Dataset[[#This Row],[2026/27 From - Spending review Topic 1]]+Dataset[[#This Row],[2026/27 From - Spending review Topic 2]]+Dataset[[#This Row],[2026/27 From - Spending review Topic 3]]+Dataset[[#This Row],[2026/27 From - Spending review Topic 4]]+Dataset[[#This Row],[2026/27 From - Other reallocations]] -> 0 | CE65: =Dataset[[#This Row],[2024/25 To - Spending review Topic 1]]+Dataset[[#This Row],[2024/25 To - Spending review Topic 2]]+Dataset[[#This Row],[2024/25 To - Spending review Topic 3]]+Dataset[[#This Row],[2024/25 To - Spending review Topic 4]]+Dataset[[#This Row],[2024/25 To - Other reallocations]] -> 0 | CF65: =Dataset[[#This Row],[2025/26 To - Spending review Topic 1]]+Dataset[[#This Row],[2025/26 To - Spending review Topic 2]]+Dataset[[#This Row],[2025/26 To - Spending review Topic 3]]+Dataset[[#This Row],[2025/26 To - Spending review Topic 4]]+Dataset[[#This Row],[2025/26 To - Other reallocations]] -> 0 | CG65: =Dataset[[#This Row],[2026/27 To - Spending review Topic 1]]+Dataset[[#This Row],[2026/27 To - Spending review Topic 2]]+Dataset[[#This Row],[2026/27 To - Spending review Topic 3]]+Dataset[[#This Row],[2026/27 To - Spending review Topic 4]]+Dataset[[#This Row],[2026/27 To - Other reallocations]] -> 0 | CH65: =Dataset[[#This Row],[2024/25 Reduction]]+Dataset[[#This Row],[2024/25 From - Total]] -> 0 | CI65: =Dataset[[#This Row],[2025/26 Reduction]]+Dataset[[#This Row],[2025/26 From - Total]] -> 0 | CJ65: =Dataset[[#This Row],[2026/27 Reduction]]+Dataset[[#This Row],[2026/27 From - Total]] -> 0 | CK65: =Dataset[[#This Row],[2023/24 Reduction]] -> 0 | CL65: =SUM(Dataset[[#This Row],[2024/25 Reduction]],Dataset[[#This Row],[2024/25 From - Total]],Dataset[[#This Row],[2024/25 To - Total]]) -> 0 | CM65: =SUM(Dataset[[#This Row],[2025/26 Reduction]],Dataset[[#This Row],[2025/26 From - Total]],Dataset[[#This Row],[2025/26 To - Total]]) -> 0 | CN65: =SUM(Dataset[[#This Row],[2026/27 Reduction]],Dataset[[#This Row],[2026/27 From - Total]],Dataset[[#This Row],[2026/27 To - Total]]) -> 0 | CO65: =Dataset[[#This Row],[2023/24 Baseline]]+Dataset[[#This Row],[2023/24 Total change]] -> 0 | CP65: =Dataset[[#This Row],[2024/25 Baseline]]+Dataset[[#This Row],[2024/25 Total change]] -> 0 | CQ65: =Dataset[[#This Row],[2025/26 Baseline]]+Dataset[[#This Row],[2025/26 Total change]] -> 0 | CR65: =Dataset[[#This Row],[2026/27 Baseline]]+Dataset[[#This Row],[2026/27 Total change]] -> 0
A66: NAT|Non-transfer item | B66: 23|Departmental agencies (non-business entities) | C66: 2024_25 | D66: MTEF2024 | E66: 23 | F66: 1 | G66: 1 | H66: 36102 | I66: 48 | J66: 23 | K66: 01 | L66: 01 | M66: 036102 | N66: 000048 | O66: 23|01|01 | P66: 01 | Q66: 02 | R66: 05 | S66: 46 | T66: 48 | U66: 01|02|05|46|48 | V66: National | W66: Defence | X66: Administration | Y66: Ministry | Z66: Non-transfer item | AA66: Current | AB66: Transfers and subsidies | AC66: Departmental agencies and accounts | AD66: Departmental agencies (non-business entities) | AE66: Departmental agencies (non-business entities) | AF66: Peace and security | AG66: Defence and state security | AH66: NAT | AI66: 0 | AJ66: 0 | AK66: 0 | AL66: 0 | AM66: 0 | AN66: 0 | AO66: 0 | AP66: 0 | AQ66: 0 | AR66: 0 | AS66: 0 | CB66: =Dataset[[#This Row],[2024/25 From - Spending review Topic 1]]+Dataset[[#This Row],[2024/25 From - Spending review Topic 2]]+Dataset[[#This Row],[2024/25 From - Spending review Topic 3]]+Dataset[[#This Row],[2024/25 From - Spending review Topic 4]]+Dataset[[#This Row],[2024/25 From - Other reallocations]] -> 0 | CC66: =Dataset[[#This Row],[2025/26 From - Spending review Topic 1]]+Dataset[[#This Row],[2025/26 From - Spending review Topic 2]]+Dataset[[#This Row],[2025/26 From - Spending review Topic 3]]+Dataset[[#This Row],[2025/26 From - Spending review Topic 4]]+Dataset[[#This Row],[2025/26 From - Other reallocations]] -> 0 | CD66: =Dataset[[#This Row],[2026/27 From - Spending review Topic 1]]+Dataset[[#This Row],[2026/27 From - Spending review Topic 2]]+Dataset[[#This Row],[2026/27 From - Spending review Topic 3]]+Dataset[[#This Row],[2026/27 From - Spending review Topic 4]]+Dataset[[#This Row],[2026/27 From - Other reallocations]] -> 0 | CE66: =Dataset[[#This Row],[2024/25 To - Spending review Topic 1]]+Dataset[[#This Row],[2024/25 To - Spending review Topic 2]]+Dataset[[#This Row],[2024/25 To - Spending review Topic 3]]+Dataset[[#This Row],[2024/25 To - Spending review Topic 4]]+Dataset[[#This Row],[2024/25 To - Other reallocations]] -> 0 | CF66: =Dataset[[#This Row],[2025/26 To - Spending review Topic 1]]+Dataset[[#This Row],[2025/26 To - Spending review Topic 2]]+Dataset[[#This Row],[2025/26 To - Spending review Topic 3]]+Dataset[[#This Row],[2025/26 To - Spending review Topic 4]]+Dataset[[#This Row],[2025/26 To - Other reallocations]] -> 0 | CG66: =Dataset[[#This Row],[2026/27 To - Spending review Topic 1]]+Dataset[[#This Row],[2026/27 To - Spending review Topic 2]]+Dataset[[#This Row],[2026/27 To - Spending review Topic 3]]+Dataset[[#This Row],[2026/27 To - Spending review Topic 4]]+Dataset[[#This Row],[2026/27 To - Other reallocations]] -> 0 | CH66: =Dataset[[#This Row],[2024/25 Reduction]]+Dataset[[#This Row],[2024/25 From - Total]] -> 0 | CI66: =Dataset[[#This Row],[2025/26 Reduction]]+Dataset[[#This Row],[2025/26 From - Total]] -> 0 | CJ66: =Dataset[[#This Row],[2026/27 Reduction]]+Dataset[[#This Row],[2026/27 From - Total]] -> 0 | CK66: =Dataset[[#This Row],[2023/24 Reduction]] -> 0 | CL66: =SUM(Dataset[[#This Row],[2024/25 Reduction]],Dataset[[#This Row],[2024/25 From - Total]],Dataset[[#This Row],[2024/25 To - Total]]) -> 0 | CM66: =SUM(Dataset[[#This Row],[2025/26 Reduction]],Dataset[[#This Row],[2025/26 From - Total]],Dataset[[#This Row],[2025/26 To - Total]]) -> 0 | CN66: =SUM(Dataset[[#This Row],[2026/27 Reduction]],Dataset[[#This Row],[2026/27 From - Total]],Dataset[[#This Row],[2026/27 To - Total]]) -> 0 | CO66: =Dataset[[#This Row],[2023/24 Baseline]]+Dataset[[#This Row],[2023/24 Total change]] -> 0 | CP66: =Dataset[[#This Row],[2024/25 Baseline]]+Dataset[[#This Row],[2024/25 Total change]] -> 0 | CQ66: =Dataset[[#This Row],[2025/26 Baseline]]+Dataset[[#This Row],[2025/26 Total change]] -> 0 | CR66: =Dataset[[#This Row],[2026/27 Baseline]]+Dataset[[#This Row],[2026/27 Total change]] -> 0
A67: NAT|Non-transfer item | B67: 23|Higher education institutions | C67: 2024_25 | D67: MTEF2024 | E67: 23 | F67: 1 | G67: 1 | H67: 36103 | I67: 49 | J67: 23 | K67: 01 | L67: 01 | M67: 036103 | N67: 000049 | O67: 23|01|01 | P67: 01 | Q67: 02 | R67: 06 | S67: 47 | T67: 49 | U67: 01|02|06|47|49 | V67: National | W67: Defence | X67: Administration | Y67: Ministry | Z67: Non-transfer item | AA67: Current | AB67: Transfers and subsidies | AC67: Higher education institutions | AD67: Higher education institutions | AE67: Higher education institutions | AF67: Peace and security | AG67: Defence and state security | AH67: NAT | AI67: 0 | AJ67: 0 | AK67: 0 | AL67: 0 | AM67: 0 | AN67: 0 | AO67: 0 | AP67: 0 | AQ67: 0 | AR67: 0 | AS67: 0 | CB67: =Dataset[[#This Row],[2024/25 From - Spending review Topic 1]]+Dataset[[#This Row],[2024/25 From - Spending review Topic 2]]+Dataset[[#This Row],[2024/25 From - Spending review Topic 3]]+Dataset[[#This Row],[2024/25 From - Spending review Topic 4]]+Dataset[[#This Row],[2024/25 From - Other reallocations]] -> 0 | CC67: =Dataset[[#This Row],[2025/26 From - Spending review Topic 1]]+Dataset[[#This Row],[2025/26 From - Spending review Topic 2]]+Dataset[[#This Row],[2025/26 From - Spending review Topic 3]]+Dataset[[#This Row],[2025/26 From - Spending review Topic 4]]+Dataset[[#This Row],[2025/26 From - Other reallocations]] -> 0 | CD67: =Dataset[[#This Row],[2026/27 From - Spending review Topic 1]]+Dataset[[#This Row],[2026/27 From - Spending review Topic 2]]+Dataset[[#This Row],[2026/27 From - Spending review Topic 3]]+Dataset[[#This Row],[2026/27 From - Spending review Topic 4]]+Dataset[[#This Row],[2026/27 From - Other reallocations]] -> 0 | CE67: =Dataset[[#This Row],[2024/25 To - Spending review Topic 1]]+Dataset[[#This Row],[2024/25 To - Spending review Topic 2]]+Dataset[[#This Row],[2024/25 To - Spending review Topic 3]]+Dataset[[#This Row],[2024/25 To - Spending review Topic 4]]+Dataset[[#This Row],[2024/25 To - Other reallocations]] -> 0 | CF67: =Dataset[[#This Row],[2025/26 To - Spending review Topic 1]]+Dataset[[#This Row],[2025/26 To - Spending review Topic 2]]+Dataset[[#This Row],[2025/26 To - Spending review Topic 3]]+Dataset[[#This Row],[2025/26 To - Spending review Topic 4]]+Dataset[[#This Row],[2025/26 To - Other reallocations]] -> 0 | CG67: =Dataset[[#This Row],[2026/27 To - Spending review Topic 1]]+Dataset[[#This Row],[2026/27 To - Spending review Topic 2]]+Dataset[[#This Row],[2026/27 To - Spending review Topic 3]]+Dataset[[#This Row],[2026/27 To - Spending review Topic 4]]+Dataset[[#This Row],[2026/27 To - Other reallocations]] -> 0 | CH67: =Dataset[[#This Row],[2024/25 Reduction]]+Dataset[[#This Row],[2024/25 From - Total]] -> 0 | CI67: =Dataset[[#This Row],[2025/26 Reduction]]+Dataset[[#This Row],[2025/26 From - Total]] -> 0 | CJ67: =Dataset[[#This Row],[2026/27 Reduction]]+Dataset[[#This Row],[2026/27 From - Total]] -> 0 | CK67: =Dataset[[#This Row],[2023/24 Reduction]] -> 0 | CL67: =SUM(Dataset[[#This Row],[2024/25 Reduction]],Dataset[[#This Row],[2024/25 From - Total]],Dataset[[#This Row],[2024/25 To - Total]]) -> 0 | CM67: =SUM(Dataset[[#This Row],[2025/26 Reduction]],Dataset[[#This Row],[2025/26 From - Total]],Dataset[[#This Row],[2025/26 To - Total]]) -> 0 | CN67: =SUM(Dataset[[#This Row],[2026/27 Reduction]],Dataset[[#This Row],[2026/27 From - Total]],Dataset[[#This Row],[2026/27 To - Total]]) -> 0 | CO67: =Dataset[[#This Row],[2023/24 Baseline]]+Dataset[[#This Row],[2023/24 Total change]] -> 0 | CP67: =Dataset[[#This Row],[2024/25 Baseline]]+Dataset[[#This Row],[2024/25 Total change]] -> 0 | CQ67: =Dataset[[#This Row],[2025/26 Baseline]]+Dataset[[#This Row],[2025/26 Total change]] -> 0 | CR67: =Dataset[[#This Row],[2026/27 Baseline]]+Dataset[[#This Row],[2026/27 Total change]] -> 0
A68: NAT|Non-transfer item | B68: 23|Foreign governments and international organisations | C68: 2024_25 | D68: MTEF2024 | E68: 23 | F68: 1 | G68: 1 | H68: 36104 | I68: 50 | J68: 23 | K68: 01 | L68: 01 | M68: 036104 | N68: 000050 | O68: 23|01|01 | P68: 01 | Q68: 02 | R68: 07 | S68: 48 | T68: 50 | U68: 01|02|07|48|50 | V68: National | W68: Defence | X68: Administration | Y68: Ministry | Z68: Non-transfer item | AA68: Current | AB68: Transfers and subsidies | AC68: Foreign governments and international organisations | AD68: Foreign governments and international organisations | AE68: Foreign governments and international organisations | AF68: Peace and security | AG68: Defence and state security | AH68: NAT | AI68: 0 | AJ68: 0 | AK68: 0 | AL68: 0 | AM68: 0 | AN68: 0 | AO68: 0 | AP68: 0 | AQ68: 0 | AR68: 0 | AS68: 0 | CB68: =Dataset[[#This Row],[2024/25 From - Spending review Topic 1]]+Dataset[[#This Row],[2024/25 From - Spending review Topic 2]]+Dataset[[#This Row],[2024/25 From - Spending review Topic 3]]+Dataset[[#This Row],[2024/25 From - Spending review Topic 4]]+Dataset[[#This Row],[2024/25 From - Other reallocations]] -> 0 | CC68: =Dataset[[#This Row],[2025/26 From - Spending review Topic 1]]+Dataset[[#This Row],[2025/26 From - Spending review Topic 2]]+Dataset[[#This Row],[2025/26 From - Spending review Topic 3]]+Dataset[[#This Row],[2025/26 From - Spending review Topic 4]]+Dataset[[#This Row],[2025/26 From - Other reallocations]] -> 0 | CD68: =Dataset[[#This Row],[2026/27 From - Spending review Topic 1]]+Dataset[[#This Row],[2026/27 From - Spending review Topic 2]]+Dataset[[#This Row],[2026/27 From - Spending review Topic 3]]+Dataset[[#This Row],[2026/27 From - Spending review Topic 4]]+Dataset[[#This Row],[2026/27 From - Other reallocations]] -> 0 | CE68: =Dataset[[#This Row],[2024/25 To - Spending review Topic 1]]+Dataset[[#This Row],[2024/25 To - Spending review Topic 2]]+Dataset[[#This Row],[2024/25 To - Spending review Topic 3]]+Dataset[[#This Row],[2024/25 To - Spending review Topic 4]]+Dataset[[#This Row],[2024/25 To - Other reallocations]] -> 0 | CF68: =Dataset[[#This Row],[2025/26 To - Spending review Topic 1]]+Dataset[[#This Row],[2025/26 To - Spending review Topic 2]]+Dataset[[#This Row],[2025/26 To - Spending review Topic 3]]+Dataset[[#This Row],[2025/26 To - Spending review Topic 4]]+Dataset[[#This Row],[2025/26 To - Other reallocations]] -> 0 | CG68: =Dataset[[#This Row],[2026/27 To - Spending review Topic 1]]+Dataset[[#This Row],[2026/27 To - Spending review Topic 2]]+Dataset[[#This Row],[2026/27 To - Spending review Topic 3]]+Dataset[[#This Row],[2026/27 To - Spending review Topic 4]]+Dataset[[#This Row],[2026/27 To - Other reallocations]] -> 0 | CH68: =Dataset[[#This Row],[2024/25 Reduction]]+Dataset[[#This Row],[2024/25 From - Total]] -> 0 | CI68: =Dataset[[#This Row],[2025/26 Reduction]]+Dataset[[#This Row],[2025/26 From - Total]] -> 0 | CJ68: =Dataset[[#This Row],[2026/27 Reduction]]+Dataset[[#This Row],[2026/27 From - Total]] -> 0 | CK68: =Dataset[[#This Row],[2023/24 Reduction]] -> 0 | CL68: =SUM(Dataset[[#This Row],[2024/25 Reduction]],Dataset[[#This Row],[2024/25 From - Total]],Dataset[[#This Row],[2024/25 To - Total]]) -> 0 | CM68: =SUM(Dataset[[#This Row],[2025/26 Reduction]],Dataset[[#This Row],[2025/26 From - Total]],Dataset[[#This Row],[2025/26 To - Total]]) -> 0 | CN68: =SUM(Dataset[[#This Row],[2026/27 Reduction]],Dataset[[#This Row],[2026/27 From - Total]],Dataset[[#This Row],[2026/27 To - Total]]) -> 0 | CO68: =Dataset[[#This Row],[2023/24 Baseline]]+Dataset[[#This Row],[2023/24 Total change]] -> 0 | CP68: =Dataset[[#This Row],[2024/25 Baseline]]+Dataset[[#This Row],[2024/25 Total change]] -> 0 | CQ68: =Dataset[[#This Row],[2025/26 Baseline]]+Dataset[[#This Row],[2025/26 Total change]] -> 0 | CR68: =Dataset[[#This Row],[2026/27 Baseline]]+Dataset[[#This Row],[2026/27 Total change]] -> 0
A69: NAT|Non-transfer item | B69: 23|Subsidies on products and production (pc) | C69: 2024_25 | D69: MTEF2024 | E69: 23 | F69: 1 | G69: 1 | H69: 36105 | I69: 51 | J69: 23 | K69: 01 | L69: 01 | M69: 036105 | N69: 000051 | O69: 23|01|01 | P69: 01 | Q69: 02 | R69: 08 | S69: 49 | T69: 51 | U69: 01|02|08|49|51 | V69: National | W69: Defence | X69: Administration | Y69: Ministry | Z69: Non-transfer item | AA69: Current | AB69: Transfers and subsidies | AC69: Public corporations and private enterprises | AD69: Public corporations | AE69: Subsidies on products and production (pc) | AF69: Peace and security | AG69: Defence and state security | AH69: NAT | AI69: 0 | AJ69: 0 | AK69: 0 | AL69: 0 | AM69: 0 | AN69: 0 | AO69: 0 | AP69: 0 | AQ69: 0 | AR69: 0 | AS69: 0 | CB69: =Dataset[[#This Row],[2024/25 From - Spending review Topic 1]]+Dataset[[#This Row],[2024/25 From - Spending review Topic 2]]+Dataset[[#This Row],[2024/25 From - Spending review Topic 3]]+Dataset[[#This Row],[2024/25 From - Spending review Topic 4]]+Dataset[[#This Row],[2024/25 From - Other reallocations]] -> 0 | CC69: =Dataset[[#This Row],[2025/26 From - Spending review Topic 1]]+Dataset[[#This Row],[2025/26 From - Spending review Topic 2]]+Dataset[[#This Row],[2025/26 From - Spending review Topic 3]]+Dataset[[#This Row],[2025/26 From - Spending review Topic 4]]+Dataset[[#This Row],[2025/26 From - Other reallocations]] -> 0 | CD69: =Dataset[[#This Row],[2026/27 From - Spending review Topic 1]]+Dataset[[#This Row],[2026/27 From - Spending review Topic 2]]+Dataset[[#This Row],[2026/27 From - Spending review Topic 3]]+Dataset[[#This Row],[2026/27 From - Spending review Topic 4]]+Dataset[[#This Row],[2026/27 From - Other reallocations]] -> 0 | CE69: =Dataset[[#This Row],[2024/25 To - Spending review Topic 1]]+Dataset[[#This Row],[2024/25 To - Spending review Topic 2]]+Dataset[[#This Row],[2024/25 To - Spending review Topic 3]]+Dataset[[#This Row],[2024/25 To - Spending review Topic 4]]+Dataset[[#This Row],[2024/25 To - Other reallocations]] -> 0 | CF69: =Dataset[[#This Row],[2025/26 To - Spending review Topic 1]]+Dataset[[#This Row],[2025/26 To - Spending review Topic 2]]+Dataset[[#This Row],[2025/26 To - Spending review Topic 3]]+Dataset[[#This Row],[2025/26 To - Spending review Topic 4]]+Dataset[[#This Row],[2025/26 To - Other reallocations]] -> 0 | CG69: =Dataset[[#This Row],[2026/27 To - Spending review Topic 1]]+Dataset[[#This Row],[2026/27 To - Spending review Topic 2]]+Dataset[[#This Row],[2026/27 To - Spending review Topic 3]]+Dataset[[#This Row],[2026/27 To - Spending review Topic 4]]+Dataset[[#This Row],[2026/27 To - Other reallocations]] -> 0 | CH69: =Dataset[[#This Row],[2024/25 Reduction]]+Dataset[[#This Row],[2024/25 From - Total]] -> 0 | CI69: =Dataset[[#This Row],[2025/26 Reduction]]+Dataset[[#This Row],[2025/26 From - Total]] -> 0 | CJ69: =Dataset[[#This Row],[2026/27 Reduction]]+Dataset[[#This Row],[2026/27 From - Total]] -> 0 | CK69: =Dataset[[#This Row],[2023/24 Reduction]] -> 0 | CL69: =SUM(Dataset[[#This Row],[2024/25 Reduction]],Dataset[[#This Row],[2024/25 From - Total]],Dataset[[#This Row],[2024/25 To - Total]]) -> 0 | CM69: =SUM(Dataset[[#This Row],[2025/26 Reduction]],Dataset[[#This Row],[2025/26 From - Total]],Dataset[[#This Row],[2025/26 To - Total]]) -> 0 | CN69: =SUM(Dataset[[#This Row],[2026/27 Reduction]],Dataset[[#This Row],[2026/27 From - Total]],Dataset[[#This Row],[2026/27 To - Total]]) -> 0 | CO69: =Dataset[[#This Row],[2023/24 Baseline]]+Dataset[[#This Row],[2023/24 Total change]] -> 0 | CP69: =Dataset[[#This Row],[2024/25 Baseline]]+Dataset[[#This Row],[2024/25 Total change]] -> 0 | CQ69: =Dataset[[#This Row],[2025/26 Baseline]]+Dataset[[#This Row],[2025/26 Total change]] -> 0 | CR69: =Dataset[[#This Row],[2026/27 Baseline]]+Dataset[[#This Row],[2026/27 Total change]] -> 0
A70: NAT|Non-transfer item | B70: 23|Other transfers to public corporations | C70: 2024_25 | D70: MTEF2024 | E70: 23 | F70: 1 | G70: 1 | H70: 36106 | I70: 52 | J70: 23 | K70: 01 | L70: 01 | M70: 036106 | N70: 000052 | O70: 23|01|01 | P70: 01 | Q70: 02 | R70: 08 | S70: 49 | T70: 52 | U70: 01|02|08|49|52 | V70: National | W70: Defence | X70: Administration | Y70: Ministry | Z70: Non-transfer item | AA70: Current | AB70: Transfers and subsidies | AC70: Public corporations and private enterprises | AD70: Public corporations | AE70: Other transfers to public corporations | AF70: Peace and security | AG70: Defence and state security | AH70: NAT | AI70: 0 | AJ70: 0 | AK70: 0 | AL70: 0 | AM70: 0 | AN70: 0 | AO70: 0 | AP70: 0 | AQ70: 0 | AR70: 0 | AS70: 0 | CB70: =Dataset[[#This Row],[2024/25 From - Spending review Topic 1]]+Dataset[[#This Row],[2024/25 From - Spending review Topic 2]]+Dataset[[#This Row],[2024/25 From - Spending review Topic 3]]+Dataset[[#This Row],[2024/25 From - Spending review Topic 4]]+Dataset[[#This Row],[2024/25 From - Other reallocations]] -> 0 | CC70: =Dataset[[#This Row],[2025/26 From - Spending review Topic 1]]+Dataset[[#This Row],[2025/26 From - Spending review Topic 2]]+Dataset[[#This Row],[2025/26 From - Spending review Topic 3]]+Dataset[[#This Row],[2025/26 From - Spending review Topic 4]]+Dataset[[#This Row],[2025/26 From - Other reallocations]] -> 0 | CD70: =Dataset[[#This Row],[2026/27 From - Spending review Topic 1]]+Dataset[[#This Row],[2026/27 From - Spending review Topic 2]]+Dataset[[#This Row],[2026/27 From - Spending review Topic 3]]+Dataset[[#This Row],[2026/27 From - Spending review Topic 4]]+Dataset[[#This Row],[2026/27 From - Other reallocations]] -> 0 | CE70: =Dataset[[#This Row],[2024/25 To - Spending review Topic 1]]+Dataset[[#This Row],[2024/25 To - Spending review Topic 2]]+Dataset[[#This Row],[2024/25 To - Spending review Topic 3]]+Dataset[[#This Row],[2024/25 To - Spending review Topic 4]]+Dataset[[#This Row],[2024/25 To - Other reallocations]] -> 0 | CF70: =Dataset[[#This Row],[2025/26 To - Spending review Topic 1]]+Dataset[[#This Row],[2025/26 To - Spending review Topic 2]]+Dataset[[#This Row],[2025/26 To - Spending review Topic 3]]+Dataset[[#This Row],[2025/26 To - Spending review Topic 4]]+Dataset[[#This Row],[2025/26 To - Other reallocations]] -> 0 | CG70: =Dataset[[#This Row],[2026/27 To - Spending review Topic 1]]+Dataset[[#This Row],[2026/27 To - Spending review Topic 2]]+Dataset[[#This Row],[2026/27 To - Spending review Topic 3]]+Dataset[[#This Row],[2026/27 To - Spending review Topic 4]]+Dataset[[#This Row],[2026/27 To - Other reallocations]] -> 0 | CH70: =Dataset[[#This Row],[2024/25 Reduction]]+Dataset[[#This Row],[2024/25 From - Total]] -> 0 | CI70: =Dataset[[#This Row],[2025/26 Reduction]]+Dataset[[#This Row],[2025/26 From - Total]] -> 0 | CJ70: =Dataset[[#This Row],[2026/27 Reduction]]+Dataset[[#This Row],[2026/27 From - Total]] -> 0 | CK70: =Dataset[[#This Row],[2023/24 Reduction]] -> 0 | CL70: =SUM(Dataset[[#This Row],[2024/25 Reduction]],Dataset[[#This Row],[2024/25 From - Total]],Dataset[[#This Row],[2024/25 To - Total]]) -> 0 | CM70: =SUM(Dataset[[#This Row],[2025/26 Reduction]],Dataset[[#This Row],[2025/26 From - Total]],Dataset[[#This Row],[2025/26 To - Total]]) -> 0 | CN70: =SUM(Dataset[[#This Row],[2026/27 Reduction]],Dataset[[#This Row],[2026/27 From - Total]],Dataset[[#This Row],[2026/27 To - Total]]) -> 0 | CO70: =Dataset[[#This Row],[2023/24 Baseline]]+Dataset[[#This Row],[2023/24 Total change]] -> 0 | CP70: =Dataset[[#This Row],[2024/25 Baseline]]+Dataset[[#This Row],[2024/25 Total change]] -> 0 | CQ70: =Dataset[[#This Row],[2025/26 Baseline]]+Dataset[[#This Row],[2025/26 Total change]] -> 0 | CR70: =Dataset[[#This Row],[2026/27 Baseline]]+Dataset[[#This Row],[2026/27 Total change]] -> 0
A71: NAT|Non-transfer item | B71: 23|Subsidies on products and production (pe) | C71: 2024_25 | D71: MTEF2024 | E71: 23 | F71: 1 | G71: 1 | H71: 36107 | I71: 53 | J71: 23 | K71: 01 | L71: 01 | M71: 036107 | N71: 000053 | O71: 23|01|01 | P71: 01 | Q71: 02 | R71: 08 | S71: 50 | T71: 53 | U71: 01|02|08|50|53 | V71: National | W71: Defence | X71: Administration | Y71: Ministry | Z71: Non-transfer item | AA71: Current | AB71: Transfers and subsidies | AC71: Public corporations and private enterprises | AD71: Private enterprises | AE71: Subsidies on products and production (pe) | AF71: Peace and security | AG71: Defence and state security | AH71: NAT | AI71: 0 | AJ71: 0 | AK71: 0 | AL71: 0 | AM71: 0 | AN71: 0 | AO71: 0 | AP71: 0 | AQ71: 0 | AR71: 0 | AS71: 0 | CB71: =Dataset[[#This Row],[2024/25 From - Spending review Topic 1]]+Dataset[[#This Row],[2024/25 From - Spending review Topic 2]]+Dataset[[#This Row],[2024/25 From - Spending review Topic 3]]+Dataset[[#This Row],[2024/25 From - Spending review Topic 4]]+Dataset[[#This Row],[2024/25 From - Other reallocations]] -> 0 | CC71: =Dataset[[#This Row],[2025/26 From - Spending review Topic 1]]+Dataset[[#This Row],[2025/26 From - Spending review Topic 2]]+Dataset[[#This Row],[2025/26 From - Spending review Topic 3]]+Dataset[[#This Row],[2025/26 From - Spending review Topic 4]]+Dataset[[#This Row],[2025/26 From - Other reallocations]] -> 0 | CD71: =Dataset[[#This Row],[2026/27 From - Spending review Topic 1]]+Dataset[[#This Row],[2026/27 From - Spending review Topic 2]]+Dataset[[#This Row],[2026/27 From - Spending review Topic 3]]+Dataset[[#This Row],[2026/27 From - Spending review Topic 4]]+Dataset[[#This Row],[2026/27 From - Other reallocations]] -> 0 | CE71: =Dataset[[#This Row],[2024/25 To - Spending review Topic 1]]+Dataset[[#This Row],[2024/25 To - Spending review Topic 2]]+Dataset[[#This Row],[2024/25 To - Spending review Topic 3]]+Dataset[[#This Row],[2024/25 To - Spending review Topic 4]]+Dataset[[#This Row],[2024/25 To - Other reallocations]] -> 0 | CF71: =Dataset[[#This Row],[2025/26 To - Spending review Topic 1]]+Dataset[[#This Row],[2025/26 To - Spending review Topic 2]]+Dataset[[#This Row],[2025/26 To - Spending review Topic 3]]+Dataset[[#This Row],[2025/26 To - Spending review Topic 4]]+Dataset[[#This Row],[2025/26 To - Other reallocations]] -> 0 | CG71: =Dataset[[#This Row],[2026/27 To - Spending review Topic 1]]+Dataset[[#This Row],[2026/27 To - Spending review Topic 2]]+Dataset[[#This Row],[2026/27 To - Spending review Topic 3]]+Dataset[[#This Row],[2026/27 To - Spending review Topic 4]]+Dataset[[#This Row],[2026/27 To - Other reallocations]] -> 0 | CH71: =Dataset[[#This Row],[2024/25 Reduction]]+Dataset[[#This Row],[2024/25 From - Total]] -> 0 | CI71: =Dataset[[#This Row],[2025/26 Reduction]]+Dataset[[#This Row],[2025/26 From - Total]] -> 0 | CJ71: =Dataset[[#This Row],[2026/27 Reduction]]+Dataset[[#This Row],[2026/27 From - Total]] -> 0 | CK71: =Dataset[[#This Row],[2023/24 Reduction]] -> 0 | CL71: =SUM(Dataset[[#This Row],[2024/25 Reduction]],Dataset[[#This Row],[2024/25 From - Total]],Dataset[[#This Row],[2024/25 To - Total]]) -> 0 | CM71: =SUM(Dataset[[#This Row],[2025/26 Reduction]],Dataset[[#This Row],[2025/26 From - Total]],Dataset[[#This Row],[2025/26 To - Total]]) -> 0 | CN71: =SUM(Dataset[[#This Row],[2026/27 Reduction]],Dataset[[#This Row],[2026/27 From - Total]],Dataset[[#This Row],[2026/27 To - Total]]) -> 0 | CO71: =Dataset[[#This Row],[2023/24 Baseline]]+Dataset[[#This Row],[2023/24 Total change]] -> 0 | CP71: =Dataset[[#This Row],[2024/25 Baseline]]+Dataset[[#This Row],[2024/25 Total change]] -> 0 | CQ71: =Dataset[[#This Row],[2025/26 Baseline]]+Dataset[[#This Row],[2025/26 Total change]] -> 0 | CR71: =Dataset[[#This Row],[2026/27 Baseline]]+Dataset[[#This Row],[2026/27 Total change]] -> 0
A72: NAT|Non-transfer item | B72: 23|Other transfers to private enterprises | C72: 2024_25 | D72: MTEF2024 | E72: 23 | F72: 1 | G72: 1 | H72: 36108 | I72: 54 | J72: 23 | K72: 01 | L72: 01 | M72: 036108 | N72: 000054 | O72: 23|01|01 | P72: 01 | Q72: 02 | R72: 08 | S72: 50 | T72: 54 | U72: 01|02|08|50|54 | V72: National | W72: Defence | X72: Administration | Y72: Ministry | Z72: Non-transfer item | AA72: Current | AB72: Transfers and subsidies | AC72: Public corporations and private enterprises | AD72: Private enterprises | AE72: Other transfers to private enterprises | AF72: Peace and security | AG72: Defence and state security | AH72: NAT | AI72: 0 | AJ72: 0 | AK72: 0 | AL72: 0 | AM72: 0 | AN72: 0 | AO72: 0 | AP72: 0 | AQ72: 0 | AR72: 0 | AS72: 0 | CB72: =Dataset[[#This Row],[2024/25 From - Spending review Topic 1]]+Dataset[[#This Row],[2024/25 From - Spending review Topic 2]]+Dataset[[#This Row],[2024/25 From - Spending review Topic 3]]+Dataset[[#This Row],[2024/25 From - Spending review Topic 4]]+Dataset[[#This Row],[2024/25 From - Other reallocations]] -> 0 | CC72: =Dataset[[#This Row],[2025/26 From - Spending review Topic 1]]+Dataset[[#This Row],[2025/26 From - Spending review Topic 2]]+Dataset[[#This Row],[2025/26 From - Spending review Topic 3]]+Dataset[[#This Row],[2025/26 From - Spending review Topic 4]]+Dataset[[#This Row],[2025/26 From - Other reallocations]] -> 0 | CD72: =Dataset[[#This Row],[2026/27 From - Spending review Topic 1]]+Dataset[[#This Row],[2026/27 From - Spending review Topic 2]]+Dataset[[#This Row],[2026/27 From - Spending review Topic 3]]+Dataset[[#This Row],[2026/27 From - Spending review Topic 4]]+Dataset[[#This Row],[2026/27 From - Other reallocations]] -> 0 | CE72: =Dataset[[#This Row],[2024/25 To - Spending review Topic 1]]+Dataset[[#This Row],[2024/25 To - Spending review Topic 2]]+Dataset[[#This Row],[2024/25 To - Spending review Topic 3]]+Dataset[[#This Row],[2024/25 To - Spending review Topic 4]]+Dataset[[#This Row],[2024/25 To - Other reallocations]] -> 0 | CF72: =Dataset[[#This Row],[2025/26 To - Spending review Topic 1]]+Dataset[[#This Row],[2025/26 To - Spending review Topic 2]]+Dataset[[#This Row],[2025/26 To - Spending review Topic 3]]+Dataset[[#This Row],[2025/26 To - Spending review Topic 4]]+Dataset[[#This Row],[2025/26 To - Other reallocations]] -> 0 | CG72: =Dataset[[#This Row],[2026/27 To - Spending review Topic 1]]+Dataset[[#This Row],[2026/27 To - Spending review Topic 2]]+Dataset[[#This Row],[2026/27 To - Spending review Topic 3]]+Dataset[[#This Row],[2026/27 To - Spending review Topic 4]]+Dataset[[#This Row],[2026/27 To - Other reallocations]] -> 0 | CH72: =Dataset[[#This Row],[2024/25 Reduction]]+Dataset[[#This Row],[2024/25 From - Total]] -> 0 | CI72: =Dataset[[#This Row],[2025/26 Reduction]]+Dataset[[#This Row],[2025/26 From - Total]] -> 0 | CJ72: =Dataset[[#This Row],[2026/27 Reduction]]+Dataset[[#This Row],[2026/27 From - Total]] -> 0 | CK72: =Dataset[[#This Row],[2023/24 Reduction]] -> 0 | CL72: =SUM(Dataset[[#This Row],[2024/25 Reduction]],Dataset[[#This Row],[2024/25 From - Total]],Dataset[[#This Row],[2024/25 To - Total]]) -> 0 | CM72: =SUM(Dataset[[#This Row],[2025/26 Reduction]],Dataset[[#This Row],[2025/26 From - Total]],Dataset[[#This Row],[2025/26 To - Total]]) -> 0 | CN72: =SUM(Dataset[[#This Row],[2026/27 Reduction]],Dataset[[#This Row],[2026/27 From - Total]],Dataset[[#This Row],[2026/27 To - Total]]) -> 0 | CO72: =Dataset[[#This Row],[2023/24 Baseline]]+Dataset[[#This Row],[2023/24 Total change]] -> 0 | CP72: =Dataset[[#This Row],[2024/25 Baseline]]+Dataset[[#This Row],[2024/25 Total change]] -> 0 | CQ72: =Dataset[[#This Row],[2025/26 Baseline]]+Dataset[[#This Row],[2025/26 Total change]] -> 0 | CR72: =Dataset[[#This Row],[2026/27 Baseline]]+Dataset[[#This Row],[2026/27 Total change]] -> 0
A73: NAT|Non-transfer item | B73: 23|Non-profit institutions | C73: 2024_25 | D73: MTEF2024 | E73: 23 | F73: 1 | G73: 1 | H73: 36109 | I73: 55 | J73: 23 | K73: 01 | L73: 01 | M73: 036109 | N73: 000055 | O73: 23|01|01 | P73: 01 | Q73: 02 | R73: 09 | S73: 51 | T73: 55 | U73: 01|02|09|51|55 | V73: National | W73: Defence | X73: Administration | Y73: Ministry | Z73: Non-transfer item | AA73: Current | AB73: Transfers and subsidies | AC73: Non-profit institutions | AD73: Non-profit institutions | AE73: Non-profit institutions | AF73: Peace and security | AG73: Defence and state security | AH73: NAT | AI73: 0 | AJ73: 0 | AK73: 0 | AL73: 0 | AM73: 0 | AN73: 0 | AO73: 0 | AP73: 0 | AQ73: 0 | AR73: 0 | AS73: 0 | CB73: =Dataset[[#This Row],[2024/25 From - Spending review Topic 1]]+Dataset[[#This Row],[2024/25 From - Spending review Topic 2]]+Dataset[[#This Row],[2024/25 From - Spending review Topic 3]]+Dataset[[#This Row],[2024/25 From - Spending review Topic 4]]+Dataset[[#This Row],[2024/25 From - Other reallocations]] -> 0 | CC73: =Dataset[[#This Row],[2025/26 From - Spending review Topic 1]]+Dataset[[#This Row],[2025/26 From - Spending review Topic 2]]+Dataset[[#This Row],[2025/26 From - Spending review Topic 3]]+Dataset[[#This Row],[2025/26 From - Spending review Topic 4]]+Dataset[[#This Row],[2025/26 From - Other reallocations]] -> 0 | CD73: =Dataset[[#This Row],[2026/27 From - Spending review Topic 1]]+Dataset[[#This Row],[2026/27 From - Spending review Topic 2]]+Dataset[[#This Row],[2026/27 From - Spending review Topic 3]]+Dataset[[#This Row],[2026/27 From - Spending review Topic 4]]+Dataset[[#This Row],[2026/27 From - Other reallocations]] -> 0 | CE73: =Dataset[[#This Row],[2024/25 To - Spending review Topic 1]]+Dataset[[#This Row],[2024/25 To - Spending review Topic 2]]+Dataset[[#This Row],[2024/25 To - Spending review Topic 3]]+Dataset[[#This Row],[2024/25 To - Spending review Topic 4]]+Dataset[[#This Row],[2024/25 To - Other reallocations]] -> 0 | CF73: =Dataset[[#This Row],[2025/26 To - Spending review Topic 1]]+Dataset[[#This Row],[2025/26 To - Spending review Topic 2]]+Dataset[[#This Row],[2025/26 To - Spending review Topic 3]]+Dataset[[#This Row],[2025/26 To - Spending review Topic 4]]+Dataset[[#This Row],[2025/26 To - Other reallocations]] -> 0 | CG73: =Dataset[[#This Row],[2026/27 To - Spending review Topic 1]]+Dataset[[#This Row],[2026/27 To - Spending review Topic 2]]+Dataset[[#This Row],[2026/27 To - Spending review Topic 3]]+Dataset[[#This Row],[2026/27 To - Spending review Topic 4]]+Dataset[[#This Row],[2026/27 To - Other reallocations]] -> 0 | CH73: =Dataset[[#This Row],[2024/25 Reduction]]+Dataset[[#This Row],[2024/25 From - Total]] -> 0 | CI73: =Dataset[[#This Row],[2025/26 Reduction]]+Dataset[[#This Row],[2025/26 From - Total]] -> 0 | CJ73: =Dataset[[#This Row],[2026/27 Reduction]]+Dataset[[#This Row],[2026/27 From - Total]] -> 0 | CK73: =Dataset[[#This Row],[2023/24 Reduction]] -> 0 | CL73: =SUM(Dataset[[#This Row],[2024/25 Reduction]],Dataset[[#This Row],[2024/25 From - Total]],Dataset[[#This Row],[2024/25 To - Total]]) -> 0 | CM73: =SUM(Dataset[[#This Row],[2025/26 Reduction]],Dataset[[#This Row],[2025/26 From - Total]],Dataset[[#This Row],[2025/26 To - Total]]) -> 0 | CN73: =SUM(Dataset[[#This Row],[2026/27 Reduction]],Dataset[[#This Row],[2026/27 From - Total]],Dataset[[#This Row],[2026/27 To - Total]]) -> 0 | CO73: =Dataset[[#This Row],[2023/24 Baseline]]+Dataset[[#This Row],[2023/24 Total change]] -> 0 | CP73: =Dataset[[#This Row],[2024/25 Baseline]]+Dataset[[#This Row],[2024/25 Total change]] -> 0 | CQ73: =Dataset[[#This Row],[2025/26 Baseline]]+Dataset[[#This Row],[2025/26 Total change]] -> 0 | CR73: =Dataset[[#This Row],[2026/27 Baseline]]+Dataset[[#This Row],[2026/27 Total change]] -> 0
A74: NAT|Employee social benefits | B74: 23|Social benefits | C74: 2024_25 | D74: MTEF2024 | E74: 23 | F74: 1 | G74: 1 | H74: 36110 | I74: 56 | J74: 23 | K74: 01 | L74: 01 | M74: 036110 | N74: 000056 | O74: 23|01|01 | P74: 01 | Q74: 02 | R74: 10 | S74: 52 | T74: 56 | U74: 01|02|10|52|56 | V74: National | W74: Defence | X74: Administration | Y74: Ministry | Z74: Employee social benefits | AA74: Current | AB74: Transfers and subsidies | AC74: Households | AD74: Social benefits | AE74: Social benefits | AF74: Peace and security | AG74: Defence and state security | AH74: NAT | AI74: 438 | AJ74: 110 | AK74: 194 | AL74: 142 | AM74: 142 | AN74: 142 | AO74: 0 | AP74: 245 | AQ74: 873 | AR74: 176 | AS74: 184 | CB74: =Dataset[[#This Row],[2024/25 From - Spending review Topic 1]]+Dataset[[#This Row],[2024/25 From - Spending review Topic 2]]+Dataset[[#This Row],[2024/25 From - Spending review Topic 3]]+Dataset[[#This Row],[2024/25 From - Spending review Topic 4]]+Dataset[[#This Row],[2024/25 From - Other reallocations]] -> 0 | CC74: =Dataset[[#This Row],[2025/26 From - Spending review Topic 1]]+Dataset[[#This Row],[2025/26 From - Spending review Topic 2]]+Dataset[[#This Row],[2025/26 From - Spending review Topic 3]]+Dataset[[#This Row],[2025/26 From - Spending review Topic 4]]+Dataset[[#This Row],[2025/26 From - Other reallocations]] -> 0 | CD74: =Dataset[[#This Row],[2026/27 From - Spending review Topic 1]]+Dataset[[#This Row],[2026/27 From - Spending review Topic 2]]+Dataset[[#This Row],[2026/27 From - Spending review Topic 3]]+Dataset[[#This Row],[2026/27 From - Spending review Topic 4]]+Dataset[[#This Row],[2026/27 From - Other reallocations]] -> 0 | CE74: =Dataset[[#This Row],[2024/25 To - Spending review Topic 1]]+Dataset[[#This Row],[2024/25 To - Spending review Topic 2]]+Dataset[[#This Row],[2024/25 To - Spending review Topic 3]]+Dataset[[#This Row],[2024/25 To - Spending review Topic 4]]+Dataset[[#This Row],[2024/25 To - Other reallocations]] -> 0 | CF74: =Dataset[[#This Row],[2025/26 To - Spending review Topic 1]]+Dataset[[#This Row],[2025/26 To - Spending review Topic 2]]+Dataset[[#This Row],[2025/26 To - Spending review Topic 3]]+Dataset[[#This Row],[2025/26 To - Spending review Topic 4]]+Dataset[[#This Row],[2025/26 To - Other reallocations]] -> 0 | CG74: =Dataset[[#This Row],[2026/27 To - Spending review Topic 1]]+Dataset[[#This Row],[2026/27 To - Spending review Topic 2]]+Dataset[[#This Row],[2026/27 To - Spending review Topic 3]]+Dataset[[#This Row],[2026/27 To - Spending review Topic 4]]+Dataset[[#This Row],[2026/27 To - Other reallocations]] -> 0 | CH74: =Dataset[[#This Row],[2024/25 Reduction]]+Dataset[[#This Row],[2024/25 From - Total]] -> 0 | CI74: =Dataset[[#This Row],[2025/26 Reduction]]+Dataset[[#This Row],[2025/26 From - Total]] -> 0 | CJ74: =Dataset[[#This Row],[2026/27 Reduction]]+Dataset[[#This Row],[2026/27 From - Total]] -> 0 | CK74: =Dataset[[#This Row],[2023/24 Reduction]] -> 0 | CL74: =SUM(Dataset[[#This Row],[2024/25 Reduction]],Dataset[[#This Row],[2024/25 From - Total]],Dataset[[#This Row],[2024/25 To - Total]]) -> 0 | CM74: =SUM(Dataset[[#This Row],[2025/26 Reduction]],Dataset[[#This Row],[2025/26 From - Total]],Dataset[[#This Row],[2025/26 To - Total]]) -> 0 | CN74: =SUM(Dataset[[#This Row],[2026/27 Reduction]],Dataset[[#This Row],[2026/27 From - Total]],Dataset[[#This Row],[2026/27 To - Total]]) -> 0 | CO74: =Dataset[[#This Row],[2023/24 Baseline]]+Dataset[[#This Row],[2023/24 Total change]] -> 245 | CP74: =Dataset[[#This Row],[2024/25 Baseline]]+Dataset[[#This Row],[2024/25 Total change]] -> 873 | CQ74: =Dataset[[#This Row],[2025/26 Baseline]]+Dataset[[#This Row],[2025/26 Total change]] -> 176 | CR74: =Dataset[[#This Row],[2026/27 Baseline]]+Dataset[[#This Row],[2026/27 Total change]] -> 184
A75: NAT|Non-transfer item | B75: 23|Other transfers to households | C75: 2024_25 | D75: MTEF2024 | E75: 23 | F75: 1 | G75: 1 | H75: 36111 | I75: 57 | J75: 23 | K75: 01 | L75: 01 | M75: 036111 | N75: 000057 | O75: 23|01|01 | P75: 01 | Q75: 02 | R75: 10 | S75: 53 | T75: 57 | U75: 01|02|10|53|57 | V75: National | W75: Defence | X75: Administration | Y75: Ministry | Z75: Non-transfer item | AA75: Current | AB75: Transfers and subsidies | AC75: Households | AD75: Other transfers to households | AE75: Other transfers to households | AF75: Peace and security | AG75: Defence and state security | AH75: NAT | AI75: 0 | AJ75: 0 | AK75: 0 | AL75: 0 | AM75: 0 | AN75: 0 | AO75: 0 | AP75: 0 | AQ75: 0 | AR75: 0 | AS75: 0 | CB75: =Dataset[[#This Row],[2024/25 From - Spending review Topic 1]]+Dataset[[#This Row],[2024/25 From - Spending review Topic 2]]+Dataset[[#This Row],[2024/25 From - Spending review Topic 3]]+Dataset[[#This Row],[2024/25 From - Spending review Topic 4]]+Dataset[[#This Row],[2024/25 From - Other reallocations]] -> 0 | CC75: =Dataset[[#This Row],[2025/26 From - Spending review Topic 1]]+Dataset[[#This Row],[2025/26 From - Spending review Topic 2]]+Dataset[[#This Row],[2025/26 From - Spending review Topic 3]]+Dataset[[#This Row],[2025/26 From - Spending review Topic 4]]+Dataset[[#This Row],[2025/26 From - Other reallocations]] -> 0 | CD75: =Dataset[[#This Row],[2026/27 From - Spending review Topic 1]]+Dataset[[#This Row],[2026/27 From - Spending review Topic 2]]+Dataset[[#This Row],[2026/27 From - Spending review Topic 3]]+Dataset[[#This Row],[2026/27 From - Spending review Topic 4]]+Dataset[[#This Row],[2026/27 From - Other reallocations]] -> 0 | CE75: =Dataset[[#This Row],[2024/25 To - Spending review Topic 1]]+Dataset[[#This Row],[2024/25 To - Spending review Topic 2]]+Dataset[[#This Row],[2024/25 To - Spending review Topic 3]]+Dataset[[#This Row],[2024/25 To - Spending review Topic 4]]+Dataset[[#This Row],[2024/25 To - Other reallocations]] -> 0 | CF75: =Dataset[[#This Row],[2025/26 To - Spending review Topic 1]]+Dataset[[#This Row],[2025/26 To - Spending review Topic 2]]+Dataset[[#This Row],[2025/26 To - Spending review Topic 3]]+Dataset[[#This Row],[2025/26 To - Spending review Topic 4]]+Dataset[[#This Row],[2025/26 To - Other reallocations]] -> 0 | CG75: =Dataset[[#This Row],[2026/27 To - Spending review Topic 1]]+Dataset[[#This Row],[2026/27 To - Spending review Topic 2]]+Dataset[[#This Row],[2026/27 To - Spending review Topic 3]]+Dataset[[#This Row],[2026/27 To - Spending review Topic 4]]+Dataset[[#This Row],[2026/27 To - Other reallocations]] -> 0 | CH75: =Dataset[[#This Row],[2024/25 Reduction]]+Dataset[[#This Row],[2024/25 From - Total]] -> 0 | CI75: =Dataset[[#This Row],[2025/26 Reduction]]+Dataset[[#This Row],[2025/26 From - Total]] -> 0 | CJ75: =Dataset[[#This Row],[2026/27 Reduction]]+Dataset[[#This Row],[2026/27 From - Total]] -> 0 | CK75: =Dataset[[#This Row],[2023/24 Reduction]] -> 0 | CL75: =SUM(Dataset[[#This Row],[2024/25 Reduction]],Dataset[[#This Row],[2024/25 From - Total]],Dataset[[#This Row],[2024/25 To - Total]]) -> 0 | CM75: =SUM(Dataset[[#This Row],[2025/26 Reduction]],Dataset[[#This Row],[2025/26 From - Total]],Dataset[[#This Row],[2025/26 To - Total]]) -> 0 | CN75: =SUM(Dataset[[#This Row],[2026/27 Reduction]],Dataset[[#This Row],[2026/27 From - Total]],Dataset[[#This Row],[2026/27 To - Total]]) -> 0 | CO75: =Dataset[[#This Row],[2023/24 Baseline]]+Dataset[[#This Row],[2023/24 Total change]] -> 0 | CP75: =Dataset[[#This Row],[2024/25 Baseline]]+Dataset[[#This Row],[2024/25 Total change]] -> 0 | CQ75: =Dataset[[#This Row],[2025/26 Baseline]]+Dataset[[#This Row],[2025/26 Total change]] -> 0 | CR75: =Dataset[[#This Row],[2026/27 Baseline]]+Dataset[[#This Row],[2026/27 Total change]] -> 0
A76: NAT|Non-transfer item | B76: 23|Provincial Revenue Funds | C76: 2024_25 | D76: MTEF2024 | E76: 23 | F76: 1 | G76: 1 | H76: 36112 | I76: 58 | J76: 23 | K76: 01 | L76: 01 | M76: 036112 | N76: 000058 | O76: 23|01|01 | P76: 02 | Q76: 02 | R76: 04 | S76: 43 | T76: 43 | U76: 02|02|04|43|43 | V76: National | W76: Defence | X76: Administration | Y76: Ministry | Z76: Non-transfer item | AA76: Capital | AB76: Transfers and subsidies | AC76: Provinces and municipalities | AD76: Provinces | AE76: Provincial Revenue Funds | AF76: Peace and security | AG76: Defence and state security | AH76: NAT | AI76: 0 | AJ76: 0 | AK76: 0 | AL76: 0 | AM76: 0 | AN76: 0 | AO76: 0 | AP76: 0 | AQ76: 0 | AR76: 0 | AS76: 0 | CB76: =Dataset[[#This Row],[2024/25 From - Spending review Topic 1]]+Dataset[[#This Row],[2024/25 From - Spending review Topic 2]]+Dataset[[#This Row],[2024/25 From - Spending review Topic 3]]+Dataset[[#This Row],[2024/25 From - Spending review Topic 4]]+Dataset[[#This Row],[2024/25 From - Other reallocations]] -> 0 | CC76: =Dataset[[#This Row],[2025/26 From - Spending review Topic 1]]+Dataset[[#This Row],[2025/26 From - Spending review Topic 2]]+Dataset[[#This Row],[2025/26 From - Spending review Topic 3]]+Dataset[[#This Row],[2025/26 From - Spending review Topic 4]]+Dataset[[#This Row],[2025/26 From - Other reallocations]] -> 0 | CD76: =Dataset[[#This Row],[2026/27 From - Spending review Topic 1]]+Dataset[[#This Row],[2026/27 From - Spending review Topic 2]]+Dataset[[#This Row],[2026/27 From - Spending review Topic 3]]+Dataset[[#This Row],[2026/27 From - Spending review Topic 4]]+Dataset[[#This Row],[2026/27 From - Other reallocations]] -> 0 | CE76: =Dataset[[#This Row],[2024/25 To - Spending review Topic 1]]+Dataset[[#This Row],[2024/25 To - Spending review Topic 2]]+Dataset[[#This Row],[2024/25 To - Spending review Topic 3]]+Dataset[[#This Row],[2024/25 To - Spending review Topic 4]]+Dataset[[#This Row],[2024/25 To - Other reallocations]] -> 0 | CF76: =Dataset[[#This Row],[2025/26 To - Spending review Topic 1]]+Dataset[[#This Row],[2025/26 To - Spending review Topic 2]]+Dataset[[#This Row],[2025/26 To - Spending review Topic 3]]+Dataset[[#This Row],[2025/26 To - Spending review Topic 4]]+Dataset[[#This Row],[2025/26 To - Other reallocations]] -> 0 | CG76: =Dataset[[#This Row],[2026/27 To - Spending review Topic 1]]+Dataset[[#This Row],[2026/27 To - Spending review Topic 2]]+Dataset[[#This Row],[2026/27 To - Spending review Topic 3]]+Dataset[[#This Row],[2026/27 To - Spending review Topic 4]]+Dataset[[#This Row],[2026/27 To - Other reallocations]] -> 0 | CH76: =Dataset[[#This Row],[2024/25 Reduction]]+Dataset[[#This Row],[2024/25 From - Total]] -> 0 | CI76: =Dataset[[#This Row],[2025/26 Reduction]]+Dataset[[#This Row],[2025/26 From - Total]] -> 0 | CJ76: =Dataset[[#This Row],[2026/27 Reduction]]+Dataset[[#This Row],[2026/27 From - Total]] -> 0 | CK76: =Dataset[[#This Row],[2023/24 Reduction]] -> 0 | CL76: =SUM(Dataset[[#This Row],[2024/25 Reduction]],Dataset[[#This Row],[2024/25 From - Total]],Dataset[[#This Row],[2024/25 To - Total]]) -> 0 | CM76: =SUM(Dataset[[#This Row],[2025/26 Reduction]],Dataset[[#This Row],[2025/26 From - Total]],Dataset[[#This Row],[2025/26 To - Total]]) -> 0 | CN76: =SUM(Dataset[[#This Row],[2026/27 Reduction]],Dataset[[#This Row],[2026/27 From - Total]],Dataset[[#This Row],[2026/27 To - Total]]) -> 0 | CO76: =Dataset[[#This Row],[2023/24 Baseline]]+Dataset[[#This Row],[2023/24 Total change]] -> 0 | CP76: =Dataset[[#This Row],[2024/25 Baseline]]+Dataset[[#This Row],[2024/25 Total change]] -> 0 | CQ76: =Dataset[[#This Row],[2025/26 Baseline]]+Dataset[[#This Row],[2025/26 Total change]] -> 0 | CR76: =Dataset[[#This Row],[2026/27 Baseline]]+Dataset[[#This Row],[2026/27 Total change]] -> 0
A77: NAT|Non-transfer item | B77: 23|Municipal bank accounts | C77: 2024_25 | D77: MTEF2024 | E77: 23 | F77: 1 | G77: 1 | H77: 36113 | I77: 59 | J77: 23 | K77: 01 | L77: 01 | M77: 036113 | N77: 000059 | O77: 23|01|01 | P77: 02 | Q77: 02 | R77: 04 | S77: 44 | T77: 45 | U77: 02|02|04|44|45 | V77: National | W77: Defence | X77: Administration | Y77: Ministry | Z77: Non-transfer item | AA77: Capital | AB77: Transfers and subsidies | AC77: Provinces and municipalities | AD77: Municipalities | AE77: Municipal bank accounts | AF77: Peace and security | AG77: Defence and state security | AH77: NAT | AI77: 0 | AJ77: 0 | AK77: 0 | AL77: 0 | AM77: 0 | AN77: 0 | AO77: 0 | AP77: 0 | AQ77: 0 | AR77: 0 | AS77: 0 | CB77: =Dataset[[#This Row],[2024/25 From - Spending review Topic 1]]+Dataset[[#This Row],[2024/25 From - Spending review Topic 2]]+Dataset[[#This Row],[2024/25 From - Spending review Topic 3]]+Dataset[[#This Row],[2024/25 From - Spending review Topic 4]]+Dataset[[#This Row],[2024/25 From - Other reallocations]] -> 0 | CC77: =Dataset[[#This Row],[2025/26 From - Spending review Topic 1]]+Dataset[[#This Row],[2025/26 From - Spending review Topic 2]]+Dataset[[#This Row],[2025/26 From - Spending review Topic 3]]+Dataset[[#This Row],[2025/26 From - Spending review Topic 4]]+Dataset[[#This Row],[2025/26 From - Other reallocations]] -> 0 | CD77: =Dataset[[#This Row],[2026/27 From - Spending review Topic 1]]+Dataset[[#This Row],[2026/27 From - Spending review Topic 2]]+Dataset[[#This Row],[2026/27 From - Spending review Topic 3]]+Dataset[[#This Row],[2026/27 From - Spending review Topic 4]]+Dataset[[#This Row],[2026/27 From - Other reallocations]] -> 0 | CE77: =Dataset[[#This Row],[2024/25 To - Spending review Topic 1]]+Dataset[[#This Row],[2024/25 To - Spending review Topic 2]]+Dataset[[#This Row],[2024/25 To - Spending review Topic 3]]+Dataset[[#This Row],[2024/25 To - Spending review Topic 4]]+Dataset[[#This Row],[2024/25 To - Other reallocations]] -> 0 | CF77: =Dataset[[#This Row],[2025/26 To - Spending review Topic 1]]+Dataset[[#This Row],[2025/26 To - Spending review Topic 2]]+Dataset[[#This Row],[2025/26 To - Spending review Topic 3]]+Dataset[[#This Row],[2025/26 To - Spending review Topic 4]]+Dataset[[#This Row],[2025/26 To - Other reallocations]] -> 0 | CG77: =Dataset[[#This Row],[2026/27 To - Spending review Topic 1]]+Dataset[[#This Row],[2026/27 To - Spending review Topic 2]]+Dataset[[#This Row],[2026/27 To - Spending review Topic 3]]+Dataset[[#This Row],[2026/27 To - Spending review Topic 4]]+Dataset[[#This Row],[2026/27 To - Other reallocations]] -> 0 | CH77: =Dataset[[#This Row],[2024/25 Reduction]]+Dataset[[#This Row],[2024/25 From - Total]] -> 0 | CI77: =Dataset[[#This Row],[2025/26 Reduction]]+Dataset[[#This Row],[2025/26 From - Total]] -> 0 | CJ77: =Dataset[[#This Row],[2026/27 Reduction]]+Dataset[[#This Row],[2026/27 From - Total]] -> 0 | CK77: =Dataset[[#This Row],[2023/24 Reduction]] -> 0 | CL77: =SUM(Dataset[[#This Row],[2024/25 Reduction]],Dataset[[#This Row],[2024/25 From - Total]],Dataset[[#This Row],[2024/25 To - Total]]) -> 0 | CM77: =SUM(Dataset[[#This Row],[2025/26 Reduction]],Dataset[[#This Row],[2025/26 From - Total]],Dataset[[#This Row],[2025/26 To - Total]]) -> 0 | CN77: =SUM(Dataset[[#This Row],[2026/27 Reduction]],Dataset[[#This Row],[2026/27 From - Total]],Dataset[[#This Row],[2026/27 To - Total]]) -> 0 | CO77: =Dataset[[#This Row],[2023/24 Baseline]]+Dataset[[#This Row],[2023/24 Total change]] -> 0 | CP77: =Dataset[[#This Row],[2024/25 Baseline]]+Dataset[[#This Row],[2024/25 Total change]] -> 0 | CQ77: =Dataset[[#This Row],[2025/26 Baseline]]+Dataset[[#This Row],[2025/26 Total change]] -> 0 | CR77: =Dataset[[#This Row],[2026/27 Baseline]]+Dataset[[#This Row],[2026/27 Total change]] -> 0
A78: NAT|Non-transfer item | B78: 23|Departmental agencies (non-business entities) | C78: 2024_25 | D78: MTEF2024 | E78: 23 | F78: 1 | G78: 1 | H78: 36114 | I78: 60 | J78: 23 | K78: 01 | L78: 01 | M78: 036114 | N78: 000060 | O78: 23|01|01 | P78: 02 | Q78: 02 | R78: 05 | S78: 46 | T78: 48 | U78: 02|02|05|46|48 | V78: National | W78: Defence | X78: Administration | Y78: Ministry | Z78: Non-transfer item | AA78: Capital | AB78: Transfers and subsidies | AC78: Departmental agencies and accounts | AD78: Departmental agencies (non-business entities) | AE78: Departmental agencies (non-business entities) | AF78: Peace and security | AG78: Defence and state security | AH78: NAT | AI78: 0 | AJ78: 0 | AK78: 0 | AL78: 0 | AM78: 0 | AN78: 0 | AO78: 0 | AP78: 0 | AQ78: 0 | AR78: 0 | AS78: 0 | CB78: =Dataset[[#This Row],[2024/25 From - Spending review Topic 1]]+Dataset[[#This Row],[2024/25 From - Spending review Topic 2]]+Dataset[[#This Row],[2024/25 From - Spending review Topic 3]]+Dataset[[#This Row],[2024/25 From - Spending review Topic 4]]+Dataset[[#This Row],[2024/25 From - Other reallocations]] -> 0 | CC78: =Dataset[[#This Row],[2025/26 From - Spending review Topic 1]]+Dataset[[#This Row],[2025/26 From - Spending review Topic 2]]+Dataset[[#This Row],[2025/26 From - Spending review Topic 3]]+Dataset[[#This Row],[2025/26 From - Spending review Topic 4]]+Dataset[[#This Row],[2025/26 From - Other reallocations]] -> 0 | CD78: =Dataset[[#This Row],[2026/27 From - Spending review Topic 1]]+Dataset[[#This Row],[2026/27 From - Spending review Topic 2]]+Dataset[[#This Row],[2026/27 From - Spending review Topic 3]]+Dataset[[#This Row],[2026/27 From - Spending review Topic 4]]+Dataset[[#This Row],[2026/27 From - Other reallocations]] -> 0 | CE78: =Dataset[[#This Row],[2024/25 To - Spending review Topic 1]]+Dataset[[#This Row],[2024/25 To - Spending review Topic 2]]+Dataset[[#This Row],[2024/25 To - Spending review Topic 3]]+Dataset[[#This Row],[2024/25 To - Spending review Topic 4]]+Dataset[[#This Row],[2024/25 To - Other reallocations]] -> 0 | CF78: =Dataset[[#This Row],[2025/26 To - Spending review Topic 1]]+Dataset[[#This Row],[2025/26 To - Spending review Topic 2]]+Dataset[[#This Row],[2025/26 To - Spending review Topic 3]]+Dataset[[#This Row],[2025/26 To - Spending review Topic 4]]+Dataset[[#This Row],[2025/26 To - Other reallocations]] -> 0 | CG78: =Dataset[[#This Row],[2026/27 To - Spending review Topic 1]]+Dataset[[#This Row],[2026/27 To - Spending review Topic 2]]+Dataset[[#This Row],[2026/27 To - Spending review Topic 3]]+Dataset[[#This Row],[2026/27 To - Spending review Topic 4]]+Dataset[[#This Row],[2026/27 To - Other reallocations]] -> 0 | CH78: =Dataset[[#This Row],[2024/25 Reduction]]+Dataset[[#This Row],[2024/25 From - Total]] -> 0 | CI78: =Dataset[[#This Row],[2025/26 Reduction]]+Dataset[[#This Row],[2025/26 From - Total]] -> 0 | CJ78: =Dataset[[#This Row],[2026/27 Reduction]]+Dataset[[#This Row],[2026/27 From - Total]] -> 0 | CK78: =Dataset[[#This Row],[2023/24 Reduction]] -> 0 | CL78: =SUM(Dataset[[#This Row],[2024/25 Reduction]],Dataset[[#This Row],[2024/25 From - Total]],Dataset[[#This Row],[2024/25 To - Total]]) -> 0 | CM78: =SUM(Dataset[[#This Row],[2025/26 Reduction]],Dataset[[#This Row],[2025/26 From - Total]],Dataset[[#This Row],[2025/26 To - Total]]) -> 0 | CN78: =SUM(Dataset[[#This Row],[2026/27 Reduction]],Dataset[[#This Row],[2026/27 From - Total]],Dataset[[#This Row],[2026/27 To - Total]]) -> 0 | CO78: =Dataset[[#This Row],[2023/24 Baseline]]+Dataset[[#This Row],[2023/24 Total change]] -> 0 | CP78: =Dataset[[#This Row],[2024/25 Baseline]]+Dataset[[#This Row],[2024/25 Total change]] -> 0 | CQ78: =Dataset[[#This Row],[2025/26 Baseline]]+Dataset[[#This Row],[2025/26 Total change]] -> 0 | CR78: =Dataset[[#This Row],[2026/27 Baseline]]+Dataset[[#This Row],[2026/27 Total change]] -> 0
A79: NAT|Non-transfer item | B79: 23|Higher education institutions | C79: 2024_25 | D79: MTEF2024 | E79: 23 | F79: 1 | G79: 1 | H79: 36115 | I79: 61 | J79: 23 | K79: 01 | L79: 01 | M79: 036115 | N79: 000061 | O79: 23|01|01 | P79: 02 | Q79: 02 | R79: 06 | S79: 47 | T79: 49 | U79: 02|02|06|47|49 | V79: National | W79: Defence | X79: Administration | Y79: Ministry | Z79: Non-transfer item | AA79: Capital | AB79: Transfers and subsidies | AC79: Higher education institutions | AD79: Higher education institutions | AE79: Higher education institutions | AF79: Peace and security | AG79: Defence and state security | AH79: NAT | AI79: 0 | AJ79: 0 | AK79: 0 | AL79: 0 | AM79: 0 | AN79: 0 | AO79: 0 | AP79: 0 | AQ79: 0 | AR79: 0 | AS79: 0 | CB79: =Dataset[[#This Row],[2024/25 From - Spending review Topic 1]]+Dataset[[#This Row],[2024/25 From - Spending review Topic 2]]+Dataset[[#This Row],[2024/25 From - Spending review Topic 3]]+Dataset[[#This Row],[2024/25 From - Spending review Topic 4]]+Dataset[[#This Row],[2024/25 From - Other reallocations]] -> 0 | CC79: =Dataset[[#This Row],[2025/26 From - Spending review Topic 1]]+Dataset[[#This Row],[2025/26 From - Spending review Topic 2]]+Dataset[[#This Row],[2025/26 From - Spending review Topic 3]]+Dataset[[#This Row],[2025/26 From - Spending review Topic 4]]+Dataset[[#This Row],[2025/26 From - Other reallocations]] -> 0 | CD79: =Dataset[[#This Row],[2026/27 From - Spending review Topic 1]]+Dataset[[#This Row],[2026/27 From - Spending review Topic 2]]+Dataset[[#This Row],[2026/27 From - Spending review Topic 3]]+Dataset[[#This Row],[2026/27 From - Spending review Topic 4]]+Dataset[[#This Row],[2026/27 From - Other reallocations]] -> 0 | CE79: =Dataset[[#This Row],[2024/25 To - Spending review Topic 1]]+Dataset[[#This Row],[2024/25 To - Spending review Topic 2]]+Dataset[[#This Row],[2024/25 To - Spending review Topic 3]]+Dataset[[#This Row],[2024/25 To - Spending review Topic 4]]+Dataset[[#This Row],[2024/25 To - Other reallocations]] -> 0 | CF79: =Dataset[[#This Row],[2025/26 To - Spending review Topic 1]]+Dataset[[#This Row],[2025/26 To - Spending review Topic 2]]+Dataset[[#This Row],[2025/26 To - Spending review Topic 3]]+Dataset[[#This Row],[2025/26 To - Spending review Topic 4]]+Dataset[[#This Row],[2025/26 To - Other reallocations]] -> 0 | CG79: =Dataset[[#This Row],[2026/27 To - Spending review Topic 1]]+Dataset[[#This Row],[2026/27 To - Spending review Topic 2]]+Dataset[[#This Row],[2026/27 To - Spending review Topic 3]]+Dataset[[#This Row],[2026/27 To - Spending review Topic 4]]+Dataset[[#This Row],[2026/27 To - Other reallocations]] -> 0 | CH79: =Dataset[[#This Row],[2024/25 Reduction]]+Dataset[[#This Row],[2024/25 From - Total]] -> 0 | CI79: =Dataset[[#This Row],[2025/26 Reduction]]+Dataset[[#This Row],[2025/26 From - Total]] -> 0 | CJ79: =Dataset[[#This Row],[2026/27 Reduction]]+Dataset[[#This Row],[2026/27 From - Total]] -> 0 | CK79: =Dataset[[#This Row],[2023/24 Reduction]] -> 0 | CL79: =SUM(Dataset[[#This Row],[2024/25 Reduction]],Dataset[[#This Row],[2024/25 From - Total]],Dataset[[#This Row],[2024/25 To - Total]]) -> 0 | CM79: =SUM(Dataset[[#This Row],[2025/26 Reduction]],Dataset[[#This Row],[2025/26 From - Total]],Dataset[[#This Row],[2025/26 To - Total]]) -> 0 | CN79: =SUM(Dataset[[#This Row],[2026/27 Reduction]],Dataset[[#This Row],[2026/27 From - Total]],Dataset[[#This Row],[2026/27 To - Total]]) -> 0 | CO79: =Dataset[[#This Row],[2023/24 Baseline]]+Dataset[[#This Row],[2023/24 Total change]] -> 0 | CP79: =Dataset[[#This Row],[2024/25 Baseline]]+Dataset[[#This Row],[2024/25 Total change]] -> 0 | CQ79: =Dataset[[#This Row],[2025/26 Baseline]]+Dataset[[#This Row],[2025/26 Total change]] -> 0 | CR79: =Dataset[[#This Row],[2026/27 Baseline]]+Dataset[[#This Row],[2026/27 Total change]] -> 0
A80: NAT|Non-transfer item | B80: 23|Foreign governments and international organisations | C80: 2024_25 | D80: MTEF2024 | E80: 23 | F80: 1 | G80: 1 | H80: 36116 | I80: 62 | J80: 23 | K80: 01 | L80: 01 | M80: 036116 | N80: 000062 | O80: 23|01|01 | P80: 02 | Q80: 02 | R80: 07 | S80: 48 | T80: 50 | U80: 02|02|07|48|50 | V80: National | W80: Defence | X80: Administration | Y80: Ministry | Z80: Non-transfer item | AA80: Capital | AB80: Transfers and subsidies | AC80: Foreign governments and international organisations | AD80: Foreign governments and international organisations | AE80: Foreign governments and international organisations | AF80: Peace and security | AG80: Defence and state security | AH80: NAT | AI80: 0 | AJ80: 0 | AK80: 0 | AL80: 0 | AM80: 0 | AN80: 0 | AO80: 0 | AP80: 0 | AQ80: 0 | AR80: 0 | AS80: 0 | CB80: =Dataset[[#This Row],[2024/25 From - Spending review Topic 1]]+Dataset[[#This Row],[2024/25 From - Spending review Topic 2]]+Dataset[[#This Row],[2024/25 From - Spending review Topic 3]]+Dataset[[#This Row],[2024/25 From - Spending review Topic 4]]+Dataset[[#This Row],[2024/25 From - Other reallocations]] -> 0 | CC80: =Dataset[[#This Row],[2025/26 From - Spending review Topic 1]]+Dataset[[#This Row],[2025/26 From - Spending review Topic 2]]+Dataset[[#This Row],[2025/26 From - Spending review Topic 3]]+Dataset[[#This Row],[2025/26 From - Spending review Topic 4]]+Dataset[[#This Row],[2025/26 From - Other reallocations]] -> 0 | CD80: =Dataset[[#This Row],[2026/27 From - Spending review Topic 1]]+Dataset[[#This Row],[2026/27 From - Spending review Topic 2]]+Dataset[[#This Row],[2026/27 From - Spending review Topic 3]]+Dataset[[#This Row],[2026/27 From - Spending review Topic 4]]+Dataset[[#This Row],[2026/27 From - Other reallocations]] -> 0 | CE80: =Dataset[[#This Row],[2024/25 To - Spending review Topic 1]]+Dataset[[#This Row],[2024/25 To - Spending review Topic 2]]+Dataset[[#This Row],[2024/25 To - Spending review Topic 3]]+Dataset[[#This Row],[2024/25 To - Spending review Topic 4]]+Dataset[[#This Row],[2024/25 To - Other reallocations]] -> 0 | CF80: =Dataset[[#This Row],[2025/26 To - Spending review Topic 1]]+Dataset[[#This Row],[2025/26 To - Spending review Topic 2]]+Dataset[[#This Row],[2025/26 To - Spending review Topic 3]]+Dataset[[#This Row],[2025/26 To - Spending review Topic 4]]+Dataset[[#This Row],[2025/26 To - Other reallocations]] -> 0 | CG80: =Dataset[[#This Row],[2026/27 To - Spending review Topic 1]]+Dataset[[#This Row],[2026/27 To - Spending review Topic 2]]+Dataset[[#This Row],[2026/27 To - Spending review Topic 3]]+Dataset[[#This Row],[2026/27 To - Spending review Topic 4]]+Dataset[[#This Row],[2026/27 To - Other reallocations]] -> 0 | CH80: =Dataset[[#This Row],[2024/25 Reduction]]+Dataset[[#This Row],[2024/25 From - Total]] -> 0 | CI80: =Dataset[[#This Row],[2025/26 Reduction]]+Dataset[[#This Row],[2025/26 From - Total]] -> 0 | CJ80: =Dataset[[#This Row],[2026/27 Reduction]]+Dataset[[#This Row],[2026/27 From - Total]] -> 0 | CK80: =Dataset[[#This Row],[2023/24 Reduction]] -> 0 | CL80: =SUM(Dataset[[#This Row],[2024/25 Reduction]],Dataset[[#This Row],[2024/25 From - Total]],Dataset[[#This Row],[2024/25 To - Total]]) -> 0 | CM80: =SUM(Dataset[[#This Row],[2025/26 Reduction]],Dataset[[#This Row],[2025/26 From - Total]],Dataset[[#This Row],[2025/26 To - Total]]) -> 0 | CN80: =SUM(Dataset[[#This Row],[2026/27 Reduction]],Dataset[[#This Row],[2026/27 From - Total]],Dataset[[#This Row],[2026/27 To - Total]]) -> 0 | CO80: =Dataset[[#This Row],[2023/24 Baseline]]+Dataset[[#This Row],[2023/24 Total change]] -> 0 | CP80: =Dataset[[#This Row],[2024/25 Baseline]]+Dataset[[#This Row],[2024/25 Total change]] -> 0 | CQ80: =Dataset[[#This Row],[2025/26 Baseline]]+Dataset[[#This Row],[2025/26 Total change]] -> 0 | CR80: =Dataset[[#This Row],[2026/27 Baseline]]+Dataset[[#This Row],[2026/27 Total change]] -> 0
A81: NAT|Non-transfer item | B81: 23|Subsidies on products and production (pc) | C81: 2024_25 | D81: MTEF2024 | E81: 23 | F81: 1 | G81: 1 | H81: 36117 | I81: 63 | J81: 23 | K81: 01 | L81: 01 | M81: 036117 | N81: 000063 | O81: 23|01|01 | P81: 02 | Q81: 02 | R81: 08 | S81: 49 | T81: 51 | U81: 02|02|08|49|51 | V81: National | W81: Defence | X81: Administration | Y81: Ministry | Z81: Non-transfer item | AA81: Capital | AB81: Transfers and subsidies | AC81: Public corporations and private enterprises | AD81: Public corporations | AE81: Subsidies on products and production (pc) | AF81: Peace and security | AG81: Defence and state security | AH81: NAT | AI81: 0 | AJ81: 0 | AK81: 0 | AL81: 0 | AM81: 0 | AN81: 0 | AO81: 0 | AP81: 0 | AQ81: 0 | AR81: 0 | AS81: 0 | CB81: =Dataset[[#This Row],[2024/25 From - Spending review Topic 1]]+Dataset[[#This Row],[2024/25 From - Spending review Topic 2]]+Dataset[[#This Row],[2024/25 From - Spending review Topic 3]]+Dataset[[#This Row],[2024/25 From - Spending review Topic 4]]+Dataset[[#This Row],[2024/25 From - Other reallocations]] -> 0 | CC81: =Dataset[[#This Row],[2025/26 From - Spending review Topic 1]]+Dataset[[#This Row],[2025/26 From - Spending review Topic 2]]+Dataset[[#This Row],[2025/26 From - Spending review Topic 3]]+Dataset[[#This Row],[2025/26 From - Spending review Topic 4]]+Dataset[[#This Row],[2025/26 From - Other reallocations]] -> 0 | CD81: =Dataset[[#This Row],[2026/27 From - Spending review Topic 1]]+Dataset[[#This Row],[2026/27 From - Spending review Topic 2]]+Dataset[[#This Row],[2026/27 From - Spending review Topic 3]]+Dataset[[#This Row],[2026/27 From - Spending review Topic 4]]+Dataset[[#This Row],[2026/27 From - Other reallocations]] -> 0 | CE81: =Dataset[[#This Row],[2024/25 To - Spending review Topic 1]]+Dataset[[#This Row],[2024/25 To - Spending review Topic 2]]+Dataset[[#This Row],[2024/25 To - Spending review Topic 3]]+Dataset[[#This Row],[2024/25 To - Spending review Topic 4]]+Dataset[[#This Row],[2024/25 To - Other reallocations]] -> 0 | CF81: =Dataset[[#This Row],[2025/26 To - Spending review Topic 1]]+Dataset[[#This Row],[2025/26 To - Spending review Topic 2]]+Dataset[[#This Row],[2025/26 To - Spending review Topic 3]]+Dataset[[#This Row],[2025/26 To - Spending review Topic 4]]+Dataset[[#This Row],[2025/26 To - Other reallocations]] -> 0 | CG81: =Dataset[[#This Row],[2026/27 To - Spending review Topic 1]]+Dataset[[#This Row],[2026/27 To - Spending review Topic 2]]+Dataset[[#This Row],[2026/27 To - Spending review Topic 3]]+Dataset[[#This Row],[2026/27 To - Spending review Topic 4]]+Dataset[[#This Row],[2026/27 To - Other reallocations]] -> 0 | CH81: =Dataset[[#This Row],[2024/25 Reduction]]+Dataset[[#This Row],[2024/25 From - Total]] -> 0 | CI81: =Dataset[[#This Row],[2025/26 Reduction]]+Dataset[[#This Row],[2025/26 From - Total]] -> 0 | CJ81: =Dataset[[#This Row],[2026/27 Reduction]]+Dataset[[#This Row],[2026/27 From - Total]] -> 0 | CK81: =Dataset[[#This Row],[2023/24 Reduction]] -> 0 | CL81: =SUM(Dataset[[#This Row],[2024/25 Reduction]],Dataset[[#This Row],[2024/25 From - Total]],Dataset[[#This Row],[2024/25 To - Total]]) -> 0 | CM81: =SUM(Dataset[[#This Row],[2025/26 Reduction]],Dataset[[#This Row],[2025/26 From - Total]],Dataset[[#This Row],[2025/26 To - Total]]) -> 0 | CN81: =SUM(Dataset[[#This Row],[2026/27 Reduction]],Dataset[[#This Row],[2026/27 From - Total]],Dataset[[#This Row],[2026/27 To - Total]]) -> 0 | CO81: =Dataset[[#This Row],[2023/24 Baseline]]+Dataset[[#This Row],[2023/24 Total change]] -> 0 | CP81: =Dataset[[#This Row],[2024/25 Baseline]]+Dataset[[#This Row],[2024/25 Total change]] -> 0 | CQ81: =Dataset[[#This Row],[2025/26 Baseline]]+Dataset[[#This Row],[2025/26 Total change]] -> 0 | CR81: =Dataset[[#This Row],[2026/27 Baseline]]+Dataset[[#This Row],[2026/27 Total change]] -> 0
A82: NAT|Non-transfer item | B82: 23|Other transfers to public corporations | C82: 2024_25 | D82: MTEF2024 | E82: 23 | F82: 1 | G82: 1 | H82: 36118 | I82: 64 | J82: 23 | K82: 01 | L82: 01 | M82: 036118 | N82: 000064 | O82: 23|01|01 | P82: 02 | Q82: 02 | R82: 08 | S82: 49 | T82: 52 | U82: 02|02|08|49|52 | V82: National | W82: Defence | X82: Administration | Y82: Ministry | Z82: Non-transfer item | AA82: Capital | AB82: Transfers and subsidies | AC82: Public corporations and private enterprises | AD82: Public corporations | AE82: Other transfers to public corporations | AF82: Peace and security | AG82: Defence and state security | AH82: NAT | AI82: 0 | AJ82: 0 | AK82: 0 | AL82: 0 | AM82: 0 | AN82: 0 | AO82: 0 | AP82: 0 | AQ82: 0 | AR82: 0 | AS82: 0 | CB82: =Dataset[[#This Row],[2024/25 From - Spending review Topic 1]]+Dataset[[#This Row],[2024/25 From - Spending review Topic 2]]+Dataset[[#This Row],[2024/25 From - Spending review Topic 3]]+Dataset[[#This Row],[2024/25 From - Spending review Topic 4]]+Dataset[[#This Row],[2024/25 From - Other reallocations]] -> 0 | CC82: =Dataset[[#This Row],[2025/26 From - Spending review Topic 1]]+Dataset[[#This Row],[2025/26 From - Spending review Topic 2]]+Dataset[[#This Row],[2025/26 From - Spending review Topic 3]]+Dataset[[#This Row],[2025/26 From - Spending review Topic 4]]+Dataset[[#This Row],[2025/26 From - Other reallocations]] -> 0 | CD82: =Dataset[[#This Row],[2026/27 From - Spending review Topic 1]]+Dataset[[#This Row],[2026/27 From - Spending review Topic 2]]+Dataset[[#This Row],[2026/27 From - Spending review Topic 3]]+Dataset[[#This Row],[2026/27 From - Spending review Topic 4]]+Dataset[[#This Row],[2026/27 From - Other reallocations]] -> 0 | CE82: =Dataset[[#This Row],[2024/25 To - Spending review Topic 1]]+Dataset[[#This Row],[2024/25 To - Spending review Topic 2]]+Dataset[[#This Row],[2024/25 To - Spending review Topic 3]]+Dataset[[#This Row],[2024/25 To - Spending review Topic 4]]+Dataset[[#This Row],[2024/25 To - Other reallocations]] -> 0 | CF82: =Dataset[[#This Row],[2025/26 To - Spending review Topic 1]]+Dataset[[#This Row],[2025/26 To - Spending review Topic 2]]+Dataset[[#This Row],[2025/26 To - Spending review Topic 3]]+Dataset[[#This Row],[2025/26 To - Spending review Topic 4]]+Dataset[[#This Row],[2025/26 To - Other reallocations]] -> 0 | CG82: =Dataset[[#This Row],[2026/27 To - Spending review Topic 1]]+Dataset[[#This Row],[2026/27 To - Spending review Topic 2]]+Dataset[[#This Row],[2026/27 To - Spending review Topic 3]]+Dataset[[#This Row],[2026/27 To - Spending review Topic 4]]+Dataset[[#This Row],[2026/27 To - Other reallocations]] -> 0 | CH82: =Dataset[[#This Row],[2024/25 Reduction]]+Dataset[[#This Row],[2024/25 From - Total]] -> 0 | CI82: =Dataset[[#This Row],[2025/26 Reduction]]+Dataset[[#This Row],[2025/26 From - Total]] -> 0 | CJ82: =Dataset[[#This Row],[2026/27 Reduction]]+Dataset[[#This Row],[2026/27 From - Total]] -> 0 | CK82: =Dataset[[#This Row],[2023/24 Reduction]] -> 0 | CL82: =SUM(Dataset[[#This Row],[2024/25 Reduction]],Dataset[[#This Row],[2024/25 From - Total]],Dataset[[#This Row],[2024/25 To - Total]]) -> 0 | CM82: =SUM(Dataset[[#This Row],[2025/26 Reduction]],Dataset[[#This Row],[2025/26 From - Total]],Dataset[[#This Row],[2025/26 To - Total]]) -> 0 | CN82: =SUM(Dataset[[#This Row],[2026/27 Reduction]],Dataset[[#This Row],[2026/27 From - Total]],Dataset[[#This Row],[2026/27 To - Total]]) -> 0 | CO82: =Dataset[[#This Row],[2023/24 Baseline]]+Dataset[[#This Row],[2023/24 Total change]] -> 0 | CP82: =Dataset[[#This Row],[2024/25 Baseline]]+Dataset[[#This Row],[2024/25 Total change]] -> 0 | CQ82: =Dataset[[#This Row],[2025/26 Baseline]]+Dataset[[#This Row],[2025/26 Total change]] -> 0 | CR82: =Dataset[[#This Row],[2026/27 Baseline]]+Dataset[[#This Row],[2026/27 Total change]] -> 0
A83: NAT|Non-transfer item | B83: 23|Other transfers to private enterprises | C83: 2024_25 | D83: MTEF2024 | E83: 23 | F83: 1 | G83: 1 | H83: 36119 | I83: 65 | J83: 23 | K83: 01 | L83: 01 | M83: 036119 | N83: 000065 | O83: 23|01|01 | P83: 02 | Q83: 02 | R83: 08 | S83: 50 | T83: 54 | U83: 02|02|08|50|54 | V83: National | W83: Defence | X83: Administration | Y83: Ministry | Z83: Non-transfer item | AA83: Capital | AB83: Transfers and subsidies | AC83: Public corporations and private enterprises | AD83: Private enterprises | AE83: Other transfers to private enterprises | AF83: Peace and security | AG83: Defence and state security | AH83: NAT | AI83: 0 | AJ83: 0 | AK83: 0 | AL83: 0 | AM83: 0 | AN83: 0 | AO83: 0 | AP83: 0 | AQ83: 0 | AR83: 0 | AS83: 0 | CB83: =Dataset[[#This Row],[2024/25 From - Spending review Topic 1]]+Dataset[[#This Row],[2024/25 From - Spending review Topic 2]]+Dataset[[#This Row],[2024/25 From - Spending review Topic 3]]+Dataset[[#This Row],[2024/25 From - Spending review Topic 4]]+Dataset[[#This Row],[2024/25 From - Other reallocations]] -> 0 | CC83: =Dataset[[#This Row],[2025/26 From - Spending review Topic 1]]+Dataset[[#This Row],[2025/26 From - Spending review Topic 2]]+Dataset[[#This Row],[2025/26 From - Spending review Topic 3]]+Dataset[[#This Row],[2025/26 From - Spending review Topic 4]]+Dataset[[#This Row],[2025/26 From - Other reallocations]] -> 0 | CD83: =Dataset[[#This Row],[2026/27 From - Spending review Topic 1]]+Dataset[[#This Row],[2026/27 From - Spending review Topic 2]]+Dataset[[#This Row],[2026/27 From - Spending review Topic 3]]+Dataset[[#This Row],[2026/27 From - Spending review Topic 4]]+Dataset[[#This Row],[2026/27 From - Other reallocations]] -> 0 | CE83: =Dataset[[#This Row],[2024/25 To - Spending review Topic 1]]+Dataset[[#This Row],[2024/25 To - Spending review Topic 2]]+Dataset[[#This Row],[2024/25 To - Spending review Topic 3]]+Dataset[[#This Row],[2024/25 To - Spending review Topic 4]]+Dataset[[#This Row],[2024/25 To - Other reallocations]] -> 0 | CF83: =Dataset[[#This Row],[2025/26 To - Spending review Topic 1]]+Dataset[[#This Row],[2025/26 To - Spending review Topic 2]]+Dataset[[#This Row],[2025/26 To - Spending review Topic 3]]+Dataset[[#This Row],[2025/26 To - Spending review Topic 4]]+Dataset[[#This Row],[2025/26 To - Other reallocations]] -> 0 | CG83: =Dataset[[#This Row],[2026/27 To - Spending review Topic 1]]+Dataset[[#This Row],[2026/27 To - Spending review Topic 2]]+Dataset[[#This Row],[2026/27 To - Spending review Topic 3]]+Dataset[[#This Row],[2026/27 To - Spending review Topic 4]]+Dataset[[#This Row],[2026/27 To - Other reallocations]] -> 0 | CH83: =Dataset[[#This Row],[2024/25 Reduction]]+Dataset[[#This Row],[2024/25 From - Total]] -> 0 | CI83: =Dataset[[#This Row],[2025/26 Reduction]]+Dataset[[#This Row],[2025/26 From - Total]] -> 0 | CJ83: =Dataset[[#This Row],[2026/27 Reduction]]+Dataset[[#This Row],[2026/27 From - Total]] -> 0 | CK83: =Dataset[[#This Row],[2023/24 Reduction]] -> 0 | CL83: =SUM(Dataset[[#This Row],[2024/25 Reduction]],Dataset[[#This Row],[2024/25 From - Total]],Dataset[[#This Row],[2024/25 To - Total]]) -> 0 | CM83: =SUM(Dataset[[#This Row],[2025/26 Reduction]],Dataset[[#This Row],[2025/26 From - Total]],Dataset[[#This Row],[2025/26 To - Total]]) -> 0 | CN83: =SUM(Dataset[[#This Row],[2026/27 Reduction]],Dataset[[#This Row],[2026/27 From - Total]],Dataset[[#This Row],[2026/27 To - Total]]) -> 0 | CO83: =Dataset[[#This Row],[2023/24 Baseline]]+Dataset[[#This Row],[2023/24 Total change]] -> 0 | CP83: =Dataset[[#This Row],[2024/25 Baseline]]+Dataset[[#This Row],[2024/25 Total change]] -> 0 | CQ83: =Dataset[[#This Row],[2025/26 Baseline]]+Dataset[[#This Row],[2025/26 Total change]] -> 0 | CR83: =Dataset[[#This Row],[2026/27 Baseline]]+Dataset[[#This Row],[2026/27 Total change]] -> 0
A84: NAT|Non-transfer item | B84: 23|Non-profit institutions | C84: 2024_25 | D84: MTEF2024 | E84: 23 | F84: 1 | G84: 1 | H84: 36120 | I84: 66 | J84: 23 | K84: 01 | L84: 01 | M84: 036120 | N84: 000066 | O84: 23|01|01 | P84: 02 | Q84: 02 | R84: 09 | S84: 51 | T84: 55 | U84: 02|02|09|51|55 | V84: National | W84: Defence | X84: Administration | Y84: Ministry | Z84: Non-transfer item | AA84: Capital | AB84: Transfers and subsidies | AC84: Non-profit institutions | AD84: Non-profit institutions | AE84: Non-profit institutions | AF84: Peace and security | AG84: Defence and state security | AH84: NAT | AI84: 0 | AJ84: 0 | AK84: 0 | AL84: 0 | AM84: 0 | AN84: 0 | AO84: 0 | AP84: 0 | AQ84: 0 | AR84: 0 | AS84: 0 | CB84: =Dataset[[#This Row],[2024/25 From - Spending review Topic 1]]+Dataset[[#This Row],[2024/25 From - Spending review Topic 2]]+Dataset[[#This Row],[2024/25 From - Spending review Topic 3]]+Dataset[[#This Row],[2024/25 From - Spending review Topic 4]]+Dataset[[#This Row],[2024/25 From - Other reallocations]] -> 0 | CC84: =Dataset[[#This Row],[2025/26 From - Spending review Topic 1]]+Dataset[[#This Row],[2025/26 From - Spending review Topic 2]]+Dataset[[#This Row],[2025/26 From - Spending review Topic 3]]+Dataset[[#This Row],[2025/26 From - Spending review Topic 4]]+Dataset[[#This Row],[2025/26 From - Other reallocations]] -> 0 | CD84: =Dataset[[#This Row],[2026/27 From - Spending review Topic 1]]+Dataset[[#This Row],[2026/27 From - Spending review Topic 2]]+Dataset[[#This Row],[2026/27 From - Spending review Topic 3]]+Dataset[[#This Row],[2026/27 From - Spending review Topic 4]]+Dataset[[#This Row],[2026/27 From - Other reallocations]] -> 0 | CE84: =Dataset[[#This Row],[2024/25 To - Spending review Topic 1]]+Dataset[[#This Row],[2024/25 To - Spending review Topic 2]]+Dataset[[#This Row],[2024/25 To - Spending review Topic 3]]+Dataset[[#This Row],[2024/25 To - Spending review Topic 4]]+Dataset[[#This Row],[2024/25 To - Other reallocations]] -> 0 | CF84: =Dataset[[#This Row],[2025/26 To - Spending review Topic 1]]+Dataset[[#This Row],[2025/26 To - Spending review Topic 2]]+Dataset[[#This Row],[2025/26 To - Spending review Topic 3]]+Dataset[[#This Row],[2025/26 To - Spending review Topic 4]]+Dataset[[#This Row],[2025/26 To - Other reallocations]] -> 0 | CG84: =Dataset[[#This Row],[2026/27 To - Spending review Topic 1]]+Dataset[[#This Row],[2026/27 To - Spending review Topic 2]]+Dataset[[#This Row],[2026/27 To - Spending review Topic 3]]+Dataset[[#This Row],[2026/27 To - Spending review Topic 4]]+Dataset[[#This Row],[2026/27 To - Other reallocations]] -> 0 | CH84: =Dataset[[#This Row],[2024/25 Reduction]]+Dataset[[#This Row],[2024/25 From - Total]] -> 0 | CI84: =Dataset[[#This Row],[2025/26 Reduction]]+Dataset[[#This Row],[2025/26 From - Total]] -> 0 | CJ84: =Dataset[[#This Row],[2026/27 Reduction]]+Dataset[[#This Row],[2026/27 From - Total]] -> 0 | CK84: =Dataset[[#This Row],[2023/24 Reduction]] -> 0 | CL84: =SUM(Dataset[[#This Row],[2024/25 Reduction]],Dataset[[#This Row],[2024/25 From - Total]],Dataset[[#This Row],[2024/25 To - Total]]) -> 0 | CM84: =SUM(Dataset[[#This Row],[2025/26 Reduction]],Dataset[[#This Row],[2025/26 From - Total]],Dataset[[#This Row],[2025/26 To - Total]]) -> 0 | CN84: =SUM(Dataset[[#This Row],[2026/27 Reduction]],Dataset[[#This Row],[2026/27 From - Total]],Dataset[[#This Row],[2026/27 To - Total]]) -> 0 | CO84: =Dataset[[#This Row],[2023/24 Baseline]]+Dataset[[#This Row],[2023/24 Total change]] -> 0 | CP84: =Dataset[[#This Row],[2024/25 Baseline]]+Dataset[[#This Row],[2024/25 Total change]] -> 0 | CQ84: =Dataset[[#This Row],[2025/26 Baseline]]+Dataset[[#This Row],[2025/26 Total change]] -> 0 | CR84: =Dataset[[#This Row],[2026/27 Baseline]]+Dataset[[#This Row],[2026/27 Total change]] -> 0
